Body_Code,Body_Name,Service,Posting Date,GL Code,GL Code Desc,Doc Number,Doc Net Amount,Supplier Name
http://statistics.data.gov.uk/id/local-authority/38,Oxfordshire County Council,,06/10/2022,1272,Deposits in Suspense ROIS,3111262211,"-400,243.69",OCC One Time Vendor
http://statistics.data.gov.uk/id/local-authority/38,Oxfordshire County Council,Care Homes - Under 65 Leaning Disability,12/10/2022,5686,,3111267257,"-89,343.17",Dalguise Centre at Balhousie
http://statistics.data.gov.uk/id/local-authority/38,Oxfordshire County Council,HIF2 Team,14/10/2022,2040,Agency Staff,2201037320,"-79,491.38",Faithful & Gould
http://statistics.data.gov.uk/id/local-authority/38,Oxfordshire County Council,CONTRACT & PERF MNGT,18/10/2022,5526,Payments to Private Contractors,2201038360,"-36,325.77",Milestone Infrastructure Limited
http://statistics.data.gov.uk/id/local-authority/38,Oxfordshire County Council,ADULT PHYS ACTIVITY,24/10/2022,4861,Hired and Contracted Services,2201040675,"-31,560.00",Active Oxfordshire
http://statistics.data.gov.uk/id/local-authority/38,Oxfordshire County Council,CHC Fast Track - Care Homes - Over 65,12/10/2022,5687,,3111266007,"-28,639.30",Orders of St John
http://statistics.data.gov.uk/id/local-authority/38,Oxfordshire County Council,CHC Fast Track - Care Homes - Over 65,12/10/2022,5687,,3111265918,"-25,714.29",Acacia Lodge Care Home
http://statistics.data.gov.uk/id/local-authority/38,Oxfordshire County Council,Care Homes - Over 65 Physical Sypport,12/10/2022,5686,,3111268718,"-25,534.27",Leafield Rest Home
http://statistics.data.gov.uk/id/local-authority/38,Oxfordshire County Council,CHC Fast Track - Care Homes - Over 65,12/10/2022,5687,,3111268780,"-24,829.58",Lincroft Meadow
http://statistics.data.gov.uk/id/local-authority/38,Oxfordshire County Council,COMM DRAWDOWN FUNDNG,18/10/2022,8102,Payments to main contractor,2201038342,"-24,658.21",Milestone Infrastructure Limited
http://statistics.data.gov.uk/id/local-authority/38,Oxfordshire County Council,Funded Nursing Care  - Over 65,12/10/2022,5692,,3111267871,"-24,525.63",Godswell Park
http://statistics.data.gov.uk/id/local-authority/38,Oxfordshire County Council,Personal Health Budgets  - U65,14/10/2022,5899,Social Care - Direct Payments,3111270925,"-22,536.92",Redacted Personal Data
http://statistics.data.gov.uk/id/local-authority/38,Oxfordshire County Council,CHC Fast Track - Care Homes - Over 65,12/10/2022,5687,,3111266009,"-21,057.87",Orders of St John
http://statistics.data.gov.uk/id/local-authority/38,Oxfordshire County Council,Funded Nursing Care  - Over 65,14/10/2022,5692,,3111270921,"-19,980.18",The Langston
http://statistics.data.gov.uk/id/local-authority/38,Oxfordshire County Council,Support at Home 65+ Memory & Cognition,12/10/2022,5686,,3111269217,"-15,257.15",Barchester Healthcare Homes Ltd
http://statistics.data.gov.uk/id/local-authority/38,Oxfordshire County Council,Commercial Team Growth,20/10/2022,2040,Agency Staff,2201039650,"-14,324.86",Faithful & Gould
http://statistics.data.gov.uk/id/local-authority/38,Oxfordshire County Council,CHC Fast Track - Care Homes - Over 65,12/10/2022,5687,,3111267206,"-13,618.19",CUMNOR HILL HOUSE
http://statistics.data.gov.uk/id/local-authority/38,Oxfordshire County Council,Support at Home 65+ Physical Support,12/10/2022,5687,,3111269670,"-13,028.58",The Triangle Nursing Home
http://statistics.data.gov.uk/id/local-authority/38,Oxfordshire County Council,Care Homes - Over 65 Memory & Cognition,12/10/2022,5687,,3111269222,"-12,967.82",Barchester Healthcare Homes Ltd
http://statistics.data.gov.uk/id/local-authority/38,Oxfordshire County Council,CHC Fast Track - Care Homes - Over 65,12/10/2022,5687,,3111266599,"-11,868.43",CARE UK COMMUNITY PARTNERSHIPS LIMI
http://statistics.data.gov.uk/id/local-authority/38,Oxfordshire County Council,Care Homes - Over 65 Mental Health,12/10/2022,5686,,3111266921,"-11,683.15",Orders of St John
http://statistics.data.gov.uk/id/local-authority/38,Oxfordshire County Council,Support at Home 65+ Learning Disability,12/10/2022,5688,,3111267946,"-10,780.14",Dimensions (UK) Ltd
http://statistics.data.gov.uk/id/local-authority/38,Oxfordshire County Council,Support at Home U65 Learning Disability,12/10/2022,5688,,3111267843,"-9,887.16",Dimensions (UK) Ltd
http://statistics.data.gov.uk/id/local-authority/38,Oxfordshire County Council,Support at Home U65 Physical Support,12/10/2022,5687,,3111269400,"-9,857.14",Tall Trees
http://statistics.data.gov.uk/id/local-authority/38,Oxfordshire County Council,Care Homes - Over 65 Physical Sypport,12/10/2022,5686,,3111266144,"-9,641.00",Orders of St John
http://statistics.data.gov.uk/id/local-authority/38,Oxfordshire County Council,Continuing Care - Care Homes - 65+,12/10/2022,5687,,3111269565,"-9,400.00",Four Seasons (Headington) Ltd
http://statistics.data.gov.uk/id/local-authority/38,Oxfordshire County Council,Support at Home U65 Learning Disability,12/10/2022,5537,Payments to Other Establishments,3111269950,"-9,355.71",RMET
http://statistics.data.gov.uk/id/local-authority/38,Oxfordshire County Council,Support at Home U65 Learning Disability,12/10/2022,5688,,3111267875,"-9,294.44",Dimensions (UK) Ltd
http://statistics.data.gov.uk/id/local-authority/38,Oxfordshire County Council,Care Homes - Over 65 Physical Sypport,12/10/2022,5687,,3111269224,"-9,254.45",Barchester Healthcare Homes Ltd
http://statistics.data.gov.uk/id/local-authority/38,Oxfordshire County Council,Support at Home U65 Learning Disability,12/10/2022,5688,,3111268682,"-9,063.12",UNITED RESPONSE
http://statistics.data.gov.uk/id/local-authority/38,Oxfordshire County Council,FIRE CONTROL,06/10/2022,4940,Other Services,2201034358,"-8,948.00",ROYAL BERKSHIRE FIRE AUTHORITY
http://statistics.data.gov.uk/id/local-authority/38,Oxfordshire County Council,Support at Home 65+ Physical Support,12/10/2022,5687,,3111266459,"-8,914.29",METHODIST HOMES
http://statistics.data.gov.uk/id/local-authority/38,Oxfordshire County Council,Funded Nursing Care  - Over 65,14/10/2022,5692,,3111270912,"-8,631.22",Abbey Crest Nursing Home
http://statistics.data.gov.uk/id/local-authority/38,Oxfordshire County Council,Support at Home U65 Learning Disability,12/10/2022,5688,,3111269993,"-8,510.21",H F TRUST LTD
http://statistics.data.gov.uk/id/local-authority/38,Oxfordshire County Council,Care Homes - Over 65 Leaning Disability,12/10/2022,5685,B*Cycle tracks,3111267544,"-8,468.87",Freeland House
http://statistics.data.gov.uk/id/local-authority/38,Oxfordshire County Council,Household Support Fund,17/10/2022,7690,Additional Grant for Schools,3111271190,"-8,280.00",Lord Williams's School
http://statistics.data.gov.uk/id/local-authority/38,Oxfordshire County Council,Funded Nursing Care  - Over 65,12/10/2022,5692,,3111269278,"-7,880.82",Stowford House
http://statistics.data.gov.uk/id/local-authority/38,Oxfordshire County Council,Support at Home 65+ Physical Support,12/10/2022,5686,,3111269010,"-7,042.86",Oxford Beaumont
http://statistics.data.gov.uk/id/local-authority/38,Oxfordshire County Council,Support at Home U65 Learning Disability,12/10/2022,5688,,3111268032,"-6,805.77",SEEABILITY
http://statistics.data.gov.uk/id/local-authority/38,Oxfordshire County Council,Care Homes - Over 65 Memory & Cognition,12/10/2022,5686,,3111268704,"-6,714.28",Kirlena House
http://statistics.data.gov.uk/id/local-authority/38,Oxfordshire County Council,Care Homes - Over 65 Physical Sypport,12/10/2022,5685,B*Cycle tracks,3111268458,"-6,315.49",Heathfield House Nursing Home
http://statistics.data.gov.uk/id/local-authority/38,Oxfordshire County Council,Support at Home 65+ Physical Support,12/10/2022,5686,,3111267438,"-6,125.15",Orders of St John
http://statistics.data.gov.uk/id/local-authority/38,Oxfordshire County Council,FLEET COSTS,07/10/2022,4270,HTM / Other Vehicle - Hire Charges,2201034924,"-6,075.13",Lex Autolease Limited
http://statistics.data.gov.uk/id/local-authority/38,Oxfordshire County Council,LEGAL BUDGET,10/10/2022,5251,Legal Costs,2201035638,"-5,930.00",WILLIS PALMER
http://statistics.data.gov.uk/id/local-authority/38,Oxfordshire County Council,Funded Nursing Care  - Over 65,12/10/2022,5692,,3111267865,"-5,349.28",Godswell Park
http://statistics.data.gov.uk/id/local-authority/38,Oxfordshire County Council,GRASS CUTTING DIST.,06/10/2022,5526,Payments to Private Contractors,2201034592,"-5,135.05",Thame Town Council
http://statistics.data.gov.uk/id/local-authority/38,Oxfordshire County Council,Support at Home U65 Learning Disability,12/10/2022,5688,,3111268087,"-5,053.72",Style Acre
http://statistics.data.gov.uk/id/local-authority/38,Oxfordshire County Council,CHC Fast Track - Sup at Homes - Over 65,18/10/2022,5691,,3111272373,"-4,884.00",Autumn Years Care
http://statistics.data.gov.uk/id/local-authority/38,Oxfordshire County Council,Support at Home 65+ Memory & Cognition,12/10/2022,5686,,3111269897,"-4,828.57",Caring Homes Healthcare Group Ltd
http://statistics.data.gov.uk/id/local-authority/38,Oxfordshire County Council,Care Homes - Under 65 Leaning Disability,12/10/2022,5686,,3111269485,"-4,792.25",The Maples
http://statistics.data.gov.uk/id/local-authority/38,Oxfordshire County Council,Funded Nursing Care  - Over 65,14/10/2022,5692,,3111270924,"-4,721.71",Caring Homes Healthcare Group Ltd
http://statistics.data.gov.uk/id/local-authority/38,Oxfordshire County Council,SPECIAL GUARDIANSHIP,04/10/2022,5661,B*Carriageway pre surf. dressing patchin,3111261316,"-4,647.05",Redacted Personal Data
http://statistics.data.gov.uk/id/local-authority/38,Oxfordshire County Council,Funded Nursing Care  - Over 65,12/10/2022,5692,,3111269225,"-4,572.29",Barchester Healthcare Homes Ltd
http://statistics.data.gov.uk/id/local-authority/38,Oxfordshire County Council,Funded Nursing Care  - Over 65,12/10/2022,5692,,3111266002,"-4,482.64",Didcot Care Home Ltd
http://statistics.data.gov.uk/id/local-authority/38,Oxfordshire County Council,STI TESTING+TREATMEN,11/10/2022,4940,Other Services,3111262910,"-4,389.00",Royal Berkshire NHS Foundation Trus
http://statistics.data.gov.uk/id/local-authority/38,Oxfordshire County Council,CHC Fast Track - Care Homes - Over 65,12/10/2022,5687,,3111267779,"-4,207.14",LAWTON GROUP LTD
http://statistics.data.gov.uk/id/local-authority/38,Oxfordshire County Council,Support at Home U65 Learning Disability,12/10/2022,5537,Payments to Other Establishments,3111269932,"-4,194.69",Foxes Academy Ltd
http://statistics.data.gov.uk/id/local-authority/38,Oxfordshire County Council,Care Homes - Over 65 Physical Sypport,12/10/2022,5687,,3111265855,"-4,163.32",ACER HEALTHCARE LTD
http://statistics.data.gov.uk/id/local-authority/38,Oxfordshire County Council,Support at Home U65 Learning Disability,12/10/2022,5688,,3111268002,"-4,092.41",SEEABILITY
http://statistics.data.gov.uk/id/local-authority/38,Oxfordshire County Council,Support at Home U65 Learning Disability,12/10/2022,5537,Payments to Other Establishments,3111269939,"-4,051.01",Foxes Academy Ltd
http://statistics.data.gov.uk/id/local-authority/38,Oxfordshire County Council,Funded Nursing Care  - Over 65,12/10/2022,5692,,3111269660,"-4,004.49",The Triangle Nursing Home
http://statistics.data.gov.uk/id/local-authority/38,Oxfordshire County Council,Support at Home U65 Learning Disability,12/10/2022,5537,Payments to Other Establishments,3111269926,"-3,936.17",Derwen College
http://statistics.data.gov.uk/id/local-authority/38,Oxfordshire County Council,Funded Nursing Care  - Over 65,12/10/2022,5692,,3111269273,"-3,735.53",Stowford House
http://statistics.data.gov.uk/id/local-authority/38,Oxfordshire County Council,Funded Nursing Care  - Over 65,14/10/2022,5692,,3111270918,"-3,645.88",Tall Trees
http://statistics.data.gov.uk/id/local-authority/38,Oxfordshire County Council,Care Homes - Over 65 Physical Sypport,12/10/2022,5687,,3111269288,"-3,630.99",Stowford House
http://statistics.data.gov.uk/id/local-authority/38,Oxfordshire County Council,Care Homes - Under 65 Memory & Cognition,12/10/2022,5686,,3111266610,"-3,614.29",CARE UK COMMUNITY PARTNERSHIPS LIMI
http://statistics.data.gov.uk/id/local-authority/38,Oxfordshire County Council,Support at Home U65 Learning Disability,12/10/2022,5688,,3111267938,"-3,576.26",Dimensions (UK) Ltd
http://statistics.data.gov.uk/id/local-authority/38,Oxfordshire County Council,Care Homes - Over 65 Physical Sypport,12/10/2022,5687,,3111266669,"-3,480.66",Orders of St John
http://statistics.data.gov.uk/id/local-authority/38,Oxfordshire County Council,Support at Home U65 HFA,12/10/2022,5688,,3111268280,"-3,477.39",The Brandon Trust
http://statistics.data.gov.uk/id/local-authority/38,Oxfordshire County Council,Care Homes - Over 65 Memory & Cognition,12/10/2022,5687,,3111266432,"-3,288.21",METHODIST HOMES
http://statistics.data.gov.uk/id/local-authority/38,Oxfordshire County Council,EARLY YEARS SALARIES,20/10/2022,3103,Other Training Courses and Qualification,2201039877,"-3,228.00",THE OPEN UNIVERSITY
http://statistics.data.gov.uk/id/local-authority/38,Oxfordshire County Council,Continuing Care - Support at Home - U65,12/10/2022,5691,,3111265563,"-3,041.80",Bluebird Care (Oxford South & West)
http://statistics.data.gov.uk/id/local-authority/38,Oxfordshire County Council,Household Support Fund,17/10/2022,7690,Additional Grant for Schools,3111271258,"-2,970.00",The Warriner Multi Academy Trust
http://statistics.data.gov.uk/id/local-authority/38,Oxfordshire County Council,Continuing Care - Care Homes - 65+,12/10/2022,5687,,3111266039,"-2,800.01",Elysium Neurological Services (Badb
http://statistics.data.gov.uk/id/local-authority/38,Oxfordshire County Council,Care Homes - Over 65 Mental Health,24/10/2022,5685,B*Cycle tracks,3111273943,"-2,755.07",BARCHESTER HEALTHCARE LTD
http://statistics.data.gov.uk/id/local-authority/38,Oxfordshire County Council,CHC Fast Track - Sup at Homes - Over 65,21/10/2022,5691,,3111273692,"-2,750.00",Joining Hands Healthcare Ltd
http://statistics.data.gov.uk/id/local-authority/38,Oxfordshire County Council,Funded Nursing Care  - Over 65,12/10/2022,5692,,3111269248,"-2,749.35",Barchester Healthcare Homes Ltd
http://statistics.data.gov.uk/id/local-authority/38,Oxfordshire County Council,Support at Home U65 Learning Disability,12/10/2022,5690,,3111265565,"-2,740.39",ADVANCE HOUSING & SUPPORT LTD
http://statistics.data.gov.uk/id/local-authority/38,Oxfordshire County Council,Support at Home U65 Other /Soc Isolation,12/10/2022,5688,,3111267431,"-2,581.92",The Camden Society
http://statistics.data.gov.uk/id/local-authority/38,Oxfordshire County Council,Support at Home U65 Physical Support,14/10/2022,5687,,3111270915,"-2,578.57",Cherwood House Care Centre
http://statistics.data.gov.uk/id/local-authority/38,Oxfordshire County Council,Independent Foster,19/10/2022,5559,,3111272731,"-2,571.86",Compass Fostering South Limited
http://statistics.data.gov.uk/id/local-authority/38,Oxfordshire County Council,Care Homes - Over 65 Memory & Cognition,12/10/2022,5686,,3111268957,"-2,571.43",Newland House
http://statistics.data.gov.uk/id/local-authority/38,Oxfordshire County Council,LAC PUPIL PREMIUM,21/10/2022,5537,Payments to Other Establishments,3111273471,"-2,555.00",Stratton Upper School
http://statistics.data.gov.uk/id/local-authority/38,Oxfordshire County Council,LAC PUPIL PREMIUM,21/10/2022,5537,Payments to Other Establishments,3111273472,"-2,555.00",Stratton Upper School
http://statistics.data.gov.uk/id/local-authority/38,Oxfordshire County Council,CHC Fast Track - Care Homes - Over 65,12/10/2022,5687,,3111268062,"-2,498.79",Gracewell Healthcare 3 Ltd
http://statistics.data.gov.uk/id/local-authority/38,Oxfordshire County Council,Care Homes - Over 65 Memory & Cognition,12/10/2022,5685,B*Cycle tracks,3111266159,"-2,492.36",Beech Court Nursing Home
http://statistics.data.gov.uk/id/local-authority/38,Oxfordshire County Council,Support at Home 65+ Physical Support,12/10/2022,5685,B*Cycle tracks,3111267468,"-2,417.91",Fewcott Healthcare Ltd
http://statistics.data.gov.uk/id/local-authority/38,Oxfordshire County Council,Care Homes - Over 65 Physical Sypport,12/10/2022,5687,,3111267711,"-2,400.00",Freeland House
http://statistics.data.gov.uk/id/local-authority/38,Oxfordshire County Council,Support at Home 65+ Physical Support,12/10/2022,5686,,3111266426,"-2,382.00",Orders of St John
http://statistics.data.gov.uk/id/local-authority/38,Oxfordshire County Council,STI TESTING+TREATMEN,11/10/2022,4940,Other Services,3111262908,"-2,349.00",Royal Berkshire NHS Foundation Trus
http://statistics.data.gov.uk/id/local-authority/38,Oxfordshire County Council,Care Homes - Under 65 Leaning Disability,12/10/2022,5687,,3111269698,"-2,329.67",Valorum Care Limited
http://statistics.data.gov.uk/id/local-authority/38,Oxfordshire County Council,Continuing Care - Support at Home - U65,07/10/2022,5691,,3111262538,"-2,323.44",Better Healthcare Services
http://statistics.data.gov.uk/id/local-authority/38,Oxfordshire County Council,Continuing Care - Support at Home - U65,07/10/2022,5691,,3111262539,"-2,323.44",Better Healthcare Services
http://statistics.data.gov.uk/id/local-authority/38,Oxfordshire County Council,CHC Fast Track - Sup at Homes - Over 65,28/10/2022,5691,,3111277494,"-2,303.47",Caremark (West Oxfordshire & Cherwe
http://statistics.data.gov.uk/id/local-authority/38,Oxfordshire County Council,Funded Nursing Care  - Over 65,12/10/2022,5692,,3111268150,"-2,211.44",Green Pastures Christian NH
http://statistics.data.gov.uk/id/local-authority/38,Oxfordshire County Council,Pool Cars,06/10/2022,4270,HTM / Other Vehicle - Hire Charges,2201034512,"-2,207.81",LeasePlan UK Ltd t/a Automotive Lea
http://statistics.data.gov.uk/id/local-authority/38,Oxfordshire County Council,Pool Cars,06/10/2022,4270,HTM / Other Vehicle - Hire Charges,2201034515,"-2,160.58",LeasePlan UK Ltd t/a Automotive Lea
http://statistics.data.gov.uk/id/local-authority/38,Oxfordshire County Council,Care Homes - Over 65 Physical Sypport,12/10/2022,5687,,3111266621,"-2,118.66",Orders of St John
http://statistics.data.gov.uk/id/local-authority/38,Oxfordshire County Council,Support at Home U65 Other /Soc Isolation,12/10/2022,5688,,3111269966,"-2,082.50",Brook House Residential
http://statistics.data.gov.uk/id/local-authority/38,Oxfordshire County Council,Care Homes - Over 65 Physical Sypport,12/10/2022,5687,,3111268925,"-2,074.85",Mill House Nursing Home
http://statistics.data.gov.uk/id/local-authority/38,Oxfordshire County Council,Support at Home 65+ Physical Support,11/10/2022,5699,,3111265134,"-2,046.38",YOD Ltd
http://statistics.data.gov.uk/id/local-authority/38,Oxfordshire County Council,Family Solutions Plus Non-staff - North,19/10/2022,4859,Medical and Counselling Fees,2201038726,"-2,000.00",THE DARE2DREAM FOUNDATION
http://statistics.data.gov.uk/id/local-authority/38,Oxfordshire County Council,Continuing Care - Support at Home - U65,07/10/2022,5691,,3111262540,"-1,984.61",Better Healthcare Services
http://statistics.data.gov.uk/id/local-authority/38,Oxfordshire County Council,Support at Home U65 Physical Support,11/10/2022,5699,,3111263932,"-1,984.50",Care Hearted Ltd
http://statistics.data.gov.uk/id/local-authority/38,Oxfordshire County Council,Care Homes - Over 65 Physical Sypport,12/10/2022,5685,B*Cycle tracks,3111265866,"-1,909.45",ACER HEALTHCARE LTD
http://statistics.data.gov.uk/id/local-authority/38,Oxfordshire County Council,Care Homes - Over 65 Physical Sypport,12/10/2022,5687,,3111269206,"-1,889.46",Barchester Healthcare Homes Ltd
http://statistics.data.gov.uk/id/local-authority/38,Oxfordshire County Council,CHC Fast Track - Care Homes - Over 65,12/10/2022,5687,,3111268903,"-1,885.71",Mill House Nursing Home
http://statistics.data.gov.uk/id/local-authority/38,Oxfordshire County Council,High Cost INMSS Placements,07/10/2022,5537,Payments to Other Establishments,3111262502,"-1,872.00",Chilworth House School
http://statistics.data.gov.uk/id/local-authority/38,Oxfordshire County Council,Care Homes - Over 65 Memory & Cognition,12/10/2022,5686,,3111268086,"-1,857.14",Gracewell Healthcare 3 Ltd
http://statistics.data.gov.uk/id/local-authority/38,Oxfordshire County Council,Care Homes - Over 65 Physical Sypport,12/10/2022,5687,,3111269791,"-1,841.40",SANCTUARY CARE LTD
http://statistics.data.gov.uk/id/local-authority/38,Oxfordshire County Council,Care Homes - Over 65 Physical Sypport,12/10/2022,5687,,3111266269,"-1,815.99",Orders of St John
http://statistics.data.gov.uk/id/local-authority/38,Oxfordshire County Council,Support at Home U65 Physical Support,12/10/2022,5685,B*Cycle tracks,3111269719,"-1,792.71",SANCTUARY CARE LTD
http://statistics.data.gov.uk/id/local-authority/38,Oxfordshire County Council,CHC Fast Track - Care Homes - Over 65,12/10/2022,5687,,3111269830,"-1,771.43",MARIA MALLABAND CARE GROUP
http://statistics.data.gov.uk/id/local-authority/38,Oxfordshire County Council,Support at Home 65+ Physical Support,11/10/2022,5699,,3111264982,"-1,764.00",PLL Care Services
http://statistics.data.gov.uk/id/local-authority/38,Oxfordshire County Council,Car salary sacrifice,03/10/2022,4270,HTM / Other Vehicle - Hire Charges,2201033032,"-1,702.28",Tuskerdirect Ltd
http://statistics.data.gov.uk/id/local-authority/38,Oxfordshire County Council,Support at Home 65+ Physical Support,11/10/2022,5699,,3111264876,"-1,701.00",PLL Care Services
http://statistics.data.gov.uk/id/local-authority/38,Oxfordshire County Council,Support at Home 65+ Physical Support,11/10/2022,5699,,3111263834,"-1,669.50",Agincare UK Ltd
http://statistics.data.gov.uk/id/local-authority/38,Oxfordshire County Council,SEN TRANSPORT,04/10/2022,4320,Pupil / Client Travel Reimbursement,3111261903,"-1,632.96",Redacted Personal Data
http://statistics.data.gov.uk/id/local-authority/38,Oxfordshire County Council,IBC Partnership,11/10/2022,4940,Other Services,2201036175,"-1,550.00",H3 Finance
http://statistics.data.gov.uk/id/local-authority/38,Oxfordshire County Council,Support at Home U65 Learning Disability,11/10/2022,5682,,3111262993,"-1,549.82",The Brandon Trust
http://statistics.data.gov.uk/id/local-authority/38,Oxfordshire County Council,Care Homes - Over 65 Memory & Cognition,12/10/2022,5686,,3111267306,"-1,530.00",Enstone House
http://statistics.data.gov.uk/id/local-authority/38,Oxfordshire County Council,Household Support Fund,17/10/2022,7690,Additional Grant for Schools,3111271251,"-1,530.00",The Cherwell Academy
http://statistics.data.gov.uk/id/local-authority/38,Oxfordshire County Council,Funded Nursing Care  - Over 65,12/10/2022,5692,,3111267229,"-1,494.22",CUMNOR HILL HOUSE
http://statistics.data.gov.uk/id/local-authority/38,Oxfordshire County Council,Support at Home 65+ Memory & Cognition,12/10/2022,5686,,3111266847,"-1,474.57",Orders of St John
http://statistics.data.gov.uk/id/local-authority/38,Oxfordshire County Council,Family Solutions Plus Non-staff - North,26/10/2022,4940,Other Services,2201041138,"-1,409.33",The Old Station Nursery
http://statistics.data.gov.uk/id/local-authority/38,Oxfordshire County Council,Care Homes - Over 65 Physical Sypport,12/10/2022,5685,B*Cycle tracks,3111269054,"-1,365.67",Maria Malllaband Care Group
http://statistics.data.gov.uk/id/local-authority/38,Oxfordshire County Council,Care Homes - Over 65 Physical Sypport,12/10/2022,5686,,3111266320,"-1,361.14",Orders of St John
http://statistics.data.gov.uk/id/local-authority/38,Oxfordshire County Council,Support at Home 65+ Physical Support,11/10/2022,5699,,3111263921,"-1,360.80",Care Hearted Ltd
http://statistics.data.gov.uk/id/local-authority/38,Oxfordshire County Council,GYPSY & TRAVELLER SV,24/10/2022,3951,Non System - Electricity,2201040542,"-1,350.60",EDF Energy Customers Ltd
http://statistics.data.gov.uk/id/local-authority/38,Oxfordshire County Council,Household Support Fund,17/10/2022,7690,Additional Grant for Schools,3111271207,"-1,350.00",North Oxfordshire Academy
http://statistics.data.gov.uk/id/local-authority/38,Oxfordshire County Council,Network Management Staffing,26/10/2022,3103,Other Training Courses and Qualification,2201041054,"-1,350.00",SKILLS TRAINING CENTRE
http://statistics.data.gov.uk/id/local-authority/38,Oxfordshire County Council,Continuing Care - Support at Home - U65,19/10/2022,5691,,3111272913,"-1,336.43",The Care Workshop Limited
http://statistics.data.gov.uk/id/local-authority/38,Oxfordshire County Council,Care Homes - Over 65 Physical Sypport,12/10/2022,5657,,3111267890,"-1,237.30",Godswell Park
http://statistics.data.gov.uk/id/local-authority/38,Oxfordshire County Council,Funded Nursing Care  - Over 65,12/10/2022,5692,,3111265979,"-1,225.26",Didcot Care Home Ltd
http://statistics.data.gov.uk/id/local-authority/38,Oxfordshire County Council,Care Homes - Over 65 Physical Sypport,12/10/2022,5686,,3111267235,"-1,224.00",Orders of St John
http://statistics.data.gov.uk/id/local-authority/38,Oxfordshire County Council,Support at Home 65+ Physical Support,12/10/2022,5685,B*Cycle tracks,3111266150,"-1,217.18",Beech Court Nursing Home
http://statistics.data.gov.uk/id/local-authority/38,Oxfordshire County Council,Delegated Health Tasks  - Over 65,24/10/2022,5691,,3111273838,"-1,200.00",Clark Care Services
http://statistics.data.gov.uk/id/local-authority/38,Oxfordshire County Council,Support at Home U65 Learning Disability,11/10/2022,5682,,3111262979,"-1,197.28",The Brandon Trust
http://statistics.data.gov.uk/id/local-authority/38,Oxfordshire County Council,CHC Fast Track - Care Homes - Over 65,12/10/2022,5687,,3111269145,"-1,178.57",SANCTUARY CARE PROPERTY (2) LTD
http://statistics.data.gov.uk/id/local-authority/38,Oxfordshire County Council,FAM GRP CONFERENCES,14/10/2022,4940,Other Services,2201037251,"-1,167.00",Emma Wood
http://statistics.data.gov.uk/id/local-authority/38,Oxfordshire County Council,LEGAL BUDGET,06/10/2022,5251,Legal Costs,2201034562,"-1,148.20",CARTER BROWN THE EXPERT SERVICE
http://statistics.data.gov.uk/id/local-authority/38,Oxfordshire County Council,Support at Home 65+ Physical Support,12/10/2022,5686,,3111267519,"-1,134.29",Orders of St John
http://statistics.data.gov.uk/id/local-authority/38,Oxfordshire County Council,POST 16 SEN,31/10/2022,4330,Transport to School Activities,3111277791,"-1,117.18",Redacted Personal Data
http://statistics.data.gov.uk/id/local-authority/38,Oxfordshire County Council,Funded Nursing Care  - Over 65,12/10/2022,5692,,3111266307,"-1,075.84",Bridge House
http://statistics.data.gov.uk/id/local-authority/38,Oxfordshire County Council,Support at Home 65+ Physical Support,11/10/2022,5699,,3111264960,"-1,058.40",PLL Care Services
http://statistics.data.gov.uk/id/local-authority/38,Oxfordshire County Council,COMMUNITY & ROAD SAFETY,24/10/2022,3103,Other Training Courses and Qualification,2201040699,"-1,035.00",The Bike Academy (South) Ltd
http://statistics.data.gov.uk/id/local-authority/38,Oxfordshire County Council,PROCUREMENT,20/10/2022,4685,Clothing and Uniforms,2201039298,"-1,020.00",BRISTOL UNIFORMS LTD
http://statistics.data.gov.uk/id/local-authority/38,Oxfordshire County Council,DISABILITIES TEAM S,20/10/2022,5520,Payments to Voluntary bodies,2201039826,-990,Autism Mentors
http://statistics.data.gov.uk/id/local-authority/38,Oxfordshire County Council,Support at Home U65 Physical Support,11/10/2022,5699,,3111263944,-932.4,Care Hearted Ltd
http://statistics.data.gov.uk/id/local-authority/38,Oxfordshire County Council,Support at Home U65 Physical Support,11/10/2022,5699,,3111264107,-882,CaringPlus Healthcare Services Ltd
http://statistics.data.gov.uk/id/local-authority/38,Oxfordshire County Council,Funded Nursing Care  - Over 65,12/10/2022,5692,,3111266609,-866.64,Orders of St John
http://statistics.data.gov.uk/id/local-authority/38,Oxfordshire County Council,FOSTERING MAIN,25/10/2022,5548,B*Fostering - Special Rates & Plus Amou,3111274396,-857.98,Redacted Personal Data
http://statistics.data.gov.uk/id/local-authority/38,Oxfordshire County Council,Support at Home 65+ Physical Support,12/10/2022,5686,,3111267032,-856,Orders of St John
http://statistics.data.gov.uk/id/local-authority/38,Oxfordshire County Council,Care Homes - Over 65 Physical Sypport,12/10/2022,5687,,3111265825,-854.58,Abbey Crest Nursing Home
http://statistics.data.gov.uk/id/local-authority/38,Oxfordshire County Council,Support at Home 65+ Physical Support,11/10/2022,5699,,3111265062,-831.95,Xperience Recruitment Ltd
http://statistics.data.gov.uk/id/local-authority/38,Oxfordshire County Council,Household Support Fund,17/10/2022,7690,Additional Grant for Schools,3111271115,-810,Eynsham Partnership Academy
http://statistics.data.gov.uk/id/local-authority/38,Oxfordshire County Council,Household Support Fund,17/10/2022,7690,Additional Grant for Schools,3111271152,-810,Faringdon Academy Schools
http://statistics.data.gov.uk/id/local-authority/38,Oxfordshire County Council,Household Support Fund,17/10/2022,7690,Additional Grant for Schools,3111271254,-810,The Gallery Trust
http://statistics.data.gov.uk/id/local-authority/38,Oxfordshire County Council,Household Support Fund,17/10/2022,7690,Additional Grant for Schools,3111271259,-810,Tower Hill School
http://statistics.data.gov.uk/id/local-authority/38,Oxfordshire County Council,Household Support Fund,17/10/2022,7690,Additional Grant for Schools,3111271260,-810,Tower Hill School
http://statistics.data.gov.uk/id/local-authority/38,Oxfordshire County Council,Household Support Fund,17/10/2022,7690,Additional Grant for Schools,3111271281,-810,Wykham Park Academy
http://statistics.data.gov.uk/id/local-authority/38,Oxfordshire County Council,Early Years SEN Funding,11/10/2022,5537,Payments to Other Establishments,3111262821,-808.5,Little Peeple Nursery
http://statistics.data.gov.uk/id/local-authority/38,Oxfordshire County Council,Funded Nursing Care  - Over 65,12/10/2022,5692,,3111266301,-806.88,Orders of St John
http://statistics.data.gov.uk/id/local-authority/38,Oxfordshire County Council,SPECIAL GUARDIANSHIP,04/10/2022,5661,B*Carriageway pre surf. dressing patchin,3111261272,-797.55,Redacted Personal Data
http://statistics.data.gov.uk/id/local-authority/38,Oxfordshire County Council,Support at Home 65+ Physical Support,12/10/2022,5686,,3111266477,-794,Orders of St John
http://statistics.data.gov.uk/id/local-authority/38,Oxfordshire County Council,Continuing Care - Support at Home - U65,28/10/2022,5691,,3111277505,-791.67,KIT Mobility Taxis Oxford Ltd
http://statistics.data.gov.uk/id/local-authority/38,Oxfordshire County Council,Support at Home 65+ Memory & Cognition,11/10/2022,5699,,3111263847,-756,Calvary Care Ltd
http://statistics.data.gov.uk/id/local-authority/38,Oxfordshire County Council,Support at Home 65+ Memory & Cognition,12/10/2022,5686,,3111267102,-749,Orders of St John
http://statistics.data.gov.uk/id/local-authority/38,Oxfordshire County Council,Funded Nursing Care  - Over 65,12/10/2022,5692,,3111267419,-747.11,Orders of St John
http://statistics.data.gov.uk/id/local-authority/38,Oxfordshire County Council,Household Support Fund,17/10/2022,7690,Additional Grant for Schools,3111271112,-720,Abingdon & Witney College
http://statistics.data.gov.uk/id/local-authority/38,Oxfordshire County Council,SHORT BREAK ACTIVITIES,12/10/2022,5526,Payments to Private Contractors,2201036526,-706.86,Earlyworld Ltd
http://statistics.data.gov.uk/id/local-authority/38,Oxfordshire County Council,Support at Home 65+ Physical Support,11/10/2022,5699,,3111264896,-705.6,PLL Care Services
http://statistics.data.gov.uk/id/local-authority/38,Oxfordshire County Council,LD Continuing Care - Sup at Home - U65,14/10/2022,5691,,3111270874,-704.2,Paterson Recruitment
http://statistics.data.gov.uk/id/local-authority/38,Oxfordshire County Council,OPERATIONS,21/10/2022,4270,HTM / Other Vehicle - Hire Charges,2201039980,-700,N.L. Matthews
http://statistics.data.gov.uk/id/local-authority/38,Oxfordshire County Council,Support at Home 65+ Physical Support,12/10/2022,5687,,3111267687,-685.71,Freeland House
http://statistics.data.gov.uk/id/local-authority/38,Oxfordshire County Council,Support at Home 65+ Physical Support,12/10/2022,5686,,3111266399,-680.57,Orders of St John
http://statistics.data.gov.uk/id/local-authority/38,Oxfordshire County Council,STI TESTING+TREATMEN,10/10/2022,4940,Other Services,3111262615,-679.71,Chelsea and Westminster Hospital NH
http://statistics.data.gov.uk/id/local-authority/38,Oxfordshire County Council,Covid 19 CHC,12/10/2022,5687,,3111266139,-658.97,Beacher Hall Nursing Centre
http://statistics.data.gov.uk/id/local-authority/38,Oxfordshire County Council,Support at Home U65 MH OBC Contract,20/10/2022,5691,,3111273145,-644.5,Care With Dignity Partnerships
http://statistics.data.gov.uk/id/local-authority/38,Oxfordshire County Council,Household Support Fund,17/10/2022,7690,Additional Grant for Schools,3111271225,-630,The Gallery Trust
http://statistics.data.gov.uk/id/local-authority/38,Oxfordshire County Council,FOSTERING MAIN,25/10/2022,5532,B*Fostering - Loan Equipment,3111274251,-618,Redacted Personal Data
http://statistics.data.gov.uk/id/local-authority/38,Oxfordshire County Council,MAINSTREAM-PRIMARY,28/10/2022,4330,Transport to School Activities,3111277573,-616.67,Go Green Taxis
http://statistics.data.gov.uk/id/local-authority/38,Oxfordshire County Council,Support at Home U65 Physical Support,12/10/2022,5696,,3111266850,-615.51,Radis Community Care
http://statistics.data.gov.uk/id/local-authority/38,Oxfordshire County Council,Care Homes - Over 65 Physical Sypport,12/10/2022,5686,,3111268725,-607.14,Leafield Rest Home
http://statistics.data.gov.uk/id/local-authority/38,Oxfordshire County Council,Care Homes - Over 65 Physical Sypport,12/10/2022,5687,,3111267411,-605.33,Orders of St John
http://statistics.data.gov.uk/id/local-authority/38,Oxfordshire County Council,LD Continuing Care - Sup at Home - U65,20/10/2022,5691,,3111273087,-600,KIT Mobility Taxis Oxford Ltd
http://statistics.data.gov.uk/id/local-authority/38,Oxfordshire County Council,Funded Nursing Care  - Over 65,12/10/2022,5692,,3111268100,-597.69,Green Gates NH (BUPA)
http://statistics.data.gov.uk/id/local-authority/38,Oxfordshire County Council,LEGAL BUDGET,12/10/2022,5251,Legal Costs,2201036515,-583,Dr Stephanie Boardman (Dr Forster P
http://statistics.data.gov.uk/id/local-authority/38,Oxfordshire County Council,FOSTERING MAIN,25/10/2022,5549,B*Fostering Allowance - Regulation 38,3111274671,-583,Redacted Personal Data
http://statistics.data.gov.uk/id/local-authority/38,Oxfordshire County Council,Support at Home 65+ Physical Support,12/10/2022,5686,,3111266018,-567.14,Orders of St John
http://statistics.data.gov.uk/id/local-authority/38,Oxfordshire County Council,Support at Home U65 Other /Soc Isolation,19/10/2022,5688,,3111272600,-558,KEY2 FUTURES LTD
http://statistics.data.gov.uk/id/local-authority/38,Oxfordshire County Council,Staff Travel Benefits,10/10/2022,4340,Staff and Volunteer Travel Expenses - General,2201035543,-550,Stagecoach Services Ltd.
http://statistics.data.gov.uk/id/local-authority/38,Oxfordshire County Council,Household Support Fund,17/10/2022,7690,Additional Grant for Schools,3111271151,-540,Faringdon Academy Schools
http://statistics.data.gov.uk/id/local-authority/38,Oxfordshire County Council,Support at Home U65 Other /Soc Isolation,19/10/2022,5688,,3111272598,-540,KEY2 FUTURES LTD
http://statistics.data.gov.uk/id/local-authority/38,Oxfordshire County Council,Household Support Fund,17/10/2022,7690,Additional Grant for Schools,3111271218,-540,Rose Hill Primary School
http://statistics.data.gov.uk/id/local-authority/38,Oxfordshire County Council,Funded Nursing Care  - Over 65,12/10/2022,5692,,3111269199,-537.92,Barchester Healthcare Homes Ltd
http://statistics.data.gov.uk/id/local-authority/38,Oxfordshire County Council,Funded Nursing Care  - Over 65,12/10/2022,5692,,3111266623,-537.92,CARE UK COMMUNITY PARTNERSHIPS LIMI
http://statistics.data.gov.uk/id/local-authority/38,Oxfordshire County Council,PROCUREMENT,20/10/2022,4685,Clothing and Uniforms,2201039304,-500,BRISTOL UNIFORMS LTD
http://statistics.data.gov.uk/id/local-authority/38,Oxfordshire County Council,PROCUREMENT,20/10/2022,4685,Clothing and Uniforms,2201039336,-500,BRISTOL UNIFORMS LTD
http://statistics.data.gov.uk/id/local-authority/38,Oxfordshire County Council,SEN TRANSPORT,03/10/2022,5227,Other Transport Arrangements,3111261039,500,Ambassador cars
http://statistics.data.gov.uk/id/local-authority/38,Oxfordshire County Council,LAC PUPIL PREMIUM,17/10/2022,5537,Payments to Other Establishments,3111271045,500,Barnwell School
http://statistics.data.gov.uk/id/local-authority/38,Oxfordshire County Council,DISABILITIES TEAM S,10/10/2022,5227,Other Transport Arrangements,3111262658,500,Blackstar Chauffeur Ltd T/A Blackst
http://statistics.data.gov.uk/id/local-authority/38,Oxfordshire County Council,Councillors Priorities Fund,07/10/2022,4940,Other Services,3111262486,500,DAMASCUS PCC
http://statistics.data.gov.uk/id/local-authority/38,Oxfordshire County Council,LEGAL SERVICES,25/10/2022,5251,Legal Costs,2201040982,500,Edward Elton
http://statistics.data.gov.uk/id/local-authority/38,Oxfordshire County Council,TRADING STANDARDS,10/10/2022,5190,Subscriptions,2201035175,500,Food and Farming Compliance
http://statistics.data.gov.uk/id/local-authority/38,Oxfordshire County Council,Wokingham Adoption Support Fund,25/10/2022,4861,Hired and Contracted Services,2201040774,500,Graham Kennedy
http://statistics.data.gov.uk/id/local-authority/38,Oxfordshire County Council,Fostering Panel,04/10/2022,4861,Hired and Contracted Services,2201033461,500,Green Light People Solutions
http://statistics.data.gov.uk/id/local-authority/38,Oxfordshire County Council,Fostering Panel,04/10/2022,4861,Hired and Contracted Services,2201033463,500,Green Light People Solutions
http://statistics.data.gov.uk/id/local-authority/38,Oxfordshire County Council,Fostering Panel,04/10/2022,4861,Hired and Contracted Services,2201033464,500,Green Light People Solutions
http://statistics.data.gov.uk/id/local-authority/38,Oxfordshire County Council,Fostering Panel,04/10/2022,4861,Hired and Contracted Services,2201033465,500,Green Light People Solutions
http://statistics.data.gov.uk/id/local-authority/38,Oxfordshire County Council,Family Solutions Plus Non-staff - South,13/10/2022,5227,Other Transport Arrangements,3111270328,500,Henley Taxis Ltd
http://statistics.data.gov.uk/id/local-authority/38,Oxfordshire County Council,LAC PUPIL PREMIUM,17/10/2022,5537,Payments to Other Establishments,3111271053,500,Ludlow CE School
http://statistics.data.gov.uk/id/local-authority/38,Oxfordshire County Council,LAC PUPIL PREMIUM,13/10/2022,5380,"Author, Speaker and Lecturer Fees",2201036937,500,Nat Assoc of Virtual School Heads
http://statistics.data.gov.uk/id/local-authority/38,Oxfordshire County Council,L&D CORE PROGRAMME,04/10/2022,3105,Training related expenditure,3111261103,500,OCC One Time Vendor
http://statistics.data.gov.uk/id/local-authority/38,Oxfordshire County Council,,24/10/2022,1448,Blackfield Inc & Exp A/c,3111273835,500,OCC One Time Vendor
http://statistics.data.gov.uk/id/local-authority/38,Oxfordshire County Council,HIGHWAYS GENERAL,24/10/2022,5055,Insurance Costs,3111273839,500,OCC One Time Vendor
http://statistics.data.gov.uk/id/local-authority/38,Oxfordshire County Council,L&D CORE PROGRAMME,24/10/2022,3105,Training related expenditure,3111273942,500,OCC One Time Vendor
http://statistics.data.gov.uk/id/local-authority/38,Oxfordshire County Council,LANDLORD & TENANT,01/10/2022,3945,Rent,3500088065,500,Oxford City Council
http://statistics.data.gov.uk/id/local-authority/38,Oxfordshire County Council,TRO TEAM,04/10/2022,4861,Hired and Contracted Services,2201033732,500,Oxford Direct Services Trading Ltd
http://statistics.data.gov.uk/id/local-authority/38,Oxfordshire County Council,Support at Home U65 Physical Support,10/10/2022,5227,Other Transport Arrangements,3111262734,500,Oxfordlinks
http://statistics.data.gov.uk/id/local-authority/38,Oxfordshire County Council,Support at Home U65 Learning Disability,18/10/2022,5227,Other Transport Arrangements,3111271534,500,Oxon Transport Services Ltd
http://statistics.data.gov.uk/id/local-authority/38,Oxfordshire County Council,SEN TRANSPORT,20/10/2022,5227,Other Transport Arrangements,3111273308,500,Phoenixx Cars Ltd
http://statistics.data.gov.uk/id/local-authority/38,Oxfordshire County Council,LAC PUPIL PREMIUM,17/10/2022,5537,Payments to Other Establishments,3111271027,500,The Merchant Taylors' Oxfordshire
http://statistics.data.gov.uk/id/local-authority/38,Oxfordshire County Council,Support at Home 65+ Physical Support,05/10/2022,5227,Other Transport Arrangements,3111261931,500,Unitaxi Ltd
http://statistics.data.gov.uk/id/local-authority/38,Oxfordshire County Council,Councillors Priorities Fund,28/10/2022,4940,Other Services,3111277397,500,Witney Grief Support
http://statistics.data.gov.uk/id/local-authority/38,Oxfordshire County Council,Councillors Priorities Fund,04/10/2022,4940,Other Services,3111261089,500,WOPA
http://statistics.data.gov.uk/id/local-authority/38,Oxfordshire County Council,Support at Home 65+ Mental Health,11/10/2022,5698,,3111264746,500.05,Oxford Private Care
http://statistics.data.gov.uk/id/local-authority/38,Oxfordshire County Council,VOIDS/VACANCY COSTS,12/10/2022,3945,Rent,3111266362,500.25,Oxford Citizens Housing Association
http://statistics.data.gov.uk/id/local-authority/38,Oxfordshire County Council,Support at Home U65 Learning Disability,12/10/2022,5690,,3111267740,500.66,Autism at Kingwood Limited
http://statistics.data.gov.uk/id/local-authority/38,Oxfordshire County Council,Support at Home U65 Memory & Cognition,25/10/2022,5899,Social Care - Direct Payments,3111274880,501.24,Redacted Personal Data
http://statistics.data.gov.uk/id/local-authority/38,Oxfordshire County Council,Homes for Ukraine - Education,05/10/2022,5537,Payments to Other Establishments,3111262080,501.48,OCC One Time Vendor
http://statistics.data.gov.uk/id/local-authority/38,Oxfordshire County Council,Homes for Ukraine - Education,05/10/2022,5537,Payments to Other Establishments,3111262081,501.48,OCC One Time Vendor
http://statistics.data.gov.uk/id/local-authority/38,Oxfordshire County Council,Support at Home 65+ Physical Support,11/10/2022,5699,,3111264482,501.9,Greigcare Home Service
http://statistics.data.gov.uk/id/local-authority/38,Oxfordshire County Council,Oxfordshire Adoption Support Fund,28/10/2022,4861,Hired and Contracted Services,2201041388,502,Gabrielle Lees
http://statistics.data.gov.uk/id/local-authority/38,Oxfordshire County Council,Support at Home 65+ Physical Support,27/10/2022,5696,,3111276839,502.74,Orders of St John Care Trust
http://statistics.data.gov.uk/id/local-authority/38,Oxfordshire County Council,Support at Home U65 Learning Disability,11/10/2022,5682,,3111262973,502.97,The Brandon Trust
http://statistics.data.gov.uk/id/local-authority/38,Oxfordshire County Council,Support at Home 65+ Other /Soc Isolation,11/10/2022,5689,,3111264985,503.81,Greigcare Home Service
http://statistics.data.gov.uk/id/local-authority/38,Oxfordshire County Council,SEN TRANSPORT,28/10/2022,5227,Other Transport Arrangements,3111277537,504,Banbury Taxis
http://statistics.data.gov.uk/id/local-authority/38,Oxfordshire County Council,Support at Home 65+ Physical Support,11/10/2022,5699,,3111264122,504,CaringPlus Healthcare Services Ltd
http://statistics.data.gov.uk/id/local-authority/38,Oxfordshire County Council,Support at Home 65+ Memory & Cognition,11/10/2022,5699,,3111264269,504,CaringPlus Healthcare Services Ltd
http://statistics.data.gov.uk/id/local-authority/38,Oxfordshire County Council,Support at Home U65 Memory & Cognition,14/10/2022,5693,,3111270667,504,Casa Care Ltd
http://statistics.data.gov.uk/id/local-authority/38,Oxfordshire County Council,Support at Home U65 Physical Support,19/10/2022,5693,,3111272589,504,Direct Link Care Ltd
http://statistics.data.gov.uk/id/local-authority/38,Oxfordshire County Council,Support at Home 65+ Physical Support,12/10/2022,5693,,3111265502,504,HEALTHCARE ACCESS LTD
http://statistics.data.gov.uk/id/local-authority/38,Oxfordshire County Council,Support at Home U65 Physical Support,12/10/2022,5693,,3111265511,504,HEALTHCARE ACCESS LTD
http://statistics.data.gov.uk/id/local-authority/38,Oxfordshire County Council,Support at Home U65 Learning Disability,05/10/2022,5693,,3111262064,504,The Care Workshop Limited
http://statistics.data.gov.uk/id/local-authority/38,Oxfordshire County Council,Support at Home U65 HFA,25/10/2022,5899,Social Care - Direct Payments,3111274767,504.32,Connection Support (Oxford)
http://statistics.data.gov.uk/id/local-authority/38,Oxfordshire County Council,Support at Home U65 Physical Support,11/10/2022,5699,,3111264438,505.11,Eleanor Nursing & Social Care Ltd
http://statistics.data.gov.uk/id/local-authority/38,Oxfordshire County Council,Support at Home U65 Learning Disability,11/10/2022,5682,,3111262954,505.77,The Brandon Trust
http://statistics.data.gov.uk/id/local-authority/38,Oxfordshire County Council,FOSTERING MAIN,11/10/2022,5549,B*Fostering Allowance - Regulation 38,3111264050,506,Redacted Personal Data
http://statistics.data.gov.uk/id/local-authority/38,Oxfordshire County Council,CHC Fast Track - Sup at Homes - Over 65,14/10/2022,5691,,3111270822,506,Sue Ryder
http://statistics.data.gov.uk/id/local-authority/38,Oxfordshire County Council,Support at Home 65+ Physical Support,18/10/2022,5899,Social Care - Direct Payments,3111271587,506.04,Redacted Personal Data
http://statistics.data.gov.uk/id/local-authority/38,Oxfordshire County Council,,14/10/2022,1448,Blackfield Inc & Exp A/c,3111270630,507.3,OCC One Time Vendor
http://statistics.data.gov.uk/id/local-authority/38,Oxfordshire County Council,SM DISABILITIES,26/10/2022,5554,Childrens' Social Care - Direct Payments,3111276485,507.64,Purple Conversation Com In Co (DP)
http://statistics.data.gov.uk/id/local-authority/38,Oxfordshire County Council,Support at Home 65+ Physical Support,11/10/2022,5689,,3111265236,507.78,PLL Care Services
http://statistics.data.gov.uk/id/local-authority/38,Oxfordshire County Council,Support at Home U65 Learning Disability,25/10/2022,5899,Social Care - Direct Payments,3111275709,507.84,Purple Conversation Com In Co (DP)
http://statistics.data.gov.uk/id/local-authority/38,Oxfordshire County Council,Support at Home U65 Physical Support,11/10/2022,5689,,3111264341,508.62,Bicester PA and Care LLP
http://statistics.data.gov.uk/id/local-authority/38,Oxfordshire County Council,Support at Home 65+ Physical Support,19/10/2022,5693,,3111272570,508.73,Care with Care Ltd
http://statistics.data.gov.uk/id/local-authority/38,Oxfordshire County Council,Support at Home U65 HFA,25/10/2022,5899,Social Care - Direct Payments,3111275265,508.8,Redacted Personal Data
http://statistics.data.gov.uk/id/local-authority/38,Oxfordshire County Council,Support at Home U65 Physical Support,12/10/2022,5690,,3111267894,508.84,The Camden Society
http://statistics.data.gov.uk/id/local-authority/38,Oxfordshire County Council,Support at Home U65 Learning Disability,12/10/2022,5690,,3111267918,508.84,The Camden Society
http://statistics.data.gov.uk/id/local-authority/38,Oxfordshire County Council,Support at Home 65+ Physical Support,11/10/2022,5689,,3111265157,508.86,My Carer Ltd
http://statistics.data.gov.uk/id/local-authority/38,Oxfordshire County Council,Support at Home U65 Physical Support,14/10/2022,5685,B*Cycle tracks,3111270913,509.2,Cherwood House Care Centre
http://statistics.data.gov.uk/id/local-authority/38,Oxfordshire County Council,Support at Home 65+ Physical Support,12/10/2022,5693,,3111265445,509.46,AVR (Oxon) Ltd
http://statistics.data.gov.uk/id/local-authority/38,Oxfordshire County Council,FOSTERING MAIN,04/10/2022,5227,Other Transport Arrangements,3111261240,509.71,Redacted Personal Data
http://statistics.data.gov.uk/id/local-authority/38,Oxfordshire County Council,SEN TRANSPORT,05/10/2022,5227,Other Transport Arrangements,3111261919,510,Faringdon Cars
http://statistics.data.gov.uk/id/local-authority/38,Oxfordshire County Council,ON ST PARK OXFD P&D,18/10/2022,4861,Hired and Contracted Services,2201038420,510,Flowbird Smart City
http://statistics.data.gov.uk/id/local-authority/38,Oxfordshire County Council,Reading Adoption Support Fund,10/10/2022,4861,Hired and Contracted Services,2201035508,510,Graham Kennedy
http://statistics.data.gov.uk/id/local-authority/38,Oxfordshire County Council,FOSTERING MAIN,11/10/2022,5549,B*Fostering Allowance - Regulation 38,3111263566,510,Redacted Personal Data
http://statistics.data.gov.uk/id/local-authority/38,Oxfordshire County Council,TRANSPORT COSTS,18/10/2022,4330,Transport to School Activities,3111271474,510,OXO Hire Ltd
http://statistics.data.gov.uk/id/local-authority/38,Oxfordshire County Council,Household Support Fund,17/10/2022,7690,Additional Grant for Schools,3111271288,510,The Gallery Trust
http://statistics.data.gov.uk/id/local-authority/38,Oxfordshire County Council,Household Support Fund,17/10/2022,7690,Additional Grant for Schools,3111271459,510,The White Horse Federation
http://statistics.data.gov.uk/id/local-authority/38,Oxfordshire County Council,Support at Home 65+ Memory & Cognition,11/10/2022,5699,,3111264176,510.3,CaringPlus Healthcare Services Ltd
http://statistics.data.gov.uk/id/local-authority/38,Oxfordshire County Council,Support at Home 65+ Physical Support,21/10/2022,5693,,3111273523,510.3,The Care Workshop Limited
http://statistics.data.gov.uk/id/local-authority/38,Oxfordshire County Council,CHC Fast Track - Sup at Homes - Over 65,25/10/2022,5691,,3111276110,510.49,Oxford Private Care
http://statistics.data.gov.uk/id/local-authority/38,Oxfordshire County Council,Support at Home 65+ Physical Support,11/10/2022,5689,,3111265264,510.57,Prestige Nursing Ltd
http://statistics.data.gov.uk/id/local-authority/38,Oxfordshire County Council,OTHER NON-HOUSEHOLD,04/10/2022,5526,Payments to Private Contractors,2201033322,511.5,Cawleys Ltd
http://statistics.data.gov.uk/id/local-authority/38,Oxfordshire County Council,VOIDS/VACANCY COSTS,12/10/2022,3787,Premises Repairs,2201036481,512,Cherwell District Council
http://statistics.data.gov.uk/id/local-authority/38,Oxfordshire County Council,Support at Home 65+ Other /Soc Isolation,26/10/2022,5693,,3111276234,512,Redacted Personal Data
http://statistics.data.gov.uk/id/local-authority/38,Oxfordshire County Council,Support at Home U65 Learning Disability,25/10/2022,5899,Social Care - Direct Payments,3111275481,512.16,Purple Conversation Com In Co (DP)
http://statistics.data.gov.uk/id/local-authority/38,Oxfordshire County Council,Community Support Service - Abingdon,06/10/2022,2040,Agency Staff,2201034376,512.4,Completely Care Ltd
http://statistics.data.gov.uk/id/local-authority/38,Oxfordshire County Council,Community Support Service - Abingdon,19/10/2022,2040,Agency Staff,2201038886,512.4,Completely Care Ltd
http://statistics.data.gov.uk/id/local-authority/38,Oxfordshire County Council,Delegated Health Tasks  - Over 65,19/10/2022,5691,,3111272925,513.65,Bluebird Care (Oxford South & West)
http://statistics.data.gov.uk/id/local-authority/38,Oxfordshire County Council,Homes for Ukraine - Education,05/10/2022,5537,Payments to Other Establishments,3111262076,513.92,OCC One Time Vendor
http://statistics.data.gov.uk/id/local-authority/38,Oxfordshire County Council,Support at Home U65 Learning Disability,25/10/2022,5899,Social Care - Direct Payments,3111275053,514.12,Redacted Personal Data
http://statistics.data.gov.uk/id/local-authority/38,Oxfordshire County Council,Support at Home U65 Physical Support,27/10/2022,5696,,3111276819,514.37,Orders of St John Care Trust
http://statistics.data.gov.uk/id/local-authority/38,Oxfordshire County Council,Support at Home U65 Physical Support,26/10/2022,5227,Other Transport Arrangements,3111276548,514.8,LINK SHIRES LTD
http://statistics.data.gov.uk/id/local-authority/38,Oxfordshire County Council,VOIDS/VACANCY COSTS,12/10/2022,3945,Rent,3111266357,515.22,Oxford Citizens Housing Association
http://statistics.data.gov.uk/id/local-authority/38,Oxfordshire County Council,VOIDS/VACANCY COSTS,12/10/2022,3945,Rent,3111266359,515.22,Oxford Citizens Housing Association
http://statistics.data.gov.uk/id/local-authority/38,Oxfordshire County Council,Oxfordshire Adoption Support Fund,25/10/2022,4861,Hired and Contracted Services,2201040859,516,SWAAY
http://statistics.data.gov.uk/id/local-authority/38,Oxfordshire County Council,Wokingham Adoption Support Fund,25/10/2022,4861,Hired and Contracted Services,2201040864,516,SWAAY
http://statistics.data.gov.uk/id/local-authority/38,Oxfordshire County Council,Support at Home U65 Other /Soc Isolation,25/10/2022,5899,Social Care - Direct Payments,3111275785,516.24,Purple Conversation Com In Co (DP)
http://statistics.data.gov.uk/id/local-authority/38,Oxfordshire County Council,Support at Home 65+ Physical Support,11/10/2022,5699,,3111263716,516.6,Agincare UK Ltd
http://statistics.data.gov.uk/id/local-authority/38,Oxfordshire County Council,Support at Home 65+ Physical Support,19/10/2022,5693,,3111272554,516.6,BETTER LIFE CARE LTD
http://statistics.data.gov.uk/id/local-authority/38,Oxfordshire County Council,Support at Home 65+ Physical Support,11/10/2022,5699,,3111263827,516.6,Bridges Home Care Ltd
http://statistics.data.gov.uk/id/local-authority/38,Oxfordshire County Council,Support at Home 65+ Physical Support,11/10/2022,5689,,3111265163,517.02,My Carer Ltd
http://statistics.data.gov.uk/id/local-authority/38,Oxfordshire County Council,Support at Home 65+ Physical Support,12/10/2022,5693,,3111265467,517.04,We-Care-Recruitment Ltd
http://statistics.data.gov.uk/id/local-authority/38,Oxfordshire County Council,COUNTY PRINT FINSHRS,06/10/2022,4705,Printing,2201034568,517.14,Lexon Group
http://statistics.data.gov.uk/id/local-authority/38,Oxfordshire County Council,Support at Home 65+ Physical Support,11/10/2022,5698,,3111264644,517.34,Oxford Private Care
http://statistics.data.gov.uk/id/local-authority/38,Oxfordshire County Council,Support at Home U65 Learning Disability,12/10/2022,5690,,3111267772,517.35,MacIntyre Care (Womaston)
http://statistics.data.gov.uk/id/local-authority/38,Oxfordshire County Council,Support at Home U65 Learning Disability,25/10/2022,5899,Social Care - Direct Payments,3111275305,517.56,Redacted Personal Data
http://statistics.data.gov.uk/id/local-authority/38,Oxfordshire County Council,Support at Home U65 Physical Support,11/10/2022,5689,,3111265125,518.12,My Carer Ltd
http://statistics.data.gov.uk/id/local-authority/38,Oxfordshire County Council,FOSTERING MAIN,11/10/2022,5549,B*Fostering Allowance - Regulation 38,3111263760,518.29,Redacted Personal Data
http://statistics.data.gov.uk/id/local-authority/38,Oxfordshire County Council,COMM DRAWDOWN FUNDNG,03/10/2022,8003,B*Consulting Engineers,2201033039,519,MORELOCK SIGNS LTD
http://statistics.data.gov.uk/id/local-authority/38,Oxfordshire County Council,Support at Home U65 Physical Support,27/10/2022,5696,,3111276817,519.24,Orders of St John Care Trust
http://statistics.data.gov.uk/id/local-authority/38,Oxfordshire County Council,Support at Home 65+ Learning Disability,27/10/2022,5696,,3111276823,519.24,Orders of St John Care Trust
http://statistics.data.gov.uk/id/local-authority/38,Oxfordshire County Council,Support at Home 65+ Physical Support,11/10/2022,5698,,3111264808,519.73,Oxfordshire Crossroads
http://statistics.data.gov.uk/id/local-authority/38,Oxfordshire County Council,Support at Home 65+ Mental Health,25/10/2022,5899,Social Care - Direct Payments,3111274778,519.84,Redacted Personal Data
http://statistics.data.gov.uk/id/local-authority/38,Oxfordshire County Council,Support at Home U65 Learning Disability,25/10/2022,5899,Social Care - Direct Payments,3111275448,519.88,Purple Conversation Com In Co (DP)
http://statistics.data.gov.uk/id/local-authority/38,Oxfordshire County Council,Support at Home U65 MH OBC Contract,25/10/2022,5899,Social Care - Direct Payments,3111276058,519.92,Purple Conversation Com In Co (DP)
http://statistics.data.gov.uk/id/local-authority/38,Oxfordshire County Council,ZEZ PILOT,17/10/2022,4861,Hired and Contracted Services,2201038006,520,Oxford Direct Services Trading Ltd
http://statistics.data.gov.uk/id/local-authority/38,Oxfordshire County Council,Support at Home U65 Learning Disability,03/10/2022,4330,Transport to School Activities,3111260923,520,Oxfordshire Travel Ltd
http://statistics.data.gov.uk/id/local-authority/38,Oxfordshire County Council,SEN Alternative Provision,12/10/2022,4878,Hired and Contracted Services (Curricul,2201036736,520,TARGETED PROVISION LTD
http://statistics.data.gov.uk/id/local-authority/38,Oxfordshire County Council,Planned Maintenance,16/10/2022,3787,Premises Repairs,2201037429,520,Windrush Door & Window Services Ltd
http://statistics.data.gov.uk/id/local-authority/38,Oxfordshire County Council,Independent Foster,12/10/2022,5559,,3111270236,520.45,FAMILY PLACEMENT.COM
http://statistics.data.gov.uk/id/local-authority/38,Oxfordshire County Council,Support at Home U65 HFA,25/10/2022,5899,Social Care - Direct Payments,3111275738,520.56,Purple Conversation Com In Co (DP)
http://statistics.data.gov.uk/id/local-authority/38,Oxfordshire County Council,Support at Home U65 HFA,25/10/2022,5899,Social Care - Direct Payments,3111275804,520.56,Purple Conversation Com In Co (DP)
http://statistics.data.gov.uk/id/local-authority/38,Oxfordshire County Council,Support at Home U65 MH OBC Contract,25/10/2022,5899,Social Care - Direct Payments,3111275885,520.56,Purple Conversation Com In Co (DP)
http://statistics.data.gov.uk/id/local-authority/38,Oxfordshire County Council,Support at Home 65+ Learning Disability,25/10/2022,5899,Social Care - Direct Payments,3111275971,520.56,Purple Conversation Com In Co (DP)
http://statistics.data.gov.uk/id/local-authority/38,Oxfordshire County Council,Support at Home U65 Physical Support,25/10/2022,5899,Social Care - Direct Payments,3111276019,520.56,Purple Conversation Com In Co (DP)
http://statistics.data.gov.uk/id/local-authority/38,Oxfordshire County Council,Support at Home 65+ Physical Support,25/10/2022,5899,Social Care - Direct Payments,3111276024,520.56,Purple Conversation Com In Co (DP)
http://statistics.data.gov.uk/id/local-authority/38,Oxfordshire County Council,Children in Care Non-staffing - North,21/10/2022,5394,Other Expenses,9300057646,520.8,OCC SS Banbury Area Off Cash
http://statistics.data.gov.uk/id/local-authority/38,Oxfordshire County Council,Delegated Health Tasks  - Over 65,18/10/2022,5691,,3111272434,521,Home Instead Senior Care Kidlington
http://statistics.data.gov.uk/id/local-authority/38,Oxfordshire County Council,FOSTERING MAIN,11/10/2022,5549,B*Fostering Allowance - Regulation 38,3111263564,521,Redacted Personal Data
http://statistics.data.gov.uk/id/local-authority/38,Oxfordshire County Council,Support at Home 65+ Learning Disability,12/10/2022,5690,,3111267702,521.07,HF TRUST Ltd
http://statistics.data.gov.uk/id/local-authority/38,Oxfordshire County Council,Support at Home U65 Physical Support,27/10/2022,5696,,3111276874,521.37,Orders of St John Care Trust
http://statistics.data.gov.uk/id/local-authority/38,Oxfordshire County Council,Support at Home 65+ Physical Support,11/10/2022,5689,,3111264951,521.76,Goldsmith Personnel Ltd
http://statistics.data.gov.uk/id/local-authority/38,Oxfordshire County Council,Support at Home 65+ Physical Support,19/10/2022,5227,Other Transport Arrangements,3111272650,522,BORJAN LTD
http://statistics.data.gov.uk/id/local-authority/38,Oxfordshire County Council,FLEET MAINTENANCE,04/10/2022,4495,IT Software,2201033436,522,C Track UK
http://statistics.data.gov.uk/id/local-authority/38,Oxfordshire County Council,,17/10/2022,1531,Cash Allocation Control Account,3111271060,522,COTSWOLD WILDLIFE PARK
http://statistics.data.gov.uk/id/local-authority/38,Oxfordshire County Council,OCC ELECTIONS,07/10/2022,5190,Subscriptions,3111262373,522,OCC One Time Vendor
http://statistics.data.gov.uk/id/local-authority/38,Oxfordshire County Council,MAINSTREAM-PRIMARY,13/10/2022,4330,Transport to School Activities,3111270490,522,Thunderbird Transport Ltd
http://statistics.data.gov.uk/id/local-authority/38,Oxfordshire County Council,MAINSTREAM-SECONDARY,13/10/2022,4330,Transport to School Activities,3111270491,522,Thunderbird Transport Ltd
http://statistics.data.gov.uk/id/local-authority/38,Oxfordshire County Council,Support at Home U65 Mental Health,27/10/2022,5696,,3111276851,522.22,Orders of St John Care Trust
http://statistics.data.gov.uk/id/local-authority/38,Oxfordshire County Council,LIBRARY COLLECTIONS,14/10/2022,4539,"Books, DVDs and CDs",3111270733,522.23,ASKEWS & HOLTS LIBRARY SERVICES LTD
http://statistics.data.gov.uk/id/local-authority/38,Oxfordshire County Council,Support at Home U65 Learning Disability,11/10/2022,5682,,3111263003,522.28,The Brandon Trust
http://statistics.data.gov.uk/id/local-authority/38,Oxfordshire County Council,Support at Home 65+ Physical Support,27/10/2022,5696,,3111276780,522.33,Orders of St John Care Trust
http://statistics.data.gov.uk/id/local-authority/38,Oxfordshire County Council,Support at Home U65 Other /Soc Isolation,11/10/2022,5699,,3111264011,522.9,Care Hearted Ltd
http://statistics.data.gov.uk/id/local-authority/38,Oxfordshire County Council,FOSTERING MAIN,04/10/2022,5549,B*Fostering Allowance - Regulation 38,3111261392,523,Redacted Personal Data
http://statistics.data.gov.uk/id/local-authority/38,Oxfordshire County Council,Leaving Care Grants,21/10/2022,5394,Other Expenses,2201040104,523.13,Oxfordshire Care Leaver Association
http://statistics.data.gov.uk/id/local-authority/38,Oxfordshire County Council,CLOSED LANDFILL,06/10/2022,4861,Hired and Contracted Services,2201034345,523.71,FCC Environment (UK) Ltd
http://statistics.data.gov.uk/id/local-authority/38,Oxfordshire County Council,FOSTERING MAIN,04/10/2022,5227,Other Transport Arrangements,3111261612,523.82,Redacted Personal Data
http://statistics.data.gov.uk/id/local-authority/38,Oxfordshire County Council,FOSTERING MAIN,18/10/2022,5549,B*Fostering Allowance - Regulation 38,3111272124,523.9,Redacted Personal Data
http://statistics.data.gov.uk/id/local-authority/38,Oxfordshire County Council,FLEET COSTS,05/10/2022,4270,HTM / Other Vehicle - Hire Charges,2201033856,524.4,Go Plant Fleet Services
http://statistics.data.gov.uk/id/local-authority/38,Oxfordshire County Council,COUNTY HALL,05/10/2022,4665,Catering,2201034296,524.5,Vending Sense
http://statistics.data.gov.uk/id/local-authority/38,Oxfordshire County Council,ASC WORKFORCE STRAT,25/10/2022,4790,"Publicity, Promotions and Advertisement",2201040987,525,Entec Si Limited
http://statistics.data.gov.uk/id/local-authority/38,Oxfordshire County Council,Household Support Fund,17/10/2022,7690,Additional Grant for Schools,3111271337,525,Fir Tree Junior Schools
http://statistics.data.gov.uk/id/local-authority/38,Oxfordshire County Council,SHORT BREAK ACTIVITIES,10/10/2022,5526,Payments to Private Contractors,2201035194,525,Muddy Feet Training
http://statistics.data.gov.uk/id/local-authority/38,Oxfordshire County Council,Support at Home 65+ Physical Support,03/10/2022,4330,Transport to School Activities,3111260924,525,Oxfordshire Travel Ltd
http://statistics.data.gov.uk/id/local-authority/38,Oxfordshire County Council,FOSTERING MAIN,04/10/2022,5541,B*Foster Parents,3111261563,525,Redacted Personal Data
http://statistics.data.gov.uk/id/local-authority/38,Oxfordshire County Council,LIBRARY COLLECTIONS,31/10/2022,4539,"Books, DVDs and CDs",3111277761,525.41,ASKEWS & HOLTS LIBRARY SERVICES LTD
http://statistics.data.gov.uk/id/local-authority/38,Oxfordshire County Council,COUNTY PRINT FINSHRS,26/10/2022,4705,Printing,2201041064,526.43,Lexon Group
http://statistics.data.gov.uk/id/local-authority/38,Oxfordshire County Council,OPERATIONS,05/10/2022,4498,Health and Safety Equipment,2201033992,526.5,First Products (Sussex) Ltd
http://statistics.data.gov.uk/id/local-authority/38,Oxfordshire County Council,Support at Home 65+ Physical Support,11/10/2022,5698,,3111264502,526.97,KCARE NURSING AGENCY
http://statistics.data.gov.uk/id/local-authority/38,Oxfordshire County Council,ELEC NPR ST LTG,06/10/2022,5526,Payments to Private Contractors,2201034668,527,Mawdsleys BER Ltd
http://statistics.data.gov.uk/id/local-authority/38,Oxfordshire County Council,Community Support Service Banbury,28/10/2022,5227,Other Transport Arrangements,3111277542,528,Banbury Taxis
http://statistics.data.gov.uk/id/local-authority/38,Oxfordshire County Council,Support at Home U65 Learning Disability,12/10/2022,5690,,3111267610,528.11,ADVANCE HOUSING & SUPPORT LTD
http://statistics.data.gov.uk/id/local-authority/38,Oxfordshire County Council,Support at Home U65 Physical Support,12/10/2022,5690,,3111267679,528.11,ADVANCE HOUSING & SUPPORT LTD
http://statistics.data.gov.uk/id/local-authority/38,Oxfordshire County Council,Support at Home U65 Learning Disability,11/10/2022,5689,,3111264927,528.36,Golden Services Care Ltd
http://statistics.data.gov.uk/id/local-authority/38,Oxfordshire County Council,Support at Home 65+ Physical Support,11/10/2022,5689,,3111265266,528.57,Prestige Nursing Ltd
http://statistics.data.gov.uk/id/local-authority/38,Oxfordshire County Council,TRO TEAM,10/10/2022,4790,"Publicity, Promotions and Advertisement",2201035215,528.8,Tmp (Uk) Ltd
http://statistics.data.gov.uk/id/local-authority/38,Oxfordshire County Council,Support at Home 65+ Memory & Cognition,19/10/2022,5693,,3111272531,529,Angel Care Group
http://statistics.data.gov.uk/id/local-authority/38,Oxfordshire County Council,FOSTERING MAIN,18/10/2022,5549,B*Fostering Allowance - Regulation 38,3111272154,529,Redacted Personal Data
http://statistics.data.gov.uk/id/local-authority/38,Oxfordshire County Council,FOSTERING MAIN,25/10/2022,5549,B*Fostering Allowance - Regulation 38,3111274418,529,Redacted Personal Data
http://statistics.data.gov.uk/id/local-authority/38,Oxfordshire County Council,Support at Home 65+ Physical Support,11/10/2022,5699,,3111263848,529.2,Agincare UK Ltd
http://statistics.data.gov.uk/id/local-authority/38,Oxfordshire County Council,Support at Home 65+ Physical Support,11/10/2022,5699,,3111263758,529.2,All Care GB Ltd
http://statistics.data.gov.uk/id/local-authority/38,Oxfordshire County Council,Support at Home 65+ Physical Support,11/10/2022,5699,,3111263809,529.2,All Care GB Ltd
http://statistics.data.gov.uk/id/local-authority/38,Oxfordshire County Council,Support at Home 65+ Memory & Cognition,19/10/2022,5693,,3111272534,529.2,BETTER LIFE CARE LTD
http://statistics.data.gov.uk/id/local-authority/38,Oxfordshire County Council,Support at Home U65 Physical Support,19/10/2022,5693,,3111272566,529.2,Boateng Care Ltd
http://statistics.data.gov.uk/id/local-authority/38,Oxfordshire County Council,Support at Home U65 Physical Support,19/10/2022,5693,,3111272567,529.2,Boateng Care Ltd
http://statistics.data.gov.uk/id/local-authority/38,Oxfordshire County Council,Support at Home U65 Physical Support,11/10/2022,5699,,3111263879,529.2,Calvary Care Ltd
http://statistics.data.gov.uk/id/local-authority/38,Oxfordshire County Council,Support at Home 65+ Physical Support,11/10/2022,5699,,3111263885,529.2,Calvary Care Ltd
http://statistics.data.gov.uk/id/local-authority/38,Oxfordshire County Council,Support at Home 65+ Physical Support,11/10/2022,5699,,3111264127,529.2,CaringPlus Healthcare Services Ltd
http://statistics.data.gov.uk/id/local-authority/38,Oxfordshire County Council,Support at Home U65 Physical Support,11/10/2022,5699,,3111264162,529.2,CaringPlus Healthcare Services Ltd
http://statistics.data.gov.uk/id/local-authority/38,Oxfordshire County Council,Support at Home 65+ Physical Support,19/10/2022,5693,,3111272575,529.2,Direct Link Care Ltd
http://statistics.data.gov.uk/id/local-authority/38,Oxfordshire County Council,Support at Home U65 Physical Support,19/10/2022,5693,,3111272608,529.2,GET CARE LIMITED
http://statistics.data.gov.uk/id/local-authority/38,Oxfordshire County Council,Support at Home 65+ Physical Support,11/10/2022,5689,,3111265049,529.2,Home Helpers Care Ltd
http://statistics.data.gov.uk/id/local-authority/38,Oxfordshire County Council,Support at Home 65+ Physical Support,26/10/2022,5693,,3111276243,529.2,JMC Care Solutions Limited
http://statistics.data.gov.uk/id/local-authority/38,Oxfordshire County Council,Support at Home 65+ Physical Support,12/10/2022,5693,,3111265443,529.2,Oxford Private Care
http://statistics.data.gov.uk/id/local-authority/38,Oxfordshire County Council,Support at Home 65+ Physical Support,11/10/2022,5699,,3111265008,529.2,PLL Care Services
http://statistics.data.gov.uk/id/local-authority/38,Oxfordshire County Council,Support at Home 65+ Memory & Cognition,19/10/2022,5693,,3111272619,529.2,Premier Personal Care
http://statistics.data.gov.uk/id/local-authority/38,Oxfordshire County Council,Support at Home 65+ Physical Support,26/10/2022,5693,,3111276277,529.2,Procare Healthcare Ltd
http://statistics.data.gov.uk/id/local-authority/38,Oxfordshire County Council,Support at Home 65+ Physical Support,07/10/2022,5693,,3111262424,529.2,Same Ways Care Ltd
http://statistics.data.gov.uk/id/local-authority/38,Oxfordshire County Council,Support at Home 65+ Physical Support,21/10/2022,5693,,3111273522,529.2,The Care Workshop Limited
http://statistics.data.gov.uk/id/local-authority/38,Oxfordshire County Council,Support at Home 65+ Physical Support,21/10/2022,5693,,3111273524,529.2,The Care Workshop Limited
http://statistics.data.gov.uk/id/local-authority/38,Oxfordshire County Council,Support at Home 65+ Physical Support,11/10/2022,5699,,3111265078,529.2,Xperience Recruitment Ltd
http://statistics.data.gov.uk/id/local-authority/38,Oxfordshire County Council,Support at Home 65+ Physical Support,11/10/2022,5699,,3111265088,529.2,YOD Ltd
http://statistics.data.gov.uk/id/local-authority/38,Oxfordshire County Council,Support at Home 65+ Physical Support,12/10/2022,5693,,3111265374,529.6,A CARING HAND LTD
http://statistics.data.gov.uk/id/local-authority/38,Oxfordshire County Council,Holiday Activities & Food Grant,05/10/2022,5086,Other Communications,2201033875,530.8,Wonde Ltd
http://statistics.data.gov.uk/id/local-authority/38,Oxfordshire County Council,Support at Home U65 Learning Disability,10/10/2022,5227,Other Transport Arrangements,3111262673,531,Excelsior Taxis Ltd
http://statistics.data.gov.uk/id/local-authority/38,Oxfordshire County Council,CORONER,19/10/2022,5202,Use of Mortuary Services,2201038981,531.25,Dr Atharina Julai
http://statistics.data.gov.uk/id/local-authority/38,Oxfordshire County Council,LANDFILL IMPROVEMENT,06/10/2022,5526,Payments to Private Contractors,2201034352,532,FCC Environment (UK) Ltd
http://statistics.data.gov.uk/id/local-authority/38,Oxfordshire County Council,LANDFILL IMPROVEMENT,06/10/2022,5526,Payments to Private Contractors,2201034353,532,FCC Environment (UK) Ltd
http://statistics.data.gov.uk/id/local-authority/38,Oxfordshire County Council,LANDFILL IMPROVEMENT,06/10/2022,5526,Payments to Private Contractors,2201034355,532,FCC Environment (UK) Ltd
http://statistics.data.gov.uk/id/local-authority/38,Oxfordshire County Council,Delegated Health Tasks  - Over 65,19/10/2022,5691,,3111272905,532,Prime Social Care Services Ltd
http://statistics.data.gov.uk/id/local-authority/38,Oxfordshire County Council,LIBRARY COLLECTIONS,03/10/2022,4539,"Books, DVDs and CDs",3111260957,532.05,ASKEWS & HOLTS LIBRARY SERVICES LTD
http://statistics.data.gov.uk/id/local-authority/38,Oxfordshire County Council,Support at Home U65 Physical Support,25/10/2022,5899,Social Care - Direct Payments,3111275341,532.44,Redacted Personal Data
http://statistics.data.gov.uk/id/local-authority/38,Oxfordshire County Council,FOSTERING MAIN,04/10/2022,5549,B*Fostering Allowance - Regulation 38,3111261553,533,Redacted Personal Data
http://statistics.data.gov.uk/id/local-authority/38,Oxfordshire County Council,LIBRARY COLLECTIONS,31/10/2022,4539,"Books, DVDs and CDs",3111277608,533.02,ASKEWS & HOLTS LIBRARY SERVICES LTD
http://statistics.data.gov.uk/id/local-authority/38,Oxfordshire County Council,Support at Home 65+ Physical Support,11/10/2022,5689,,3111265079,533.82,Home Helpers Care Ltd
http://statistics.data.gov.uk/id/local-authority/38,Oxfordshire County Council,ContrO ASC Payments Control Account,26/10/2022,5554,Childrens' Social Care - Direct Payments,3111276530,533.83,The Disability Resource Centre
http://statistics.data.gov.uk/id/local-authority/38,Oxfordshire County Council,Family Solutions Plus Non-staff - Centra,06/10/2022,5394,Other Expenses,3500088299,534,Redacted Personal Data
http://statistics.data.gov.uk/id/local-authority/38,Oxfordshire County Council,Support at Home U65 Physical Support,14/10/2022,5693,,3111270695,534.08,Helping Hands
http://statistics.data.gov.uk/id/local-authority/38,Oxfordshire County Council,Support at Home U65 Sensory Support,25/10/2022,5899,Social Care - Direct Payments,3111275098,534.24,Redacted Personal Data
http://statistics.data.gov.uk/id/local-authority/38,Oxfordshire County Council,Support at Home U65 Physical Support,25/10/2022,5899,Social Care - Direct Payments,3111275808,534.76,Purple Conversation Com In Co (DP)
http://statistics.data.gov.uk/id/local-authority/38,Oxfordshire County Council,LEGAL BUDGET,26/10/2022,5251,Legal Costs,2201041075,535,DNA WORLDWIDE GROUP
http://statistics.data.gov.uk/id/local-authority/38,Oxfordshire County Council,FOSTERING MAIN,18/10/2022,5541,B*Foster Parents,3111272240,535,Redacted Personal Data
http://statistics.data.gov.uk/id/local-authority/38,Oxfordshire County Council,FOSTERING MAIN,25/10/2022,5541,B*Foster Parents,3111274578,535,Redacted Personal Data
http://statistics.data.gov.uk/id/local-authority/38,Oxfordshire County Council,Support at Home 65+ Physical Support,11/10/2022,5689,,3111265021,535.1,Greigcare Home Service
http://statistics.data.gov.uk/id/local-authority/38,Oxfordshire County Council,Support at Home 65+ Memory & Cognition,11/10/2022,5699,,3111263765,535.5,All Care GB Ltd
http://statistics.data.gov.uk/id/local-authority/38,Oxfordshire County Council,Support at Home 65+ Physical Support,05/10/2022,5693,,3111262017,535.5,Enable Health Ltd
http://statistics.data.gov.uk/id/local-authority/38,Oxfordshire County Council,Support at Home U65 Learning Disability,25/10/2022,5899,Social Care - Direct Payments,3111275063,535.68,Redacted Personal Data
http://statistics.data.gov.uk/id/local-authority/38,Oxfordshire County Council,Support at Home U65 Mental Health,25/10/2022,5899,Social Care - Direct Payments,3111275844,535.8,Purple Conversation Com In Co (DP)
http://statistics.data.gov.uk/id/local-authority/38,Oxfordshire County Council,FOSTERING MAIN,04/10/2022,5541,B*Foster Parents,3111261374,536,Redacted Personal Data
http://statistics.data.gov.uk/id/local-authority/38,Oxfordshire County Council,FOSTERING MAIN,04/10/2022,5541,B*Foster Parents,3111261384,536,Redacted Personal Data
http://statistics.data.gov.uk/id/local-authority/38,Oxfordshire County Council,FOSTERING MAIN,04/10/2022,5541,B*Foster Parents,3111261386,536,Redacted Personal Data
http://statistics.data.gov.uk/id/local-authority/38,Oxfordshire County Council,FOSTERING MAIN,04/10/2022,5545,B*Fostering Enhancements - Level 2,3111261325,536,Redacted Personal Data
http://statistics.data.gov.uk/id/local-authority/38,Oxfordshire County Council,LANDLORD & TENANT,27/10/2022,4001,Uniform Business Rates,3500088953,536,Oxford City Council
http://statistics.data.gov.uk/id/local-authority/38,Oxfordshire County Council,Support at Home 65+ Mental Health,11/10/2022,5699,,3111263759,536.08,All Care GB Ltd
http://statistics.data.gov.uk/id/local-authority/38,Oxfordshire County Council,Family Solutions Plus Non-staff - Centra,19/10/2022,5365,Non-Staff Subsistence and Expenses,9300057578,536.1,OCC SS Oxford City Div 1 Cash
http://statistics.data.gov.uk/id/local-authority/38,Oxfordshire County Council,Support at Home U65 Learning Disability,11/10/2022,5682,,3111262999,536.1,The Brandon Trust
http://statistics.data.gov.uk/id/local-authority/38,Oxfordshire County Council,CLOSED LANDFILL,06/10/2022,4861,Hired and Contracted Services,2201034347,536.65,FCC Environment (UK) Ltd
http://statistics.data.gov.uk/id/local-authority/38,Oxfordshire County Council,OPERATIONS,31/10/2022,4615,Drugs and Medical Supplies,2201041650,536.8,South Central Ambulance Service
http://statistics.data.gov.uk/id/local-authority/38,Oxfordshire County Council,OPERATIONS,27/10/2022,4498,Health and Safety Equipment,2201041264,536.97,INTERSPIRO LTD
http://statistics.data.gov.uk/id/local-authority/38,Oxfordshire County Council,Continuing Care - Support at Home - U65,14/10/2022,5691,,3111270856,537,Henley Care Ltd
http://statistics.data.gov.uk/id/local-authority/38,Oxfordshire County Council,Support at Home 65+ Physical Support,11/10/2022,5689,,3111264997,537.13,Greigcare Home Service
http://statistics.data.gov.uk/id/local-authority/38,Oxfordshire County Council,FOSTERING MAIN,25/10/2022,5227,Other Transport Arrangements,3111274359,537.51,Redacted Personal Data
http://statistics.data.gov.uk/id/local-authority/38,Oxfordshire County Council,Support at Home 65+ Learning Disability,12/10/2022,5690,,3111265585,537.81,The Ice Centre
http://statistics.data.gov.uk/id/local-authority/38,Oxfordshire County Council,Support at Home 65+ Physical Support,11/10/2022,5689,,3111264720,538.13,Oxfordshire Crossroads
http://statistics.data.gov.uk/id/local-authority/38,Oxfordshire County Council,FAM GRP CONFERENCES,20/10/2022,4940,Other Services,2201039787,538.4,Jessica Howards
http://statistics.data.gov.uk/id/local-authority/38,Oxfordshire County Council,Support at Home U65 Physical Support,27/10/2022,5696,,3111276785,538.71,Orders of St John Care Trust
http://statistics.data.gov.uk/id/local-authority/38,Oxfordshire County Council,Support at Home U65 Learning Disability,11/10/2022,5689,,3111264993,538.75,Greigcare Home Service
http://statistics.data.gov.uk/id/local-authority/38,Oxfordshire County Council,Support at Home U65 MH OBC Contract,25/10/2022,5899,Social Care - Direct Payments,3111275275,538.88,Redacted Personal Data
http://statistics.data.gov.uk/id/local-authority/38,Oxfordshire County Council,FOSTERING MAIN,18/10/2022,5549,B*Fostering Allowance - Regulation 38,3111272235,539,Redacted Personal Data
http://statistics.data.gov.uk/id/local-authority/38,Oxfordshire County Council,FOSTERING MAIN,25/10/2022,5549,B*Fostering Allowance - Regulation 38,3111274568,539,Redacted Personal Data
http://statistics.data.gov.uk/id/local-authority/38,Oxfordshire County Council,Support at Home 65+ Mental Health,25/10/2022,5899,Social Care - Direct Payments,3111275473,539.08,Purple Conversation Com In Co (DP)
http://statistics.data.gov.uk/id/local-authority/38,Oxfordshire County Council,Councillors Priorities Fund,21/10/2022,4940,Other Services,3111273663,540,Ark T Centre
http://statistics.data.gov.uk/id/local-authority/38,Oxfordshire County Council,Family Solutions Plus Non-staff - North,27/10/2022,5227,Other Transport Arrangements,3111276753,540,Bicester Cars UK Ltd
http://statistics.data.gov.uk/id/local-authority/38,Oxfordshire County Council,SEN TRANSPORT,11/10/2022,5227,Other Transport Arrangements,3111262798,540,Crown Cabs Travel Ltd
http://statistics.data.gov.uk/id/local-authority/38,Oxfordshire County Council,Household Support Fund,17/10/2022,7690,Additional Grant for Schools,3111271142,540,Dashwood Banbury Academy
http://statistics.data.gov.uk/id/local-authority/38,Oxfordshire County Council,Household Support Fund,17/10/2022,7690,Additional Grant for Schools,3111271155,540,Fir Tree Junior Schools
http://statistics.data.gov.uk/id/local-authority/38,Oxfordshire County Council,Lib ICT Supprt&Maint,21/10/2022,4495,IT Software,2201040420,540,Hemisphere West Europe Ltd
http://statistics.data.gov.uk/id/local-authority/38,Oxfordshire County Council,SEN TRANSPORT,03/10/2022,5227,Other Transport Arrangements,3111260841,540,Her Ride Limited
http://statistics.data.gov.uk/id/local-authority/38,Oxfordshire County Council,Household Support Fund,17/10/2022,7690,Additional Grant for Schools,3111271178,540,"King Alfred's School, Wantage"
http://statistics.data.gov.uk/id/local-authority/38,Oxfordshire County Council,Household Support Fund,17/10/2022,7690,Additional Grant for Schools,3111271180,540,Ladygrove Park Primary School
http://statistics.data.gov.uk/id/local-authority/38,Oxfordshire County Council,Household Support Fund,17/10/2022,7690,Additional Grant for Schools,3111271202,540,New Marston Primary School
http://statistics.data.gov.uk/id/local-authority/38,Oxfordshire County Council,Household Support Fund,17/10/2022,7690,Additional Grant for Schools,3111271205,540,North Hinksey Cof E School
http://statistics.data.gov.uk/id/local-authority/38,Oxfordshire County Council,Family Solutions Plus Non-staff - South,04/10/2022,5394,Other Expenses,3111261085,540,OCC One Time Vendor
http://statistics.data.gov.uk/id/local-authority/38,Oxfordshire County Council,SEN TRANSPORT,10/10/2022,5227,Other Transport Arrangements,3111262730,540,Oxfordlinks
http://statistics.data.gov.uk/id/local-authority/38,Oxfordshire County Council,TRANSPORT COSTS,18/10/2022,5227,Other Transport Arrangements,3111271556,540,Oxon Transport Services Ltd
http://statistics.data.gov.uk/id/local-authority/38,Oxfordshire County Council,SEN TRANSPORT,21/10/2022,5227,Other Transport Arrangements,3111273542,540,Oxon Transport Services Ltd
http://statistics.data.gov.uk/id/local-authority/38,Oxfordshire County Council,SEN TRANSPORT,21/10/2022,5227,Other Transport Arrangements,3111273587,540,Oxon Transport Services Ltd
http://statistics.data.gov.uk/id/local-authority/38,Oxfordshire County Council,FOSTERING MAIN,11/10/2022,5549,B*Fostering Allowance - Regulation 38,3111264366,540,Redacted Personal Data
http://statistics.data.gov.uk/id/local-authority/38,Oxfordshire County Council,Support at Home U65 Learning Disability,26/10/2022,5697,,3111276213,540,Pennyhooks Farm Trust
http://statistics.data.gov.uk/id/local-authority/38,Oxfordshire County Council,SEN TRANSPORT,24/10/2022,5227,Other Transport Arrangements,3111273846,540,Schon Executive Cars Ltd
http://statistics.data.gov.uk/id/local-authority/38,Oxfordshire County Council,Household Support Fund,17/10/2022,7690,Additional Grant for Schools,3111271249,540,The Bicester School
http://statistics.data.gov.uk/id/local-authority/38,Oxfordshire County Council,Household Support Fund,17/10/2022,7690,Additional Grant for Schools,3111271373,540,The Gallery Trust
http://statistics.data.gov.uk/id/local-authority/38,Oxfordshire County Council,SEN TRANSPORT,10/10/2022,5227,Other Transport Arrangements,3111262759,540,Thunderbird Transport Ltd
http://statistics.data.gov.uk/id/local-authority/38,Oxfordshire County Council,Household Support Fund,17/10/2022,7690,Additional Grant for Schools,3111271268,540,Wheatley Park School
http://statistics.data.gov.uk/id/local-authority/38,Oxfordshire County Council,,04/10/2022,1531,Cash Allocation Control Account,3111262626,540,Wiltshire Wildlife Trust Ltd
http://statistics.data.gov.uk/id/local-authority/38,Oxfordshire County Council,Support at Home U65 Learning Disability,25/10/2022,5899,Social Care - Direct Payments,3111275712,540.12,Purple Conversation Com In Co (DP)
http://statistics.data.gov.uk/id/local-authority/38,Oxfordshire County Council,FLEET COSTS,06/10/2022,4270,HTM / Other Vehicle - Hire Charges,2201034613,540.49,Go Plant Fleet Services
http://statistics.data.gov.uk/id/local-authority/38,Oxfordshire County Council,SCHOOLS FORUM,14/10/2022,3942,Hire of Accommodation and Facilities,2201037324,540.63,HOLIDAY INN OXFORD
http://statistics.data.gov.uk/id/local-authority/38,Oxfordshire County Council,OPERATIONS,21/10/2022,4498,Health and Safety Equipment,2201039984,540.96,Arco Wessex
http://statistics.data.gov.uk/id/local-authority/38,Oxfordshire County Council,Support at Home 65+ Physical Support,19/10/2022,5227,Other Transport Arrangements,3111272651,541,BORJAN LTD
http://statistics.data.gov.uk/id/local-authority/38,Oxfordshire County Council,Delegated Health Tasks  - Over 65,07/10/2022,5691,,3111262557,541.32,247 HOME CARE LTD
http://statistics.data.gov.uk/id/local-authority/38,Oxfordshire County Council,Support at Home U65 Learning Disability,25/10/2022,5899,Social Care - Direct Payments,3111274772,541.72,Connection Support (Oxford)
http://statistics.data.gov.uk/id/local-authority/38,Oxfordshire County Council,Support at Home 65+ Physical Support,11/10/2022,5699,,3111264519,541.8,Greigcare Home Service
http://statistics.data.gov.uk/id/local-authority/38,Oxfordshire County Council,Support at Home 65+ Memory & Cognition,11/10/2022,5699,,3111264682,541.8,Mega Resources Ltd
http://statistics.data.gov.uk/id/local-authority/38,Oxfordshire County Council,Support at Home U65 Physical Support,11/10/2022,5699,,3111264714,541.8,Mega Resources Ltd
http://statistics.data.gov.uk/id/local-authority/38,Oxfordshire County Council,Support at Home 65+ Other /Soc Isolation,11/10/2022,5699,,3111265172,541.8,Vine Living
http://statistics.data.gov.uk/id/local-authority/38,Oxfordshire County Council,Support at Home 65+ Physical Support,28/10/2022,5693,,3111277354,541.88,Care with Care Ltd
http://statistics.data.gov.uk/id/local-authority/38,Oxfordshire County Council,FOSTERING MAIN,18/10/2022,5545,B*Fostering Enhancements - Level 2,3111272115,542,Redacted Personal Data
http://statistics.data.gov.uk/id/local-authority/38,Oxfordshire County Council,FOSTERING MAIN,25/10/2022,5545,B*Fostering Enhancements - Level 2,3111274347,542,Redacted Personal Data
http://statistics.data.gov.uk/id/local-authority/38,Oxfordshire County Council,Support at Home U65 Physical Support,25/10/2022,5899,Social Care - Direct Payments,3111275346,542,Redacted Personal Data
http://statistics.data.gov.uk/id/local-authority/38,Oxfordshire County Council,FOSTERING MAIN,11/10/2022,5227,Other Transport Arrangements,3111264557,542.48,Redacted Personal Data
http://statistics.data.gov.uk/id/local-authority/38,Oxfordshire County Council,Support at Home U65 Physical Support,11/10/2022,5698,,3111263983,542.65,Acquire Care Ltd
http://statistics.data.gov.uk/id/local-authority/38,Oxfordshire County Council,Support at Home U65 Learning Disability,25/10/2022,5899,Social Care - Direct Payments,3111275178,542.72,Redacted Personal Data
http://statistics.data.gov.uk/id/local-authority/38,Oxfordshire County Council,RESIDENTIAL TREATMEN,11/10/2022,5686,,2201036231,542.86,ANA
http://statistics.data.gov.uk/id/local-authority/38,Oxfordshire County Council,Support at Home 65+ Physical Support,11/10/2022,5696,,3111263048,543.78,All Care GB Ltd
http://statistics.data.gov.uk/id/local-authority/38,Oxfordshire County Council,MEADOWBROOK TRANSPT,26/10/2022,4330,Transport to School Activities,3111276611,544,001 Alpha Cars Ltd
http://statistics.data.gov.uk/id/local-authority/38,Oxfordshire County Council,SEN TRANSPORT,03/10/2022,5227,Other Transport Arrangements,3111261024,544,C&M Management Services Ltd
http://statistics.data.gov.uk/id/local-authority/38,Oxfordshire County Council,OXFORD LOCALITY,17/10/2022,5526,Payments to Private Contractors,2201038095,544.04,Milestone Infrastructure Limited
http://statistics.data.gov.uk/id/local-authority/38,Oxfordshire County Council,Support at Home U65 Autism /Abated,12/10/2022,5690,,3111267749,544.05,Autism at Kingwood Limited
http://statistics.data.gov.uk/id/local-authority/38,Oxfordshire County Council,"CITY, SOUTH & VALE",26/10/2022,4498,Health and Safety Equipment,2201041121,544.24,Dyaco UK Ltd
http://statistics.data.gov.uk/id/local-authority/38,Oxfordshire County Council,SM DISABILITIES,26/10/2022,5554,Childrens' Social Care - Direct Payments,3111276427,544.29,Redacted Personal Data
http://statistics.data.gov.uk/id/local-authority/38,Oxfordshire County Council,SM DISABILITIES,26/10/2022,5554,Childrens' Social Care - Direct Payments,3111276437,544.29,Redacted Personal Data
http://statistics.data.gov.uk/id/local-authority/38,Oxfordshire County Council,FOSTERING MAIN,11/10/2022,5549,B*Fostering Allowance - Regulation 38,3111264248,544.33,Redacted Personal Data
http://statistics.data.gov.uk/id/local-authority/38,Oxfordshire County Council,Support at Home U65 Learning Disability,12/10/2022,5690,,3111265692,544.71,Turnstyle
http://statistics.data.gov.uk/id/local-authority/38,Oxfordshire County Council,Support at Home U65 Physical Support,26/10/2022,5693,,3111276232,544.8,Chamomile Care Ltd
http://statistics.data.gov.uk/id/local-authority/38,Oxfordshire County Council,TRANSPORT COSTS,11/10/2022,5227,Other Transport Arrangements,3111262890,545,Go Green Taxis
http://statistics.data.gov.uk/id/local-authority/38,Oxfordshire County Council,Support at Home 65+ Physical Support,27/10/2022,5696,,3111276836,545.33,Orders of St John Care Trust
http://statistics.data.gov.uk/id/local-authority/38,Oxfordshire County Council,Support at Home U65 Memory & Cognition,25/10/2022,5899,Social Care - Direct Payments,3111275988,545.56,Purple Conversation Com In Co (DP)
http://statistics.data.gov.uk/id/local-authority/38,Oxfordshire County Council,LOOKED AFTER CITY 2,11/10/2022,5394,Other Expenses,3111264160,545.86,Redacted Personal Data
http://statistics.data.gov.uk/id/local-authority/38,Oxfordshire County Council,Property Cleaning,14/10/2022,4060,Cleaning Materials,2201037268,545.95,Seldram Supplies
http://statistics.data.gov.uk/id/local-authority/38,Oxfordshire County Council,FOSTERING MAIN,18/10/2022,5541,B*Foster Parents,3111272144,546,Redacted Personal Data
http://statistics.data.gov.uk/id/local-authority/38,Oxfordshire County Council,FOSTERING MAIN,25/10/2022,5541,B*Foster Parents,3111274400,546,Redacted Personal Data
http://statistics.data.gov.uk/id/local-authority/38,Oxfordshire County Council,FOSTERING MAIN,18/10/2022,5541,B*Foster Parents,3111272150,546,Redacted Personal Data
http://statistics.data.gov.uk/id/local-authority/38,Oxfordshire County Council,FOSTERING MAIN,18/10/2022,5541,B*Foster Parents,3111272151,546,Redacted Personal Data
http://statistics.data.gov.uk/id/local-authority/38,Oxfordshire County Council,FOSTERING MAIN,25/10/2022,5541,B*Foster Parents,3111274410,546,Redacted Personal Data
http://statistics.data.gov.uk/id/local-authority/38,Oxfordshire County Council,FOSTERING MAIN,25/10/2022,5541,B*Foster Parents,3111274412,546,Redacted Personal Data
http://statistics.data.gov.uk/id/local-authority/38,Oxfordshire County Council,Support at Home 65+ Physical Support,25/10/2022,5899,Social Care - Direct Payments,3111275752,546,Purple Conversation Com In Co (DP)
http://statistics.data.gov.uk/id/local-authority/38,Oxfordshire County Council,FOSTERING MAIN,11/10/2022,5549,B*Fostering Allowance - Regulation 38,3111263334,546.01,Redacted Personal Data
http://statistics.data.gov.uk/id/local-authority/38,Oxfordshire County Council,Support at Home U65 Sensory Support,25/10/2022,5899,Social Care - Direct Payments,3111275095,546.44,Redacted Personal Data
http://statistics.data.gov.uk/id/local-authority/38,Oxfordshire County Council,REAL COST ALLOWANCES,25/10/2022,5662,B*Christmas Allowance,3111274321,547.06,Redacted Personal Data
http://statistics.data.gov.uk/id/local-authority/38,Oxfordshire County Council,Support at Home U65 Physical Support,25/10/2022,5899,Social Care - Direct Payments,3111275685,547.76,Purple Conversation Com In Co (DP)
http://statistics.data.gov.uk/id/local-authority/38,Oxfordshire County Council,Support at Home 65+ Physical Support,25/10/2022,5899,Social Care - Direct Payments,3111275009,547.8,Redacted Personal Data
http://statistics.data.gov.uk/id/local-authority/38,Oxfordshire County Council,Support at Home 65+ Physical Support,11/10/2022,5689,,3111264463,548.1,Care Outlook Ltd
http://statistics.data.gov.uk/id/local-authority/38,Oxfordshire County Council,Family Solutions Plus Non-staff - South,31/10/2022,2040,Agency Staff,2201042347,548.24,THORNBURY NURSING SERVICES
http://statistics.data.gov.uk/id/local-authority/38,Oxfordshire County Council,UASC 16&17,11/10/2022,5549,B*Fostering Allowance - Regulation 38,3111264060,549,Redacted Personal Data
http://statistics.data.gov.uk/id/local-authority/38,Oxfordshire County Council,Support at Home 65+ Physical Support,07/10/2022,5693,,3111262394,549.12,CARE & CARERS LTD
http://statistics.data.gov.uk/id/local-authority/38,Oxfordshire County Council,Support at Home U65 Learning Disability,12/10/2022,5690,,3111267627,549.23,ADVANCE HOUSING & SUPPORT LTD
http://statistics.data.gov.uk/id/local-authority/38,Oxfordshire County Council,UASC 16&17,13/10/2022,4330,Transport to School Activities,9300057512,549.9,OCC SS Oxford City Div 1 Cash
http://statistics.data.gov.uk/id/local-authority/38,Oxfordshire County Council,TREE MAINT OPS,07/10/2022,5526,Payments to Private Contractors,2201035046,550,Acreman's Arboriculture Ltd
http://statistics.data.gov.uk/id/local-authority/38,Oxfordshire County Council,TREE MAINT OPS,07/10/2022,5526,Payments to Private Contractors,2201035047,550,Acreman's Arboriculture Ltd
http://statistics.data.gov.uk/id/local-authority/38,Oxfordshire County Council,Oxfordshire Adoption Support Fund,25/10/2022,4861,Hired and Contracted Services,2201040913,550,Creative Therapy Options
http://statistics.data.gov.uk/id/local-authority/38,Oxfordshire County Council,SENDIASS,11/10/2022,4495,IT Software,2201035700,550,Dizions Limited
http://statistics.data.gov.uk/id/local-authority/38,Oxfordshire County Council,LEGAL SERVICES,20/10/2022,5251,Legal Costs,2201039435,550,Eleanor Howard
http://statistics.data.gov.uk/id/local-authority/38,Oxfordshire County Council,SEN TRANSPORT,11/10/2022,4330,Transport to School Activities,3111262885,550,Go Green Taxis
http://statistics.data.gov.uk/id/local-authority/38,Oxfordshire County Council,LEGAL SERVICES,20/10/2022,5251,Legal Costs,2201039470,550,Martha Gray
http://statistics.data.gov.uk/id/local-authority/38,Oxfordshire County Council,LEGAL SERVICES,12/10/2022,5251,Legal Costs,2201036400,550,Ms Emma Gatland
http://statistics.data.gov.uk/id/local-authority/38,Oxfordshire County Council,LEGAL SERVICES,27/10/2022,5251,Legal Costs,2201041258,550,Natasha Miller
http://statistics.data.gov.uk/id/local-authority/38,Oxfordshire County Council,BLOXHAM CE PRIMARY,31/10/2022,3154,,2201041662,550,NJF Shopfitting & Construction Ltd
http://statistics.data.gov.uk/id/local-authority/38,Oxfordshire County Council,Care Packages & Placements- LD - OCC,18/10/2022,5227,Other Transport Arrangements,3111271533,550,Oxon Transport Services Ltd
http://statistics.data.gov.uk/id/local-authority/38,Oxfordshire County Council,Children in Care Non-staffing - South,11/10/2022,5227,Other Transport Arrangements,3111262808,550,Phoenixx Cars Ltd
http://statistics.data.gov.uk/id/local-authority/38,Oxfordshire County Council,L&D CORE PROGRAMME,19/10/2022,3103,Other Training Courses and Qualification,2201038626,550,Premier Partnership
http://statistics.data.gov.uk/id/local-authority/38,Oxfordshire County Council,L&D CORE PROGRAMME,24/10/2022,3103,Other Training Courses and Qualification,2201040518,550,Premier Partnership
http://statistics.data.gov.uk/id/local-authority/38,Oxfordshire County Council,Staff Travel Benefits,07/10/2022,4340,Staff and Volunteer Travel Expenses - General,2201035017,550,Stagecoach Services Ltd.
http://statistics.data.gov.uk/id/local-authority/38,Oxfordshire County Council,Support at Home U65 Learning Disability,19/10/2022,5227,Other Transport Arrangements,3111273003,550,Vine Community Services Ltd T/A
http://statistics.data.gov.uk/id/local-authority/38,Oxfordshire County Council,Support at Home 65+ Physical Support,11/10/2022,5689,,3111264432,550.83,Care Outlook Ltd
http://statistics.data.gov.uk/id/local-authority/38,Oxfordshire County Council,SEN TRANSPORT,11/10/2022,5227,Other Transport Arrangements,3111262781,551,Crown Cabs Travel Ltd
http://statistics.data.gov.uk/id/local-authority/38,Oxfordshire County Council,SEN TRANSPORT,11/10/2022,5227,Other Transport Arrangements,3111262795,551,Crown Cabs Travel Ltd
http://statistics.data.gov.uk/id/local-authority/38,Oxfordshire County Council,Support at Home U65 Physical Support,25/10/2022,5899,Social Care - Direct Payments,3111275764,551.12,Purple Conversation Com In Co (DP)
http://statistics.data.gov.uk/id/local-authority/38,Oxfordshire County Council,Support at Home U65 Learning Disability,11/10/2022,5682,,3111262962,551.7,The Brandon Trust
http://statistics.data.gov.uk/id/local-authority/38,Oxfordshire County Council,CHC Fast Track - Sup at Homes - Over 65,14/10/2022,5691,,3111270806,552,Sue Ryder
http://statistics.data.gov.uk/id/local-authority/38,Oxfordshire County Council,Continuing Care - Support at Home - 65+,28/10/2022,5691,,3111277445,552,Sue Ryder
http://statistics.data.gov.uk/id/local-authority/38,Oxfordshire County Council,Support at Home U65 Physical Support,11/10/2022,5689,,3111264805,552.23,Oxfordshire Crossroads
http://statistics.data.gov.uk/id/local-authority/38,Oxfordshire County Council,Support at Home U65 Physical Support,25/10/2022,5899,Social Care - Direct Payments,3111275914,552.76,Purple Conversation Com In Co (DP)
http://statistics.data.gov.uk/id/local-authority/38,Oxfordshire County Council,COMM DRAWDOWN FUNDNG,17/10/2022,8004,Design Consultant,2201037893,553.69,Milestone Infrastructure Limited
http://statistics.data.gov.uk/id/local-authority/38,Oxfordshire County Council,Support at Home U65 Memory & Cognition,11/10/2022,5689,,3111264333,553.98,Amber Healthcare Personnel Ltd
http://statistics.data.gov.uk/id/local-authority/38,Oxfordshire County Council,Support at Home 65+ Physical Support,11/10/2022,5698,,3111263951,554.24,Acquire Care Ltd
http://statistics.data.gov.uk/id/local-authority/38,Oxfordshire County Council,Support at Home 65+ Physical Support,11/10/2022,5699,,3111264286,554.4,CaringPlus Healthcare Services Ltd
http://statistics.data.gov.uk/id/local-authority/38,Oxfordshire County Council,Support at Home 65+ Physical Support,11/10/2022,5699,,3111264511,554.4,Greigcare Home Service
http://statistics.data.gov.uk/id/local-authority/38,Oxfordshire County Council,Support at Home 65+ Physical Support,11/10/2022,5699,,3111264654,554.4,Mega Resources Ltd
http://statistics.data.gov.uk/id/local-authority/38,Oxfordshire County Council,Support at Home 65+ Physical Support,11/10/2022,5699,,3111264722,554.4,Mega Resources Ltd
http://statistics.data.gov.uk/id/local-authority/38,Oxfordshire County Council,Support at Home 65+ Physical Support,11/10/2022,5699,,3111264734,554.4,Mega Resources Ltd
http://statistics.data.gov.uk/id/local-authority/38,Oxfordshire County Council,Support at Home 65+ Physical Support,11/10/2022,5699,,3111264745,554.4,Mega Resources Ltd
http://statistics.data.gov.uk/id/local-authority/38,Oxfordshire County Council,Support at Home U65 Memory & Cognition,26/10/2022,5693,,3111276287,554.4,Procare Healthcare Ltd
http://statistics.data.gov.uk/id/local-authority/38,Oxfordshire County Council,Early Years SEN Funding,14/10/2022,5537,Payments to Other Establishments,3111270597,554.4,Southmoor Pre-School
http://statistics.data.gov.uk/id/local-authority/38,Oxfordshire County Council,Support at Home 65+ Learning Disability,25/10/2022,5899,Social Care - Direct Payments,3111275599,554.48,Purple Conversation Com In Co (DP)
http://statistics.data.gov.uk/id/local-authority/38,Oxfordshire County Council,Support at Home 65+ Physical Support,11/10/2022,5698,,3111264640,554.65,Oxford Private Care
http://statistics.data.gov.uk/id/local-authority/38,Oxfordshire County Council,Family Solutions Plus Non-staff - North,17/10/2022,4940,Other Services,2201037537,554.66,Complete Childcare Ltd
http://statistics.data.gov.uk/id/local-authority/38,Oxfordshire County Council,Support at Home U65 Physical Support,11/10/2022,5699,,3111263737,554.82,Alina Homecare Ltd
http://statistics.data.gov.uk/id/local-authority/38,Oxfordshire County Council,Household Support Fund,17/10/2022,7690,Additional Grant for Schools,3111271285,555,Aureus Primary School Academy
http://statistics.data.gov.uk/id/local-authority/38,Oxfordshire County Council,Wokingham Adoption Support Fund,25/10/2022,4861,Hired and Contracted Services,2201040873,555,Hands on Play Therapy
http://statistics.data.gov.uk/id/local-authority/38,Oxfordshire County Council,Support at Home U65 Physical Support,11/10/2022,5689,,3111264267,555.37,Allied Health-Services Limited
http://statistics.data.gov.uk/id/local-authority/38,Oxfordshire County Council,Support at Home U65 Learning Disability,25/10/2022,5899,Social Care - Direct Payments,3111275070,555.44,Redacted Personal Data
http://statistics.data.gov.uk/id/local-authority/38,Oxfordshire County Council,Support at Home 65+ Physical Support,11/10/2022,5689,,3111264459,555.73,Care Outlook Ltd
http://statistics.data.gov.uk/id/local-authority/38,Oxfordshire County Council,POST18 UASC DCSF FND,05/10/2022,5663,B*Birthday Allowance,9300057410,555.75,OCC SS Oxford City Div 1 Cash
http://statistics.data.gov.uk/id/local-authority/38,Oxfordshire County Council,Support at Home U65 Physical Support,07/10/2022,5693,,3111262384,555.8,A CARING HAND LTD
http://statistics.data.gov.uk/id/local-authority/38,Oxfordshire County Council,Support at Home 65+ Physical Support,07/10/2022,5693,,3111262388,555.8,A CARING HAND LTD
http://statistics.data.gov.uk/id/local-authority/38,Oxfordshire County Council,Support at Home 65+ Physical Support,12/10/2022,5693,,3111265492,555.8,CaringPlus Healthcare Services Ltd
http://statistics.data.gov.uk/id/local-authority/38,Oxfordshire County Council,Planned Maintenance,28/10/2022,3787,Premises Repairs,2201041448,556,ARJO LTD
http://statistics.data.gov.uk/id/local-authority/38,Oxfordshire County Council,Support at Home 65+ Memory & Cognition,25/10/2022,5899,Social Care - Direct Payments,3111274911,556.52,Redacted Personal Data
http://statistics.data.gov.uk/id/local-authority/38,Oxfordshire County Council,Continuing Care - Support at Home - U65,14/10/2022,5691,,3111270855,557.13,Henley Care Ltd
http://statistics.data.gov.uk/id/local-authority/38,Oxfordshire County Council,Support at Home U65 Learning Disability,12/10/2022,5690,,3111265637,557.65,Oxford Wholefoods
http://statistics.data.gov.uk/id/local-authority/38,Oxfordshire County Council,Support at Home U65 Learning Disability,25/10/2022,5899,Social Care - Direct Payments,3111275675,557.84,Purple Conversation Com In Co (DP)
http://statistics.data.gov.uk/id/local-authority/38,Oxfordshire County Council,Delegated Health Tasks  - Over 65,14/10/2022,5691,,3111270841,557.94,Joining Hands Healthcare Ltd
http://statistics.data.gov.uk/id/local-authority/38,Oxfordshire County Council,Support at Home U65 MH OBC Contract,11/10/2022,5689,,3111265294,558.04,Response Organisation
http://statistics.data.gov.uk/id/local-authority/38,Oxfordshire County Council,Support at Home 65+ Subsantance Abuse,11/10/2022,5689,,3111265310,558.04,Response Organisation
http://statistics.data.gov.uk/id/local-authority/38,Oxfordshire County Council,UASC 16&17,11/10/2022,5549,B*Fostering Allowance - Regulation 38,3111264217,558.43,Redacted Personal Data
http://statistics.data.gov.uk/id/local-authority/38,Oxfordshire County Council,Delegated Health Tasks  - Over 65,21/10/2022,5691,,3111273698,558.5,Bolff Healthcare Services Ltd
http://statistics.data.gov.uk/id/local-authority/38,Oxfordshire County Council,Support at Home U65 MH OBC Contract,25/10/2022,5899,Social Care - Direct Payments,3111275037,559.12,Redacted Personal Data
http://statistics.data.gov.uk/id/local-authority/38,Oxfordshire County Council,Support at Home U65 MH OBC Contract,25/10/2022,5899,Social Care - Direct Payments,3111274805,559.12,Redacted Personal Data
http://statistics.data.gov.uk/id/local-authority/38,Oxfordshire County Council,Support at Home U65 Learning Disability,11/10/2022,5227,Other Transport Arrangements,3111262892,560,Go Green Taxis
http://statistics.data.gov.uk/id/local-authority/38,Oxfordshire County Council,RBWM Adoption Support Fund,25/10/2022,4861,Hired and Contracted Services,2201040939,560,Heads & Hearts Ltd
http://statistics.data.gov.uk/id/local-authority/38,Oxfordshire County Council,TRANSPORT COSTS,14/10/2022,5227,Other Transport Arrangements,3111270614,560,Her Ride Limited
http://statistics.data.gov.uk/id/local-authority/38,Oxfordshire County Council,Support at Home U65 MH OBC Contract,25/10/2022,5899,Social Care - Direct Payments,3111275408,560,Redacted Personal Data
http://statistics.data.gov.uk/id/local-authority/38,Oxfordshire County Council,LD Continuing Care - Sup at Home - U65,18/10/2022,5691,,3111272462,560,KIT Mobility Taxis Oxford Ltd
http://statistics.data.gov.uk/id/local-authority/38,Oxfordshire County Council,Support at Home U65 Learning Disability,25/10/2022,5899,Social Care - Direct Payments,3111274961,560,Redacted Personal Data
http://statistics.data.gov.uk/id/local-authority/38,Oxfordshire County Council,LEGAL BUDGET,15/10/2022,5251,Legal Costs,3111270930,560,OCC One Time Vendor
http://statistics.data.gov.uk/id/local-authority/38,Oxfordshire County Council,ATV Adoption Oxford,17/10/2022,5365,Non-Staff Subsistence and Expenses,3111271001,560,OCC One Time Vendor
http://statistics.data.gov.uk/id/local-authority/38,Oxfordshire County Council,Support at Home U65 Learning Disability,18/10/2022,5227,Other Transport Arrangements,3111271576,560,Oxon Transport Services Ltd
http://statistics.data.gov.uk/id/local-authority/38,Oxfordshire County Council,Oxfordshire Adoption Support Fund,04/10/2022,4861,Hired and Contracted Services,2201033450,560,PACT (PARENTS & CHILDREN TOGETHER)
http://statistics.data.gov.uk/id/local-authority/38,Oxfordshire County Council,Support at Home U65 Physical Support,20/10/2022,5227,Other Transport Arrangements,3111273304,560,Phoenixx Cars Ltd
http://statistics.data.gov.uk/id/local-authority/38,Oxfordshire County Council,Oxfordshire Adoption Support Fund,25/10/2022,4861,Hired and Contracted Services,2201040844,560,The Child Psychology Service
http://statistics.data.gov.uk/id/local-authority/38,Oxfordshire County Council,Swindon Adoption Support Fund,06/10/2022,4861,Hired and Contracted Services,2201034466,560,The Family Place
http://statistics.data.gov.uk/id/local-authority/38,Oxfordshire County Council,FOSTERING MAIN,11/10/2022,5549,B*Fostering Allowance - Regulation 38,3111264471,560.17,Redacted Personal Data
http://statistics.data.gov.uk/id/local-authority/38,Oxfordshire County Council,FOSTERING MAIN,11/10/2022,5549,B*Fostering Allowance - Regulation 38,3111264477,560.17,Redacted Personal Data
http://statistics.data.gov.uk/id/local-authority/38,Oxfordshire County Council,Catering Management Soft FM,28/10/2022,4477,Catering Equipment,2201041430,560.27,Whitco Catering & Bakery Equipment
http://statistics.data.gov.uk/id/local-authority/38,Oxfordshire County Council,Delegated Health Tasks  - Under 65,18/10/2022,5691,,3111272450,560.45,FiNN Homecare Ltd
http://statistics.data.gov.uk/id/local-authority/38,Oxfordshire County Council,CHC Fast Track - Sup at Homes - Over 65,18/10/2022,5691,,3111272451,560.46,FiNN Homecare Ltd
http://statistics.data.gov.uk/id/local-authority/38,Oxfordshire County Council,FOSTERING MAIN,11/10/2022,5549,B*Fostering Allowance - Regulation 38,3111263323,561,Redacted Personal Data
http://statistics.data.gov.uk/id/local-authority/38,Oxfordshire County Council,FOSTERING MAIN,11/10/2022,5549,B*Fostering Allowance - Regulation 38,3111263349,561,Redacted Personal Data
http://statistics.data.gov.uk/id/local-authority/38,Oxfordshire County Council,FOSTERING MAIN,11/10/2022,5549,B*Fostering Allowance - Regulation 38,3111263395,561,Redacted Personal Data
http://statistics.data.gov.uk/id/local-authority/38,Oxfordshire County Council,FOSTERING MAIN,11/10/2022,5549,B*Fostering Allowance - Regulation 38,3111263397,561,Redacted Personal Data
http://statistics.data.gov.uk/id/local-authority/38,Oxfordshire County Council,FOSTERING MAIN,11/10/2022,5549,B*Fostering Allowance - Regulation 38,3111263313,561,Redacted Personal Data
http://statistics.data.gov.uk/id/local-authority/38,Oxfordshire County Council,FOSTERING MAIN,11/10/2022,5549,B*Fostering Allowance - Regulation 38,3111263460,561,Redacted Personal Data
http://statistics.data.gov.uk/id/local-authority/38,Oxfordshire County Council,FOSTERING MAIN,11/10/2022,5532,B*Fostering - Loan Equipment,3111263691,561,Redacted Personal Data
http://statistics.data.gov.uk/id/local-authority/38,Oxfordshire County Council,FOSTERING MAIN,11/10/2022,5549,B*Fostering Allowance - Regulation 38,3111263739,561,Redacted Personal Data
http://statistics.data.gov.uk/id/local-authority/38,Oxfordshire County Council,FOSTERING MAIN,11/10/2022,5549,B*Fostering Allowance - Regulation 38,3111263784,561,Redacted Personal Data
http://statistics.data.gov.uk/id/local-authority/38,Oxfordshire County Council,FOSTERING MAIN,11/10/2022,5549,B*Fostering Allowance - Regulation 38,3111263916,561,Redacted Personal Data
http://statistics.data.gov.uk/id/local-authority/38,Oxfordshire County Council,FOSTERING MAIN,11/10/2022,5549,B*Fostering Allowance - Regulation 38,3111263965,561,Redacted Personal Data
http://statistics.data.gov.uk/id/local-authority/38,Oxfordshire County Council,FOSTERING MAIN,11/10/2022,5549,B*Fostering Allowance - Regulation 38,3111263971,561,Redacted Personal Data
http://statistics.data.gov.uk/id/local-authority/38,Oxfordshire County Council,FOSTERING MAIN,11/10/2022,5549,B*Fostering Allowance - Regulation 38,3111263975,561,Redacted Personal Data
http://statistics.data.gov.uk/id/local-authority/38,Oxfordshire County Council,FOSTERING MAIN,11/10/2022,5549,B*Fostering Allowance - Regulation 38,3111263978,561,Redacted Personal Data
http://statistics.data.gov.uk/id/local-authority/38,Oxfordshire County Council,FOSTERING MAIN,11/10/2022,5549,B*Fostering Allowance - Regulation 38,3111264255,561,Redacted Personal Data
http://statistics.data.gov.uk/id/local-authority/38,Oxfordshire County Council,FOSTERING MAIN,11/10/2022,5549,B*Fostering Allowance - Regulation 38,3111264157,561,Redacted Personal Data
http://statistics.data.gov.uk/id/local-authority/38,Oxfordshire County Council,UASC 16&17,11/10/2022,5549,B*Fostering Allowance - Regulation 38,3111264209,561,Redacted Personal Data
http://statistics.data.gov.uk/id/local-authority/38,Oxfordshire County Council,FOSTERING MAIN,11/10/2022,5549,B*Fostering Allowance - Regulation 38,3111263920,561,Redacted Personal Data
http://statistics.data.gov.uk/id/local-authority/38,Oxfordshire County Council,FOSTERING MAIN,11/10/2022,5549,B*Fostering Allowance - Regulation 38,3111263678,561,Redacted Personal Data
http://statistics.data.gov.uk/id/local-authority/38,Oxfordshire County Council,FOSTERING MAIN,11/10/2022,5549,B*Fostering Allowance - Regulation 38,3111263410,561,Redacted Personal Data
http://statistics.data.gov.uk/id/local-authority/38,Oxfordshire County Council,FOSTERING MAIN,11/10/2022,5549,B*Fostering Allowance - Regulation 38,3111264448,561,Redacted Personal Data
http://statistics.data.gov.uk/id/local-authority/38,Oxfordshire County Council,FOSTERING MAIN,11/10/2022,5549,B*Fostering Allowance - Regulation 38,3111264547,561,Redacted Personal Data
http://statistics.data.gov.uk/id/local-authority/38,Oxfordshire County Council,FOSTERING MAIN,11/10/2022,5549,B*Fostering Allowance - Regulation 38,3111264616,561,Redacted Personal Data
http://statistics.data.gov.uk/id/local-authority/38,Oxfordshire County Council,FOSTERING MAIN,11/10/2022,5549,B*Fostering Allowance - Regulation 38,3111264721,561,Redacted Personal Data
http://statistics.data.gov.uk/id/local-authority/38,Oxfordshire County Council,LANDLORD & TENANT,27/10/2022,4001,Uniform Business Rates,3500089015,561,West Oxfordshire District Council
http://statistics.data.gov.uk/id/local-authority/38,Oxfordshire County Council,Support at Home U65 Learning Disability,12/10/2022,5688,,3111268638,561.28,Autism at Kingwood Limited
http://statistics.data.gov.uk/id/local-authority/38,Oxfordshire County Council,LIBRARY COLLECTIONS,03/10/2022,4539,"Books, DVDs and CDs",3111260956,561.51,ASKEWS & HOLTS LIBRARY SERVICES LTD
http://statistics.data.gov.uk/id/local-authority/38,Oxfordshire County Council,Support at Home U65 Learning Disability,26/10/2022,5697,,3111276212,561.6,Pennyhooks Farm Trust
http://statistics.data.gov.uk/id/local-authority/38,Oxfordshire County Council,SM DISABILITIES,26/10/2022,5554,Childrens' Social Care - Direct Payments,3111276490,562.07,Purple Conversation Com In Co (DP)
http://statistics.data.gov.uk/id/local-authority/38,Oxfordshire County Council,Support at Home 65+ Physical Support,11/10/2022,5698,,3111264632,562.38,Oxford Private Care
http://statistics.data.gov.uk/id/local-authority/38,Oxfordshire County Council,Support at Home U65 Physical Support,25/10/2022,5899,Social Care - Direct Payments,3111275543,562.96,Purple Conversation Com In Co (DP)
http://statistics.data.gov.uk/id/local-authority/38,Oxfordshire County Council,CHC Fast Track - Sup at Homes - Over 65,28/10/2022,5691,,3111277411,563.29,Chamomile Care Ltd
http://statistics.data.gov.uk/id/local-authority/38,Oxfordshire County Council,Support at Home 65+ Physical Support,11/10/2022,5696,,3111263028,563.92,All Care GB Ltd
http://statistics.data.gov.uk/id/local-authority/38,Oxfordshire County Council,COMM DRAWDOWN FUNDNG,17/10/2022,8102,Payments to main contractor,2201037956,564.48,Milestone Infrastructure Limited
http://statistics.data.gov.uk/id/local-authority/38,Oxfordshire County Council,VOIDS/VACANCY COSTS,12/10/2022,3945,Rent,3111266341,564.73,Cherwell District Council
http://statistics.data.gov.uk/id/local-authority/38,Oxfordshire County Council,VOIDS/VACANCY COSTS,12/10/2022,3945,Rent,3111266342,564.73,Cherwell District Council
http://statistics.data.gov.uk/id/local-authority/38,Oxfordshire County Council,CORONER,12/10/2022,5202,Use of Mortuary Services,2201036293,565,ORAMIS DIGITAL AUTOPSY LTD
http://statistics.data.gov.uk/id/local-authority/38,Oxfordshire County Council,Delegated Health Tasks  - Under 65,19/10/2022,5691,,3111272945,565.5,Bluebird Care
http://statistics.data.gov.uk/id/local-authority/38,Oxfordshire County Council,Delegated Health Tasks  - Over 65,19/10/2022,5691,,3111272957,565.5,Bluebird Care
http://statistics.data.gov.uk/id/local-authority/38,Oxfordshire County Council,Community Support Service - Abingdon,12/10/2022,2040,Agency Staff,2201036513,565.78,Completely Care Ltd
http://statistics.data.gov.uk/id/local-authority/38,Oxfordshire County Council,FOSTERING MAIN,18/10/2022,5549,B*Fostering Allowance - Regulation 38,3111272005,565.9,Redacted Personal Data
http://statistics.data.gov.uk/id/local-authority/38,Oxfordshire County Council,FOSTERING MAIN,25/10/2022,5549,B*Fostering Allowance - Regulation 38,3111274697,565.9,Redacted Personal Data
http://statistics.data.gov.uk/id/local-authority/38,Oxfordshire County Council,Support at Home 65+ Learning Disability,11/10/2022,5689,,3111265003,565.98,Greigcare Home Service
http://statistics.data.gov.uk/id/local-authority/38,Oxfordshire County Council,Children in Care Non-staffing - Centrl 1,12/10/2022,5663,B*Birthday Allowance,9300057480,566,OCC SS Oxford City Div 1 Cash
http://statistics.data.gov.uk/id/local-authority/38,Oxfordshire County Council,Support at Home 65+ Physical Support,11/10/2022,5689,,3111265007,566.45,Greigcare Home Service
http://statistics.data.gov.uk/id/local-authority/38,Oxfordshire County Council,Support at Home U65 Memory & Cognition,12/10/2022,5693,,3111265448,567,Same Ways Care Ltd
http://statistics.data.gov.uk/id/local-authority/38,Oxfordshire County Council,Support at Home 65+ Physical Support,12/10/2022,5693,,3111265462,567,We-Care-Recruitment Ltd
http://statistics.data.gov.uk/id/local-authority/38,Oxfordshire County Council,Support at Home 65+ Memory & Cognition,12/10/2022,5686,,3111267408,567.14,Orders of St John
http://statistics.data.gov.uk/id/local-authority/38,Oxfordshire County Council,LIBRARY COLLECTIONS,14/10/2022,4539,"Books, DVDs and CDs",3111270740,567.26,ASKEWS & HOLTS LIBRARY SERVICES LTD
http://statistics.data.gov.uk/id/local-authority/38,Oxfordshire County Council,Support at Home 65+ Physical Support,19/10/2022,5693,,3111272569,567.38,Care with Care Ltd
http://statistics.data.gov.uk/id/local-authority/38,Oxfordshire County Council,Support at Home 65+ Physical Support,11/10/2022,5698,,3111264169,567.49,Day & Night Care Assistance
http://statistics.data.gov.uk/id/local-authority/38,Oxfordshire County Council,TRANSPORT GENERAL,04/10/2022,4270,HTM / Other Vehicle - Hire Charges,2201033789,567.69,DAYS Fleet
http://statistics.data.gov.uk/id/local-authority/38,Oxfordshire County Council,TRANSPORT GENERAL,04/10/2022,4270,HTM / Other Vehicle - Hire Charges,2201033791,567.69,DAYS Fleet
http://statistics.data.gov.uk/id/local-authority/38,Oxfordshire County Council,Care Homes - Over 65 Memory & Cognition,12/10/2022,5686,,3111268719,567.86,Leafield Rest Home
http://statistics.data.gov.uk/id/local-authority/38,Oxfordshire County Council,Support at Home U65 Physical Support,25/10/2022,5899,Social Care - Direct Payments,3111275105,568.16,Redacted Personal Data
http://statistics.data.gov.uk/id/local-authority/38,Oxfordshire County Council,Support at Home U65 Learning Disability,25/10/2022,5899,Social Care - Direct Payments,3111275157,568.16,Redacted Personal Data
http://statistics.data.gov.uk/id/local-authority/38,Oxfordshire County Council,SHARED LIVES,12/10/2022,5555,Payments to Carers,3111270153,568.51,Redacted Personal Data
http://statistics.data.gov.uk/id/local-authority/38,Oxfordshire County Council,FAM GRP CONFERENCES,17/10/2022,4940,Other Services,2201037473,568.74,Cary Dunnet
http://statistics.data.gov.uk/id/local-authority/38,Oxfordshire County Council,Support at Home U65 Other /Soc Isolation,25/10/2022,5899,Social Care - Direct Payments,3111274891,569.6,Redacted Personal Data
http://statistics.data.gov.uk/id/local-authority/38,Oxfordshire County Council,SEN TRANSPORT,11/10/2022,5227,Other Transport Arrangements,3111262779,570,Crown Cabs Travel Ltd
http://statistics.data.gov.uk/id/local-authority/38,Oxfordshire County Council,FOSTERING MAIN,11/10/2022,5549,B*Fostering Allowance - Regulation 38,3111263559,570,Redacted Personal Data
http://statistics.data.gov.uk/id/local-authority/38,Oxfordshire County Council,FOSTERING MAIN,11/10/2022,5549,B*Fostering Allowance - Regulation 38,3111263594,570,Redacted Personal Data
http://statistics.data.gov.uk/id/local-authority/38,Oxfordshire County Council,SEN TRANSPORT,05/10/2022,5227,Other Transport Arrangements,3111261910,570,Faringdon Cars
http://statistics.data.gov.uk/id/local-authority/38,Oxfordshire County Council,FOSTERING MAIN,11/10/2022,5549,B*Fostering Allowance - Regulation 38,3111263763,570,Redacted Personal Data
http://statistics.data.gov.uk/id/local-authority/38,Oxfordshire County Council,Household Support Fund,17/10/2022,7690,Additional Grant for Schools,3111271366,570,Langtree Academy
http://statistics.data.gov.uk/id/local-authority/38,Oxfordshire County Council,AGENCY RESID - DISAB,11/10/2022,5549,B*Fostering Allowance - Regulation 38,3111264700,570,Redacted Personal Data
http://statistics.data.gov.uk/id/local-authority/38,Oxfordshire County Council,FOSTERING MAIN,11/10/2022,5549,B*Fostering Allowance - Regulation 38,3111264752,570,Redacted Personal Data
http://statistics.data.gov.uk/id/local-authority/38,Oxfordshire County Council,Household Support Fund,17/10/2022,7690,Additional Grant for Schools,3111271339,570,The Propeller Academy Trust
http://statistics.data.gov.uk/id/local-authority/38,Oxfordshire County Council,Household Support Fund,17/10/2022,7690,Additional Grant for Schools,3111271400,570,The White Horse Federation
http://statistics.data.gov.uk/id/local-authority/38,Oxfordshire County Council,Household Support Fund,17/10/2022,7690,Additional Grant for Schools,3111271464,570,Wolvercote Primary School
http://statistics.data.gov.uk/id/local-authority/38,Oxfordshire County Council,SM DISABILITIES,26/10/2022,5554,Childrens' Social Care - Direct Payments,3111276514,570.47,Purple Conversation Com In Co (DP)
http://statistics.data.gov.uk/id/local-authority/38,Oxfordshire County Council,Support at Home 65+ Physical Support,14/10/2022,5693,,3111270684,570.52,Genuine Carers Ltd
http://statistics.data.gov.uk/id/local-authority/38,Oxfordshire County Council,POST 16 SEN,27/10/2022,4320,Pupil / Client Travel Reimbursement,3111276906,571.02,Redacted Personal Data
http://statistics.data.gov.uk/id/local-authority/38,Oxfordshire County Council,SEN TRANSPORT,24/10/2022,4320,Pupil / Client Travel Reimbursement,3111273987,571.02,Redacted Personal Data
http://statistics.data.gov.uk/id/local-authority/38,Oxfordshire County Council,Support at Home U65 Learning Disability,12/10/2022,5688,,3111267318,572.08,ADVANCE HOUSING & SUPPORT LTD
http://statistics.data.gov.uk/id/local-authority/38,Oxfordshire County Council,Support at Home U65 Learning Disability,12/10/2022,5688,,3111267321,572.08,ADVANCE HOUSING & SUPPORT LTD
http://statistics.data.gov.uk/id/local-authority/38,Oxfordshire County Council,Support at Home U65 Learning Disability,12/10/2022,5688,,3111267323,572.08,ADVANCE HOUSING & SUPPORT LTD
http://statistics.data.gov.uk/id/local-authority/38,Oxfordshire County Council,Support at Home U65 Learning Disability,12/10/2022,5688,,3111267326,572.08,ADVANCE HOUSING & SUPPORT LTD
http://statistics.data.gov.uk/id/local-authority/38,Oxfordshire County Council,FOSTERING MAIN,11/10/2022,5227,Other Transport Arrangements,3111264633,572.36,Redacted Personal Data
http://statistics.data.gov.uk/id/local-authority/38,Oxfordshire County Council,Support at Home U65 Physical Support,19/10/2022,5697,,3111272512,572.4,Headway Oxford
http://statistics.data.gov.uk/id/local-authority/38,Oxfordshire County Council,COMMUNICATIONS,28/10/2022,5086,Other Communications,2201041416,572.75,Radiocoms Holdings Limited
http://statistics.data.gov.uk/id/local-authority/38,Oxfordshire County Council,Support at Home U65 HFA,12/10/2022,5688,,3111270030,572.84,The Laurels (Witney)
http://statistics.data.gov.uk/id/local-authority/38,Oxfordshire County Council,AGENCY RESID - DISAB,04/10/2022,5549,B*Fostering Allowance - Regulation 38,3111261721,573,Redacted Personal Data
http://statistics.data.gov.uk/id/local-authority/38,Oxfordshire County Council,Continuing Care - Support at Home - 65+,14/10/2022,5691,,3111270842,573,Joining Hands Healthcare Ltd
http://statistics.data.gov.uk/id/local-authority/38,Oxfordshire County Council,AGENCY RESID - DISAB,04/10/2022,5549,B*Fostering Allowance - Regulation 38,3111261492,573,Redacted Personal Data
http://statistics.data.gov.uk/id/local-authority/38,Oxfordshire County Council,LEAVING CARE CITY 2,06/10/2022,3942,Hire of Accommodation and Facilities,3111262260,573,Redacted Personal Data
http://statistics.data.gov.uk/id/local-authority/38,Oxfordshire County Council,Support at Home 65+ Physical Support,12/10/2022,5693,,3111265425,573.3,Oasis Private Care Ltd
http://statistics.data.gov.uk/id/local-authority/38,Oxfordshire County Council,Support at Home 65+ Physical Support,21/10/2022,5693,,3111273505,573.3,Oasis Private Care Ltd
http://statistics.data.gov.uk/id/local-authority/38,Oxfordshire County Council,FPT NORTH,18/10/2022,4330,Transport to School Activities,3111272269,573.5,Redacted Personal Data
http://statistics.data.gov.uk/id/local-authority/38,Oxfordshire County Council,Delegated Health Tasks  - Over 65,28/10/2022,5691,,3111277427,573.8,We Care (TJ) LTD
http://statistics.data.gov.uk/id/local-authority/38,Oxfordshire County Council,LANDLORD & TENANT,27/10/2022,4001,Uniform Business Rates,3500088941,574,Cherwell District Council
http://statistics.data.gov.uk/id/local-authority/38,Oxfordshire County Council,HN IN SEC SCHOOLS,19/10/2022,5537,Payments to Other Establishments,3111272821,574,FUTURES INSTITUTE BANBURY
http://statistics.data.gov.uk/id/local-authority/38,Oxfordshire County Council,LANDLORD & TENANT,27/10/2022,4001,Uniform Business Rates,3500089028,574,South Oxfordshire District Council
http://statistics.data.gov.uk/id/local-authority/38,Oxfordshire County Council,Delegated Health Tasks  - Over 65,25/10/2022,5691,,3111276174,574.08,Bluebird Care (Oxford South & West)
http://statistics.data.gov.uk/id/local-authority/38,Oxfordshire County Council,Delegated Health Tasks  - Over 65,25/10/2022,5691,,3111276178,574.08,Bluebird Care (Oxford South & West)
http://statistics.data.gov.uk/id/local-authority/38,Oxfordshire County Council,Support at Home U65 MH OBC Contract,11/10/2022,5689,,3111264697,574.6,Casa Care Ltd
http://statistics.data.gov.uk/id/local-authority/38,Oxfordshire County Council,FOSTERING MAIN,04/10/2022,5545,B*Fostering Enhancements - Level 2,3111261184,575,Redacted Personal Data
http://statistics.data.gov.uk/id/local-authority/38,Oxfordshire County Council,Children in Care Non-staffing - North,17/10/2022,4407,Equipment,9300057546,575.1,OCC SS Banbury Area Off Cash
http://statistics.data.gov.uk/id/local-authority/38,Oxfordshire County Council,FAM GRP CONFERENCES,07/10/2022,4940,Other Services,2201034999,575.3,Jessica Howards
http://statistics.data.gov.uk/id/local-authority/38,Oxfordshire County Council,Delegated Health Tasks  - Over 65,19/10/2022,5691,,3111272880,575.55,Bluebird Care
http://statistics.data.gov.uk/id/local-authority/38,Oxfordshire County Council,Support at Home U65 Learning Disability,25/10/2022,5899,Social Care - Direct Payments,3111275497,575.68,Purple Conversation Com In Co (DP)
http://statistics.data.gov.uk/id/local-authority/38,Oxfordshire County Council,Support at Home 65+ Physical Support,25/10/2022,5899,Social Care - Direct Payments,3111275637,575.68,Purple Conversation Com In Co (DP)
http://statistics.data.gov.uk/id/local-authority/38,Oxfordshire County Council,Support at Home U65 Learning Disability,25/10/2022,5899,Social Care - Direct Payments,3111276018,575.68,Purple Conversation Com In Co (DP)
http://statistics.data.gov.uk/id/local-authority/38,Oxfordshire County Council,Support at Home 65+ Physical Support,11/10/2022,5698,,3111264456,575.79,Day & Night Care Assistance
http://statistics.data.gov.uk/id/local-authority/38,Oxfordshire County Council,Support at Home 65+ Memory & Cognition,25/10/2022,5899,Social Care - Direct Payments,3111275077,576,Redacted Personal Data
http://statistics.data.gov.uk/id/local-authority/38,Oxfordshire County Council,MOTOR FLEET,18/10/2022,3053,,3111272494,576,OCC One Time Vendor
http://statistics.data.gov.uk/id/local-authority/38,Oxfordshire County Council,Support at Home U65 Physical Support,03/10/2022,5227,Other Transport Arrangements,3111261008,576,TOOTS TAXIS LTD
http://statistics.data.gov.uk/id/local-authority/38,Oxfordshire County Council,FOSTERING MAIN,04/10/2022,5541,B*Foster Parents,3111261243,577,Redacted Personal Data
http://statistics.data.gov.uk/id/local-authority/38,Oxfordshire County Council,FOSTERING MAIN,04/10/2022,5541,B*Foster Parents,3111261420,577,Redacted Personal Data
http://statistics.data.gov.uk/id/local-authority/38,Oxfordshire County Council,Support at Home 65+ Physical Support,11/10/2022,5689,,3111264623,577.39,Caremark (West Oxfordshire & Cherwe
http://statistics.data.gov.uk/id/local-authority/38,Oxfordshire County Council,Support at Home 65+ Physical Support,11/10/2022,5689,,3111265107,577.41,Kare Plus Oxford
http://statistics.data.gov.uk/id/local-authority/38,Oxfordshire County Council,FOSTERING MAIN,11/10/2022,5227,Other Transport Arrangements,3111264628,578.48,Redacted Personal Data
http://statistics.data.gov.uk/id/local-authority/38,Oxfordshire County Council,Oxfordshire Adoption Support Fund,25/10/2022,4861,Hired and Contracted Services,2201040851,579,Topaz Therapeutic Life Story
http://statistics.data.gov.uk/id/local-authority/38,Oxfordshire County Council,Support at Home 65+ Physical Support,12/10/2022,5693,,3111265408,579.6,BE WELL CARE LTD
http://statistics.data.gov.uk/id/local-authority/38,Oxfordshire County Council,Support at Home 65+ Physical Support,11/10/2022,5699,,3111264013,579.6,Care Hearted Ltd
http://statistics.data.gov.uk/id/local-authority/38,Oxfordshire County Council,Support at Home U65 Physical Support,11/10/2022,5689,,3111264925,579.6,Golden Services Care Ltd
http://statistics.data.gov.uk/id/local-authority/38,Oxfordshire County Council,Support at Home 65+ Memory & Cognition,14/10/2022,5693,,3111270708,579.6,Pioneering Care Bicester Limited
http://statistics.data.gov.uk/id/local-authority/38,Oxfordshire County Council,Support at Home 65+ Physical Support,11/10/2022,5699,,3111265094,579.6,YOD Ltd
http://statistics.data.gov.uk/id/local-authority/38,Oxfordshire County Council,Support at Home 65+ Physical Support,27/10/2022,5696,,3111276866,579.8,Orders of St John Care Trust
http://statistics.data.gov.uk/id/local-authority/38,Oxfordshire County Council,Support at Home U65 Learning Disability,11/10/2022,5682,,3111263012,579.87,The Brandon Trust
http://statistics.data.gov.uk/id/local-authority/38,Oxfordshire County Council,L&D CORE PROGRAMME,12/10/2022,4615,Drugs and Medical Supplies,2201036470,580,ST JOHN AMBULANCE
http://statistics.data.gov.uk/id/local-authority/38,Oxfordshire County Council,L&D CORE PROGRAMME,12/10/2022,4615,Drugs and Medical Supplies,2201036475,580,ST JOHN AMBULANCE
http://statistics.data.gov.uk/id/local-authority/38,Oxfordshire County Council,Support at Home 65+ Physical Support,19/10/2022,5693,,3111272633,580.16,XPERIENCE RECRUITMENT LIMITED
http://statistics.data.gov.uk/id/local-authority/38,Oxfordshire County Council,Planned Maintenance,17/10/2022,3787,Premises Repairs,2201037634,580.32,Marlowe Fire & Security Ltd
http://statistics.data.gov.uk/id/local-authority/38,Oxfordshire County Council,Support at Home U65 Learning Disability,11/10/2022,5682,,3111263008,580.88,The Brandon Trust
http://statistics.data.gov.uk/id/local-authority/38,Oxfordshire County Council,Support at Home U65 Learning Disability,11/10/2022,5899,Social Care - Direct Payments,3111262927,581.52,Purple Conversation Com In Co (DP)
http://statistics.data.gov.uk/id/local-authority/38,Oxfordshire County Council,UASC 16&17,26/10/2022,5558,,3111276616,581.91,Silver Birch Care
http://statistics.data.gov.uk/id/local-authority/38,Oxfordshire County Council,Swindon Adoption Support Fund,10/10/2022,4861,Hired and Contracted Services,2201035277,582.12,Clifton Children's Society
http://statistics.data.gov.uk/id/local-authority/38,Oxfordshire County Council,ADOPTION ALLOWANCES,04/10/2022,5664,B*Holiday Allowance,3111261844,582.3,Redacted Personal Data
http://statistics.data.gov.uk/id/local-authority/38,Oxfordshire County Council,Support at Home U65 Mental Health,11/10/2022,5899,Social Care - Direct Payments,3111262916,582.4,Redacted Personal Data
http://statistics.data.gov.uk/id/local-authority/38,Oxfordshire County Council,Support at Home U65 Mental Health,25/10/2022,5899,Social Care - Direct Payments,3111274824,582.4,Redacted Personal Data
http://statistics.data.gov.uk/id/local-authority/38,Oxfordshire County Council,Support at Home U65 Learning Disability,12/10/2022,5690,,3111267854,582.71,The Camden Society
http://statistics.data.gov.uk/id/local-authority/38,Oxfordshire County Council,UASC 16&17,05/10/2022,5365,Non-Staff Subsistence and Expenses,9300057411,582.85,OCC SS Oxford City Div 1 Cash
http://statistics.data.gov.uk/id/local-authority/38,Oxfordshire County Council,FOSTERING MAIN,18/10/2022,5545,B*Fostering Enhancements - Level 2,3111272011,583,Redacted Personal Data
http://statistics.data.gov.uk/id/local-authority/38,Oxfordshire County Council,FOSTERING MAIN,25/10/2022,5545,B*Fostering Enhancements - Level 2,3111274152,583,Redacted Personal Data
http://statistics.data.gov.uk/id/local-authority/38,Oxfordshire County Council,Support at Home U65 Learning Disability,25/10/2022,5899,Social Care - Direct Payments,3111275985,583.48,Purple Conversation Com In Co (DP)
http://statistics.data.gov.uk/id/local-authority/38,Oxfordshire County Council,Support at Home U65 Learning Disability,11/10/2022,5682,,3111263013,583.57,The Brandon Trust
http://statistics.data.gov.uk/id/local-authority/38,Oxfordshire County Council,Support at Home U65 Learning Disability,14/10/2022,5693,,3111270698,584.1,MacIntyre Care (Womaston)
http://statistics.data.gov.uk/id/local-authority/38,Oxfordshire County Council,Support at Home 65+ Mental Health,25/10/2022,5899,Social Care - Direct Payments,3111275604,584.16,Purple Conversation Com In Co (DP)
http://statistics.data.gov.uk/id/local-authority/38,Oxfordshire County Council,Staff Travel Benefits,20/10/2022,4340,Staff and Volunteer Travel Expenses - General,2201039513,584.25,Oxford Bus Company Ltd
http://statistics.data.gov.uk/id/local-authority/38,Oxfordshire County Council,40 THE MOORS,18/10/2022,4270,HTM / Other Vehicle - Hire Charges,2201038466,584.6,The Oxfordshire Taxi Co Ltd T/A
http://statistics.data.gov.uk/id/local-authority/38,Oxfordshire County Council,Support at Home 65+ Physical Support,11/10/2022,5689,,3111264716,584.79,Oxfordshire Crossroads
http://statistics.data.gov.uk/id/local-authority/38,Oxfordshire County Council,ICT Operations & Maintenance,25/10/2022,8103,Payments to sub contractor,2201040868,585,Embridge Consulting (UK) LTD
http://statistics.data.gov.uk/id/local-authority/38,Oxfordshire County Council,Household Support Fund,17/10/2022,7690,Additional Grant for Schools,3111271334,585,Faringdon Academy Schools
http://statistics.data.gov.uk/id/local-authority/38,Oxfordshire County Council,CHC Fast Track - Sup at Homes - Over 65,07/10/2022,5691,,3111262580,585,JMC Care Solutions Limited
http://statistics.data.gov.uk/id/local-authority/38,Oxfordshire County Council,Family Solutions Plus Non-staff - South,13/10/2022,5394,Other Expenses,3500088494,585,Redacted Personal Data
http://statistics.data.gov.uk/id/local-authority/38,Oxfordshire County Council,Homes for Ukraine - Education,05/10/2022,5537,Payments to Other Establishments,3111262072,585.06,OCC One Time Vendor
http://statistics.data.gov.uk/id/local-authority/38,Oxfordshire County Council,POST18 UASC DCSF FND,19/10/2022,5365,Non-Staff Subsistence and Expenses,9300057579,585.25,OCC SS Oxford City Div 1 Cash
http://statistics.data.gov.uk/id/local-authority/38,Oxfordshire County Council,ADOPTION ALLOWANCES,18/10/2022,5664,B*Holiday Allowance,3111271940,585.3,Redacted Personal Data
http://statistics.data.gov.uk/id/local-authority/38,Oxfordshire County Council,ADOPTION ALLOWANCES,25/10/2022,5664,B*Holiday Allowance,3111274652,585.3,Redacted Personal Data
http://statistics.data.gov.uk/id/local-authority/38,Oxfordshire County Council,Support at Home 65+ Physical Support,28/10/2022,5693,,3111277385,585.9,Golden Services Care Ltd
http://statistics.data.gov.uk/id/local-authority/38,Oxfordshire County Council,FLEET COSTS,05/10/2022,4270,HTM / Other Vehicle - Hire Charges,2201033857,586.5,Go Plant Fleet Services
http://statistics.data.gov.uk/id/local-authority/38,Oxfordshire County Council,Planned Maintenance,28/10/2022,4861,Hired and Contracted Services,2201041454,587,Barker & Evans Ltd
http://statistics.data.gov.uk/id/local-authority/38,Oxfordshire County Council,Support at Home U65 Learning Disability,27/10/2022,5696,,3111276798,587.4,Orders of St John Care Trust
http://statistics.data.gov.uk/id/local-authority/38,Oxfordshire County Council,SEN Alternative Provision,06/10/2022,4878,Hired and Contracted Services (Curricul,2201034508,587.5,Teaching Personnel Ltd
http://statistics.data.gov.uk/id/local-authority/38,Oxfordshire County Council,AGENCY RESID - DISAB,25/10/2022,5549,B*Fostering Allowance - Regulation 38,3111274748,588,Redacted Personal Data
http://statistics.data.gov.uk/id/local-authority/38,Oxfordshire County Council,TRANSPORT COSTS,24/10/2022,5227,Other Transport Arrangements,3111273910,588,Her Ride Limited
http://statistics.data.gov.uk/id/local-authority/38,Oxfordshire County Council,AGENCY RESID - DISAB,18/10/2022,5549,B*Fostering Allowance - Regulation 38,3111272206,588,Redacted Personal Data
http://statistics.data.gov.uk/id/local-authority/38,Oxfordshire County Council,AGENCY RESID - DISAB,25/10/2022,5549,B*Fostering Allowance - Regulation 38,3111274507,588,Redacted Personal Data
http://statistics.data.gov.uk/id/local-authority/38,Oxfordshire County Council,FOSTERING MAIN,18/10/2022,5541,B*Foster Parents,3111272169,588,Redacted Personal Data
http://statistics.data.gov.uk/id/local-authority/38,Oxfordshire County Council,FOSTERING MAIN,25/10/2022,5541,B*Foster Parents,3111274446,588,Redacted Personal Data
http://statistics.data.gov.uk/id/local-authority/38,Oxfordshire County Council,"CITY, SOUTH & VALE",17/10/2022,4498,Health and Safety Equipment,2201037734,588,WEBER RESCUE UK LTD
http://statistics.data.gov.uk/id/local-authority/38,Oxfordshire County Council,SEN TRANSPORT,24/10/2022,4320,Pupil / Client Travel Reimbursement,3111273990,589.44,Redacted Personal Data
http://statistics.data.gov.uk/id/local-authority/38,Oxfordshire County Council,SEN TRANSPORT,24/10/2022,4320,Pupil / Client Travel Reimbursement,3111274004,589.44,Redacted Personal Data
http://statistics.data.gov.uk/id/local-authority/38,Oxfordshire County Council,Care Homes - Over 65 Memory & Cognition,12/10/2022,5685,B*Cycle tracks,3111266569,589.6,Grace Care Service Ltd T/A Burford
http://statistics.data.gov.uk/id/local-authority/38,Oxfordshire County Council,Support at Home 65+ Physical Support,12/10/2022,5693,,3111265412,589.76,CARE COMPASSION AND CONVERSATIONS
http://statistics.data.gov.uk/id/local-authority/38,Oxfordshire County Council,FOSTERING MAIN,11/10/2022,5549,B*Fostering Allowance - Regulation 38,3111263968,590,Redacted Personal Data
http://statistics.data.gov.uk/id/local-authority/38,Oxfordshire County Council,AGENCY RESID - DISAB,11/10/2022,5549,B*Fostering Allowance - Regulation 38,3111264578,590.01,Redacted Personal Data
http://statistics.data.gov.uk/id/local-authority/38,Oxfordshire County Council,Support at Home U65 Learning Disability,12/10/2022,5690,,3111265579,590.86,Guideposts Trust
http://statistics.data.gov.uk/id/local-authority/38,Oxfordshire County Council,Consultation & Engagement,17/10/2022,4407,Equipment,2201037786,591,City Audio Visual Ltd
http://statistics.data.gov.uk/id/local-authority/38,Oxfordshire County Council,Oxfordshire Adoption Support Fund,10/10/2022,4861,Hired and Contracted Services,2201035402,591,Heidi Willcox
http://statistics.data.gov.uk/id/local-authority/38,Oxfordshire County Council,Support at Home U65 Learning Disability,25/10/2022,5899,Social Care - Direct Payments,3111275113,591.04,Redacted Personal Data
http://statistics.data.gov.uk/id/local-authority/38,Oxfordshire County Council,COMPOSTING,21/10/2022,5526,Payments to Private Contractors,2201039957,591.08,Severn Trent Green Power (Ardley) L
http://statistics.data.gov.uk/id/local-authority/38,Oxfordshire County Council,COMPOSTING,21/10/2022,5526,Payments to Private Contractors,2201039955,591.08,Severn Trent Green Power Biogas Lim
http://statistics.data.gov.uk/id/local-authority/38,Oxfordshire County Council,Support at Home U65 Learning Disability,12/10/2022,5690,,3111267906,591.48,The Camden Society
http://statistics.data.gov.uk/id/local-authority/38,Oxfordshire County Council,Support at Home 65+ Physical Support,25/10/2022,5899,Social Care - Direct Payments,3111274960,592,Redacted Personal Data
http://statistics.data.gov.uk/id/local-authority/38,Oxfordshire County Council,Support at Home U65 Mental Health,25/10/2022,5899,Social Care - Direct Payments,3111275452,592.64,Purple Conversation Com In Co (DP)
http://statistics.data.gov.uk/id/local-authority/38,Oxfordshire County Council,Support at Home 65+ Physical Support,05/10/2022,5693,,3111261999,592.88,Care with Care Ltd
http://statistics.data.gov.uk/id/local-authority/38,Oxfordshire County Council,Support at Home U65 Learning Disability,11/10/2022,5689,,3111265213,592.96,Pechiv Ltd
http://statistics.data.gov.uk/id/local-authority/38,Oxfordshire County Council,ADOPTION ALLOWANCES,11/10/2022,5664,B*Holiday Allowance,3111263310,593.1,Redacted Personal Data
http://statistics.data.gov.uk/id/local-authority/38,Oxfordshire County Council,Support at Home 65+ Physical Support,25/10/2022,5899,Social Care - Direct Payments,3111274909,593.6,Redacted Personal Data
http://statistics.data.gov.uk/id/local-authority/38,Oxfordshire County Council,SEN TRANSPORT,21/10/2022,5227,Other Transport Arrangements,3111273624,594,Oxon Transport Services Ltd
http://statistics.data.gov.uk/id/local-authority/38,Oxfordshire County Council,Support at Home 65+ Physical Support,11/10/2022,5698,,3111264788,594.04,Oxfordshire Crossroads
http://statistics.data.gov.uk/id/local-authority/38,Oxfordshire County Council,Family Solutions Plus Non-staff - Centra,18/10/2022,4940,Other Services,2201038577,595,Advanced Child Care Assessment Ltd
http://statistics.data.gov.uk/id/local-authority/38,Oxfordshire County Council,LD Pool Refurbishments,21/10/2022,3787,Premises Repairs,3111273674,595,OCC One Time Vendor
http://statistics.data.gov.uk/id/local-authority/38,Oxfordshire County Council,ELEC NPR ST LTG,20/10/2022,5526,Payments to Private Contractors,2201039290,595.3,VolkerHighways
http://statistics.data.gov.uk/id/local-authority/38,Oxfordshire County Council,ELEC NPR ST LTG,31/10/2022,5526,Payments to Private Contractors,2201041597,595.3,VolkerHighways
http://statistics.data.gov.uk/id/local-authority/38,Oxfordshire County Council,ELEC NPR ST LTG,31/10/2022,5526,Payments to Private Contractors,2201041598,595.3,VolkerHighways
http://statistics.data.gov.uk/id/local-authority/38,Oxfordshire County Council,ELEC NPR ST LTG,31/10/2022,5526,Payments to Private Contractors,2201041603,595.3,VolkerHighways
http://statistics.data.gov.uk/id/local-authority/38,Oxfordshire County Council,ELEC NPR ST LTG,31/10/2022,5526,Payments to Private Contractors,2201041604,595.3,VolkerHighways
http://statistics.data.gov.uk/id/local-authority/38,Oxfordshire County Council,ELEC NPR ST LTG,31/10/2022,5526,Payments to Private Contractors,2201041605,595.3,VolkerHighways
http://statistics.data.gov.uk/id/local-authority/38,Oxfordshire County Council,ELEC NPR ST LTG,31/10/2022,5526,Payments to Private Contractors,2201041606,595.3,VolkerHighways
http://statistics.data.gov.uk/id/local-authority/38,Oxfordshire County Council,ELEC NPR ST LTG,31/10/2022,5526,Payments to Private Contractors,2201041609,595.3,VolkerHighways
http://statistics.data.gov.uk/id/local-authority/38,Oxfordshire County Council,ELEC NPR ST LTG,31/10/2022,5526,Payments to Private Contractors,2201041610,595.3,VolkerHighways
http://statistics.data.gov.uk/id/local-authority/38,Oxfordshire County Council,ELEC NPR ST LTG,31/10/2022,5526,Payments to Private Contractors,2201041611,595.3,VolkerHighways
http://statistics.data.gov.uk/id/local-authority/38,Oxfordshire County Council,ELEC NPR ST LTG,31/10/2022,5526,Payments to Private Contractors,2201041612,595.3,VolkerHighways
http://statistics.data.gov.uk/id/local-authority/38,Oxfordshire County Council,ELEC NPR ST LTG,31/10/2022,5526,Payments to Private Contractors,2201041614,595.3,VolkerHighways
http://statistics.data.gov.uk/id/local-authority/38,Oxfordshire County Council,Support at Home 65+ Learning Disability,11/10/2022,5689,,3111264221,595.97,Alina Homecare
http://statistics.data.gov.uk/id/local-authority/38,Oxfordshire County Council,Support at Home U65 Physical Support,25/10/2022,5899,Social Care - Direct Payments,3111275513,596,Purple Conversation Com In Co (DP)
http://statistics.data.gov.uk/id/local-authority/38,Oxfordshire County Council,Support at Home U65 Learning Disability,05/10/2022,5227,Other Transport Arrangements,3111261927,596.8,Unitaxi Ltd
http://statistics.data.gov.uk/id/local-authority/38,Oxfordshire County Council,COMM DRAWDOWN FUNDNG,18/10/2022,8004,Design Consultant,2201038514,597,Oxford Direct Services Ltd
http://statistics.data.gov.uk/id/local-authority/38,Oxfordshire County Council,Support at Home U65 Learning Disability,27/10/2022,5696,,3111276790,597.14,Orders of St John Care Trust
http://statistics.data.gov.uk/id/local-authority/38,Oxfordshire County Council,Support at Home U65 Learning Disability,25/10/2022,5899,Social Care - Direct Payments,3111275759,597.56,Purple Conversation Com In Co (DP)
http://statistics.data.gov.uk/id/local-authority/38,Oxfordshire County Council,ALTERNATIVES TO CARE,24/10/2022,2040,Agency Staff,2201040566,597.79,THORNBURY NURSING SERVICES
http://statistics.data.gov.uk/id/local-authority/38,Oxfordshire County Council,CHC Fast Track - Sup at Homes - Over 65,28/10/2022,5691,,3111277438,598,Sue Ryder
http://statistics.data.gov.uk/id/local-authority/38,Oxfordshire County Council,Support at Home U65 Learning Disability,12/10/2022,5690,,3111265659,598.03,Turnstyle
http://statistics.data.gov.uk/id/local-authority/38,Oxfordshire County Council,FOSTERING MAIN,18/10/2022,5227,Other Transport Arrangements,3111272057,598.24,Redacted Personal Data
http://statistics.data.gov.uk/id/local-authority/38,Oxfordshire County Council,Delegated Health Tasks  - Over 65,19/10/2022,5691,,3111272977,598.37,Bluebird Care (Oxford South & West)
http://statistics.data.gov.uk/id/local-authority/38,Oxfordshire County Council,SEN TRANSPORT,03/10/2022,5227,Other Transport Arrangements,3111261049,598.4,C&M Management Services Ltd
http://statistics.data.gov.uk/id/local-authority/38,Oxfordshire County Council,Property Cleaning,20/10/2022,4060,Cleaning Materials,2201039615,598.75,Seldram Supplies
http://statistics.data.gov.uk/id/local-authority/38,Oxfordshire County Council,Support at Home U65 Learning Disability,27/10/2022,5696,,3111276859,599.28,Orders of St John Care Trust
http://statistics.data.gov.uk/id/local-authority/38,Oxfordshire County Council,SEN TRANSPORT,24/10/2022,4320,Pupil / Client Travel Reimbursement,3111274014,599.83,Redacted Personal Data
http://statistics.data.gov.uk/id/local-authority/38,Oxfordshire County Council,SEN TRANSPORT,26/10/2022,4320,Pupil / Client Travel Reimbursement,3111276557,599.83,Redacted Personal Data
http://statistics.data.gov.uk/id/local-authority/38,Oxfordshire County Council,Support at Home U65 Learning Disability,25/10/2022,5899,Social Care - Direct Payments,3111275438,599.84,Redacted Personal Data
http://statistics.data.gov.uk/id/local-authority/38,Oxfordshire County Council,Support at Home 65+ Physical Support,25/10/2022,5899,Social Care - Direct Payments,3111274831,599.92,Redacted Personal Data
http://statistics.data.gov.uk/id/local-authority/38,Oxfordshire County Council,SEN TRANSPORT,03/10/2022,4330,Transport to School Activities,3111260949,600,Ali's Cabs
http://statistics.data.gov.uk/id/local-authority/38,Oxfordshire County Council,SEN TRANSPORT,03/10/2022,5227,Other Transport Arrangements,3111260950,600,Ali's Cabs
http://statistics.data.gov.uk/id/local-authority/38,Oxfordshire County Council,POST 16 SEN,31/10/2022,4330,Transport to School Activities,3111277786,600,Cherwell Cars
http://statistics.data.gov.uk/id/local-authority/38,Oxfordshire County Council,GOVERNANCE,19/10/2022,5380,"Author, Speaker and Lecturer Fees",2201038728,600,Clever Cats Education Services
http://statistics.data.gov.uk/id/local-authority/38,Oxfordshire County Council,GOVERNANCE,19/10/2022,5380,"Author, Speaker and Lecturer Fees",2201038738,600,Clever Cats Education Services
http://statistics.data.gov.uk/id/local-authority/38,Oxfordshire County Council,Oxfordshire Adoption Support Fund,25/10/2022,4861,Hired and Contracted Services,2201040945,600,FAITH HOPE & FAMILIES
http://statistics.data.gov.uk/id/local-authority/38,Oxfordshire County Council,CHC Fast Track - Sup at Homes - Over 65,25/10/2022,5691,,3111276122,600,Joining Hands Healthcare Ltd
http://statistics.data.gov.uk/id/local-authority/38,Oxfordshire County Council,LD Continuing Care - Sup at Home - U65,25/10/2022,5691,,3111276134,600,KIT Mobility Taxis Oxford Ltd
http://statistics.data.gov.uk/id/local-authority/38,Oxfordshire County Council,LD Continuing Care - Sup at Home - U65,28/10/2022,5691,,3111277508,600,KIT Mobility Taxis Oxford Ltd
http://statistics.data.gov.uk/id/local-authority/38,Oxfordshire County Council,LD Continuing Care - Sup at Home - U65,28/10/2022,5691,,3111277515,600,KIT Mobility Taxis Oxford Ltd
http://statistics.data.gov.uk/id/local-authority/38,Oxfordshire County Council,ARAP Around Care,26/10/2022,4330,Transport to School Activities,3111276549,600,LINK SHIRES LTD
http://statistics.data.gov.uk/id/local-authority/38,Oxfordshire County Council,LAC PUPIL PREMIUM,17/10/2022,5537,Payments to Other Establishments,3111271042,600,Ormiston Park Academy
http://statistics.data.gov.uk/id/local-authority/38,Oxfordshire County Council,Community Support Service Oxford,10/10/2022,5227,Other Transport Arrangements,3111262751,600,Oxfordshire Travel Ltd
http://statistics.data.gov.uk/id/local-authority/38,Oxfordshire County Council,TRANSPORT COSTS,18/10/2022,5227,Other Transport Arrangements,3111271536,600,Oxon Transport Services Ltd
http://statistics.data.gov.uk/id/local-authority/38,Oxfordshire County Council,SEN TRANSPORT,21/10/2022,4330,Transport to School Activities,3111273566,600,Oxon Transport Services Ltd
http://statistics.data.gov.uk/id/local-authority/38,Oxfordshire County Council,Property Cleaning,31/10/2022,4070,Cleaning services,2201041707,600,Parker Contract Cleaning
http://statistics.data.gov.uk/id/local-authority/38,Oxfordshire County Council,L&D CORE PROGRAMME,31/10/2022,3103,Other Training Courses and Qualification,2201041581,600,Premier Partnership
http://statistics.data.gov.uk/id/local-authority/38,Oxfordshire County Council,LAC PUPIL PREMIUM,10/10/2022,5380,"Author, Speaker and Lecturer Fees",2201035552,600,ScaffoldEd Limited
http://statistics.data.gov.uk/id/local-authority/38,Oxfordshire County Council,SEN TRANSPORT,31/10/2022,5227,Other Transport Arrangements,3111277596,600,STREAMLINE PEPPARD TAXIS LTD
http://statistics.data.gov.uk/id/local-authority/38,Oxfordshire County Council,Support at Home 65+ Memory & Cognition,25/10/2022,5899,Social Care - Direct Payments,3111275421,601.76,Redacted Personal Data
http://statistics.data.gov.uk/id/local-authority/38,Oxfordshire County Council,FAM GRP CONFERENCES,19/10/2022,4940,Other Services,2201039056,602,Emma Wood
http://statistics.data.gov.uk/id/local-authority/38,Oxfordshire County Council,SPECIAL GUARDIANSHIP,11/10/2022,5661,B*Carriageway pre surf. dressing patchin,3111263154,602.37,Redacted Personal Data
http://statistics.data.gov.uk/id/local-authority/38,Oxfordshire County Council,SPECIAL GUARDIANSHIP,11/10/2022,5661,B*Carriageway pre surf. dressing patchin,3111263153,602.38,Redacted Personal Data
http://statistics.data.gov.uk/id/local-authority/38,Oxfordshire County Council,Support at Home U65 Physical Support,11/10/2022,5689,,3111264892,602.95,Genuine Carers Ltd
http://statistics.data.gov.uk/id/local-authority/38,Oxfordshire County Council,FAM GRP CONFERENCES,17/10/2022,4940,Other Services,2201037474,603.25,Redacted Personal Data
http://statistics.data.gov.uk/id/local-authority/38,Oxfordshire County Council,Support at Home U65 Learning Disability,12/10/2022,5690,,3111265616,603.3,MacIntyre Care (Womaston)
http://statistics.data.gov.uk/id/local-authority/38,Oxfordshire County Council,Support at Home U65 Learning Disability,12/10/2022,5690,,3111265624,603.3,MacIntyre Care (Womaston)
http://statistics.data.gov.uk/id/local-authority/38,Oxfordshire County Council,Support at Home 65+ Learning Disability,12/10/2022,5690,,3111265629,603.3,MacIntyre Care (Womaston)
http://statistics.data.gov.uk/id/local-authority/38,Oxfordshire County Council,Support at Home U65 Learning Disability,12/10/2022,5690,,3111265631,603.3,MacIntyre Care (Womaston)
http://statistics.data.gov.uk/id/local-authority/38,Oxfordshire County Council,POST18 UASC DCSF FND,28/10/2022,5785,Client Lodgings and Accommodation,3111277284,603.41,Response Organisation
http://statistics.data.gov.uk/id/local-authority/38,Oxfordshire County Council,Support at Home U65 Learning Disability,12/10/2022,5690,,3111267709,603.57,Autism at Kingwood Limited
http://statistics.data.gov.uk/id/local-authority/38,Oxfordshire County Council,Support at Home U65 Learning Disability,12/10/2022,5690,,3111267728,603.57,Autism at Kingwood Limited
http://statistics.data.gov.uk/id/local-authority/38,Oxfordshire County Council,Green Claims,12/10/2022,5526,Payments to Private Contractors,2201036473,604.09,Future Adjusting Limited
http://statistics.data.gov.uk/id/local-authority/38,Oxfordshire County Council,Support at Home 65+ Physical Support,11/10/2022,5696,,3111263063,604.2,All Care GB Ltd
http://statistics.data.gov.uk/id/local-authority/38,Oxfordshire County Council,UASC 16&17,11/10/2022,5549,B*Fostering Allowance - Regulation 38,3111263672,604.57,Redacted Personal Data
http://statistics.data.gov.uk/id/local-authority/38,Oxfordshire County Council,Support at Home U65 Mental Health,11/10/2022,5699,,3111263914,604.8,Calvary Care Ltd
http://statistics.data.gov.uk/id/local-authority/38,Oxfordshire County Council,Support at Home 65+ Physical Support,05/10/2022,5693,,3111262018,604.8,FLEXI DIRECT LTD
http://statistics.data.gov.uk/id/local-authority/38,Oxfordshire County Council,Support at Home 65+ Physical Support,11/10/2022,5689,,3111264920,604.8,Golden Services Care Ltd
http://statistics.data.gov.uk/id/local-authority/38,Oxfordshire County Council,Support at Home U65 Physical Support,07/10/2022,5693,,3111262402,604.8,Oxfordshire Crossroads
http://statistics.data.gov.uk/id/local-authority/38,Oxfordshire County Council,Support at Home U65 HFA,12/10/2022,5693,,3111265451,604.8,We-Care-Recruitment Ltd
http://statistics.data.gov.uk/id/local-authority/38,Oxfordshire County Council,L&D CORE PROGRAMME,17/10/2022,3100,Educational and Vocational Training,2201037453,605,Premier Partnership
http://statistics.data.gov.uk/id/local-authority/38,Oxfordshire County Council,FAMILY TIME TEAM,11/10/2022,5394,Other Expenses,2201035909,605,The Salvation Army
http://statistics.data.gov.uk/id/local-authority/38,Oxfordshire County Council,Support at Home U65 Physical Support,25/10/2022,5899,Social Care - Direct Payments,3111275987,605.36,Purple Conversation Com In Co (DP)
http://statistics.data.gov.uk/id/local-authority/38,Oxfordshire County Council,Support at Home U65 Learning Disability,25/10/2022,5899,Social Care - Direct Payments,3111276069,605.84,Rosekel Resourcing Ltd
http://statistics.data.gov.uk/id/local-authority/38,Oxfordshire County Council,Support at Home U65 Learning Disability,25/10/2022,5899,Social Care - Direct Payments,3111274945,606.32,Redacted Personal Data
http://statistics.data.gov.uk/id/local-authority/38,Oxfordshire County Council,LIBRARY COLLECTIONS,04/10/2022,4539,"Books, DVDs and CDs",3111261121,606.65,ASKEWS & HOLTS LIBRARY SERVICES LTD
http://statistics.data.gov.uk/id/local-authority/38,Oxfordshire County Council,Support at Home U65 Physical Support,11/10/2022,5682,,3111262966,607.12,The Brandon Trust
http://statistics.data.gov.uk/id/local-authority/38,Oxfordshire County Council,Support at Home 65+ Physical Support,12/10/2022,5685,B*Cycle tracks,3111266160,607.24,Orders of St John
http://statistics.data.gov.uk/id/local-authority/38,Oxfordshire County Council,Support at Home U65 Physical Support,11/10/2022,5689,,3111265338,607.29,T.HOW HOMELY LTD
http://statistics.data.gov.uk/id/local-authority/38,Oxfordshire County Council,Support at Home U65 Learning Disability,11/10/2022,5682,,3111263015,607.4,The Brandon Trust
http://statistics.data.gov.uk/id/local-authority/38,Oxfordshire County Council,SEN TRANSPORT,24/10/2022,4320,Pupil / Client Travel Reimbursement,3111273982,607.86,Redacted Personal Data
http://statistics.data.gov.uk/id/local-authority/38,Oxfordshire County Council,FOSTERING MAIN,11/10/2022,5549,B*Fostering Allowance - Regulation 38,3111264524,608.29,Redacted Personal Data
http://statistics.data.gov.uk/id/local-authority/38,Oxfordshire County Council,FOSTERING MAIN,18/10/2022,5549,B*Fostering Allowance - Regulation 38,3111272028,608.98,Redacted Personal Data
http://statistics.data.gov.uk/id/local-authority/38,Oxfordshire County Council,Support at Home U65 Learning Disability,11/10/2022,5682,,3111263014,609.07,The Brandon Trust
http://statistics.data.gov.uk/id/local-authority/38,Oxfordshire County Council,SHARED LIVES,13/10/2022,5555,Payments to Carers,3111270321,609.12,Redacted Personal Data
http://statistics.data.gov.uk/id/local-authority/38,Oxfordshire County Council,SEN TRANSPORT,10/10/2022,4330,Transport to School Activities,3111262723,610,ACE CARS BANBURY LTD
http://statistics.data.gov.uk/id/local-authority/38,Oxfordshire County Council,Support at Home U65 Learning Disability,12/10/2022,5690,,3111267873,610.61,The Camden Society
http://statistics.data.gov.uk/id/local-authority/38,Oxfordshire County Council,Support at Home U65 Learning Disability,12/10/2022,5690,,3111267910,610.61,The Camden Society
http://statistics.data.gov.uk/id/local-authority/38,Oxfordshire County Council,Support at Home U65 Learning Disability,12/10/2022,5690,,3111267915,610.61,The Camden Society
http://statistics.data.gov.uk/id/local-authority/38,Oxfordshire County Council,LEGAL BUDGET,31/10/2022,5251,Legal Costs,2201041889,610.83,WILLIS PALMER
http://statistics.data.gov.uk/id/local-authority/38,Oxfordshire County Council,Support at Home 65+ Physical Support,25/10/2022,5899,Social Care - Direct Payments,3111275568,611.88,Purple Conversation Com In Co (DP)
http://statistics.data.gov.uk/id/local-authority/38,Oxfordshire County Council,MAINSTREAM-PRIMARY,25/10/2022,4330,Transport to School Activities,3111276340,612,001 Alpha Cars Ltd
http://statistics.data.gov.uk/id/local-authority/38,Oxfordshire County Council,NTS UASC Agency,14/10/2022,2040,Agency Staff,2201037399,612,Completely Care Ltd
http://statistics.data.gov.uk/id/local-authority/38,Oxfordshire County Council,SEN TRANSPORT,03/10/2022,5227,Other Transport Arrangements,3111260839,612,Her Ride Limited
http://statistics.data.gov.uk/id/local-authority/38,Oxfordshire County Council,SEN TRANSPORT,21/10/2022,5227,Other Transport Arrangements,3111273589,612,Oxon Transport Services Ltd
http://statistics.data.gov.uk/id/local-authority/38,Oxfordshire County Council,SEN TRANSPORT,21/10/2022,5227,Other Transport Arrangements,3111273631,612,Oxon Transport Services Ltd
http://statistics.data.gov.uk/id/local-authority/38,Oxfordshire County Council,Support at Home U65 HFA,25/10/2022,5899,Social Care - Direct Payments,3111275545,612.24,Purple Conversation Com In Co (DP)
http://statistics.data.gov.uk/id/local-authority/38,Oxfordshire County Council,LEAVING CARE NORTH,14/10/2022,4685,Clothing and Uniforms,9300057527,612.5,OCC SS Oxford City Div 1 Cash
http://statistics.data.gov.uk/id/local-authority/38,Oxfordshire County Council,INSTRU PURCHASE SCHM,11/10/2022,4407,Equipment,2201036044,612.5,Phil Parker Ltd
http://statistics.data.gov.uk/id/local-authority/38,Oxfordshire County Council,FAM GRP CONFERENCES,11/10/2022,4940,Other Services,2201036106,612.81,Redacted Personal Data
http://statistics.data.gov.uk/id/local-authority/38,Oxfordshire County Council,Support at Home 65+ Physical Support,11/10/2022,5689,,3111265009,612.87,Greigcare Home Service
http://statistics.data.gov.uk/id/local-authority/38,Oxfordshire County Council,LD Continuing Care - Sup at Home - U65,18/10/2022,5691,,3111272397,613.05,THORNBURY NURSING SERVICES
http://statistics.data.gov.uk/id/local-authority/38,Oxfordshire County Council,LD Continuing Care - Sup at Home - U65,21/10/2022,5691,,3111273703,613.05,THORNBURY NURSING SERVICES
http://statistics.data.gov.uk/id/local-authority/38,Oxfordshire County Council,LD Continuing Care - Sup at Home - U65,28/10/2022,5691,,3111277483,613.05,THORNBURY NURSING SERVICES
http://statistics.data.gov.uk/id/local-authority/38,Oxfordshire County Council,CONCESSIONARY FARES,02/10/2022,5781,Payments to Transport Operators,2201032881,613.25,Fast and Last Mile CIC
http://statistics.data.gov.uk/id/local-authority/38,Oxfordshire County Council,LD Continuing Care - Sup at Home - U65,25/10/2022,5899,Social Care - Direct Payments,3111275424,614.5,Redacted Personal Data
http://statistics.data.gov.uk/id/local-authority/38,Oxfordshire County Council,Oxfordshire Adoption Support Fund,28/10/2022,4861,Hired and Contracted Services,2201041387,615,Gabrielle Lees
http://statistics.data.gov.uk/id/local-authority/38,Oxfordshire County Council,LOOKED AFTER CITY 2,11/10/2022,5394,Other Expenses,3111264163,615,Redacted Personal Data
http://statistics.data.gov.uk/id/local-authority/38,Oxfordshire County Council,Support at Home U65 Learning Disability,12/10/2022,5690,,3111267807,615.66,Real Life Options
http://statistics.data.gov.uk/id/local-authority/38,Oxfordshire County Council,Support at Home 65+ Learning Disability,12/10/2022,5688,,3111268472,615.66,The Brandon Trust
http://statistics.data.gov.uk/id/local-authority/38,Oxfordshire County Council,SEN TRANSPORT,27/10/2022,4320,Pupil / Client Travel Reimbursement,3111276910,615.68,Redacted Personal Data
http://statistics.data.gov.uk/id/local-authority/38,Oxfordshire County Council,Community Support Service Banbury,28/10/2022,5227,Other Transport Arrangements,3111277541,616,Banbury Taxis
http://statistics.data.gov.uk/id/local-authority/38,Oxfordshire County Council,Support at Home 65+ Memory & Cognition,12/10/2022,5686,,3111266817,616.29,Orders of St John
http://statistics.data.gov.uk/id/local-authority/38,Oxfordshire County Council,MAINSTREAM-PRIMARY,11/10/2022,4330,Transport to School Activities,3111262883,616.67,Go Green Taxis
http://statistics.data.gov.uk/id/local-authority/38,Oxfordshire County Council,Support at Home 65+ Physical Support,11/10/2022,5689,,3111265143,616.96,My Carer Ltd
http://statistics.data.gov.uk/id/local-authority/38,Oxfordshire County Council,Planned Maintenance,31/10/2022,4861,Hired and Contracted Services,2201041833,617,Barker & Evans Ltd
http://statistics.data.gov.uk/id/local-authority/38,Oxfordshire County Council,UASC 16&17,04/10/2022,5665,B*Fostering Project Care Fee,9300057406,617.25,OCC SS Banbury Area Off Cash
http://statistics.data.gov.uk/id/local-authority/38,Oxfordshire County Council,UASC 16&17,11/10/2022,5549,B*Fostering Allowance - Regulation 38,3111263636,617.28,Redacted Personal Data
http://statistics.data.gov.uk/id/local-authority/38,Oxfordshire County Council,Support at Home 65+ Physical Support,11/10/2022,5699,,3111263725,617.4,Agincare UK Ltd
http://statistics.data.gov.uk/id/local-authority/38,Oxfordshire County Council,Support at Home 65+ Physical Support,11/10/2022,5699,,3111263734,617.4,Agincare UK Ltd
http://statistics.data.gov.uk/id/local-authority/38,Oxfordshire County Council,Support at Home 65+ Physical Support,12/10/2022,5693,,3111265428,617.4,Oasis Private Care Ltd
http://statistics.data.gov.uk/id/local-authority/38,Oxfordshire County Council,Support at Home 65+ Physical Support,11/10/2022,5699,,3111264968,617.4,PLL Care Services
http://statistics.data.gov.uk/id/local-authority/38,Oxfordshire County Council,Community Support Service Wallingford,07/10/2022,4232,Vehicle Fuel,2201034781,617.71,Allstar Business Solutions Ltd
http://statistics.data.gov.uk/id/local-authority/38,Oxfordshire County Council,Delegated Health Tasks  - Over 65,14/10/2022,5691,,3111270770,617.84,Caretree Ltd
http://statistics.data.gov.uk/id/local-authority/38,Oxfordshire County Council,Support at Home U65 HFA,25/10/2022,5899,Social Care - Direct Payments,3111276081,618.48,Redacted Personal Data
http://statistics.data.gov.uk/id/local-authority/38,Oxfordshire County Council,FPT SOUTH/VALE,11/10/2022,4940,Other Services,3111264046,619,Redacted Personal Data
http://statistics.data.gov.uk/id/local-authority/38,Oxfordshire County Council,LEAVING CARE CITY 1,28/10/2022,4685,Clothing and Uniforms,9300057682,619.05,OCC SS Oxford City Div 1 Cash
http://statistics.data.gov.uk/id/local-authority/38,Oxfordshire County Council,Delegated Health Tasks  - Over 65,21/10/2022,5691,,3111273728,620,Enable Health Ltd
http://statistics.data.gov.uk/id/local-authority/38,Oxfordshire County Council,CORONER,12/10/2022,5202,Use of Mortuary Services,2201036296,620,Forensics Ltd
http://statistics.data.gov.uk/id/local-authority/38,Oxfordshire County Council,Support at Home U65 MH OBC Contract,11/10/2022,5689,,3111265287,620.04,Response Organisation
http://statistics.data.gov.uk/id/local-authority/38,Oxfordshire County Council,Support at Home U65 Mental Health,11/10/2022,5689,,3111265296,620.04,Response Organisation
http://statistics.data.gov.uk/id/local-authority/38,Oxfordshire County Council,Support at Home U65 Memory & Cognition,14/10/2022,5697,,3111270649,620.1,Headway Oxford
http://statistics.data.gov.uk/id/local-authority/38,Oxfordshire County Council,Support at Home U65 Physical Support,19/10/2022,5697,,3111272509,620.1,Headway Oxford
http://statistics.data.gov.uk/id/local-authority/38,Oxfordshire County Council,Support at Home U65 Physical Support,19/10/2022,5697,,3111272510,620.1,Headway Oxford
http://statistics.data.gov.uk/id/local-authority/38,Oxfordshire County Council,Support at Home U65 Memory & Cognition,19/10/2022,5697,,3111272513,620.1,Headway Oxford
http://statistics.data.gov.uk/id/local-authority/38,Oxfordshire County Council,Support at Home 65+ Physical Support,19/10/2022,5697,,3111272518,620.1,Headway Oxford
http://statistics.data.gov.uk/id/local-authority/38,Oxfordshire County Council,FOSTERING MAIN,11/10/2022,5549,B*Fostering Allowance - Regulation 38,3111264938,620.57,Redacted Personal Data
http://statistics.data.gov.uk/id/local-authority/38,Oxfordshire County Council,LEGAL BUDGET,07/10/2022,5251,Legal Costs,2201034872,621.25,Dr DBR Bailham
http://statistics.data.gov.uk/id/local-authority/38,Oxfordshire County Council,Support at Home U65 Learning Disability,25/10/2022,5899,Social Care - Direct Payments,3111275192,621.76,Redacted Personal Data
http://statistics.data.gov.uk/id/local-authority/38,Oxfordshire County Council,FOSTERING MAIN,11/10/2022,5549,B*Fostering Allowance - Regulation 38,3111263619,623.43,Redacted Personal Data
http://statistics.data.gov.uk/id/local-authority/38,Oxfordshire County Council,Support at Home U65 Learning Disability,25/10/2022,5899,Social Care - Direct Payments,3111275718,623.52,Purple Conversation Com In Co (DP)
http://statistics.data.gov.uk/id/local-authority/38,Oxfordshire County Council,Support at Home 65+ Physical Support,11/10/2022,5699,,3111263830,623.7,Bridges Home Care Ltd
http://statistics.data.gov.uk/id/local-authority/38,Oxfordshire County Council,LEGAL BUDGET,10/10/2022,5251,Legal Costs,2201035203,624,Dr DBR Bailham
http://statistics.data.gov.uk/id/local-authority/38,Oxfordshire County Council,LANDLORD & TENANT,27/10/2022,4001,Uniform Business Rates,3500089016,624,West Oxfordshire District Council
http://statistics.data.gov.uk/id/local-authority/38,Oxfordshire County Council,Support at Home 65+ Physical Support,11/10/2022,5689,,3111264832,624.89,Elite Care Agency
http://statistics.data.gov.uk/id/local-authority/38,Oxfordshire County Council,OTHER HOUSEHOLD,04/10/2022,5526,Payments to Private Contractors,2201033324,624.95,FCC Environment (UK) Ltd
http://statistics.data.gov.uk/id/local-authority/38,Oxfordshire County Council,ICT Operations & Maintenance,25/10/2022,8037,Other In house Fees / Charges,2201040897,625,Alternative Communication Systems
http://statistics.data.gov.uk/id/local-authority/38,Oxfordshire County Council,FOSTERING MAIN,11/10/2022,5549,B*Fostering Allowance - Regulation 38,3111263666,625,Redacted Personal Data
http://statistics.data.gov.uk/id/local-authority/38,Oxfordshire County Council,LEGAL SERVICES,20/10/2022,5251,Legal Costs,2201039596,625,Natasha Miller
http://statistics.data.gov.uk/id/local-authority/38,Oxfordshire County Council,Support at Home U65 MH OBC Contract,11/10/2022,5689,,3111265308,625.21,Response Organisation
http://statistics.data.gov.uk/id/local-authority/38,Oxfordshire County Council,Support at Home U65 Learning Disability,25/10/2022,5899,Social Care - Direct Payments,3111275508,625.86,Purple Conversation Com In Co (DP)
http://statistics.data.gov.uk/id/local-authority/38,Oxfordshire County Council,LEGAL BUDGET,24/10/2022,5251,Legal Costs,2201040548,626,DNA WORLDWIDE GROUP
http://statistics.data.gov.uk/id/local-authority/38,Oxfordshire County Council,Corporate Grounds Maintenance,26/10/2022,3821,Grounds Maintenance Contracts,2201041184,626.06,Gould Landscapes
http://statistics.data.gov.uk/id/local-authority/38,Oxfordshire County Council,Support at Home U65 Memory & Cognition,04/10/2022,5899,Social Care - Direct Payments,3111261159,626.55,Redacted Personal Data
http://statistics.data.gov.uk/id/local-authority/38,Oxfordshire County Council,Support at Home 65+ Physical Support,11/10/2022,5689,,3111265041,627.48,Home Helpers Care Ltd
http://statistics.data.gov.uk/id/local-authority/38,Oxfordshire County Council,LEGAL BUDGET,24/10/2022,5251,Legal Costs,2201040705,629,DNA WORLDWIDE GROUP
http://statistics.data.gov.uk/id/local-authority/38,Oxfordshire County Council,Delegated Health Tasks  - Over 65,21/10/2022,5691,,3111273769,629,SEABROOK SERVICES LTD
http://statistics.data.gov.uk/id/local-authority/38,Oxfordshire County Council,BROADBAND PROJECT,04/10/2022,5668,Technical and Professional Consultant F,2201033395,630,Agile Collective Ltd
http://statistics.data.gov.uk/id/local-authority/38,Oxfordshire County Council,Support at Home U65 Learning Disability,27/10/2022,5227,Other Transport Arrangements,3111277009,630,BC CARS
http://statistics.data.gov.uk/id/local-authority/38,Oxfordshire County Council,Household Support Fund,17/10/2022,7690,Additional Grant for Schools,3111271134,630,Cheney School Academy Trust
http://statistics.data.gov.uk/id/local-authority/38,Oxfordshire County Council,Support at Home 65+ Physical Support,28/10/2022,5693,,3111277374,630,Golden Services Care Ltd
http://statistics.data.gov.uk/id/local-authority/38,Oxfordshire County Council,Household Support Fund,17/10/2022,7690,Additional Grant for Schools,3111271352,630,Hardwick Primary School Academy
http://statistics.data.gov.uk/id/local-authority/38,Oxfordshire County Council,OPERATIONS,19/10/2022,4407,Equipment,2201038880,630,Heathrow Truck Centre Ltd
http://statistics.data.gov.uk/id/local-authority/38,Oxfordshire County Council,Support at Home 65+ Mental Health,07/10/2022,5693,,3111262414,630,Henley Care Ltd
http://statistics.data.gov.uk/id/local-authority/38,Oxfordshire County Council,Household Support Fund,17/10/2022,7690,Additional Grant for Schools,3111271212,630,Our Lady's Catholic Primary School
http://statistics.data.gov.uk/id/local-authority/38,Oxfordshire County Council,Household Support Fund,17/10/2022,7690,Additional Grant for Schools,3111271390,630,Our Lady's Catholic Primary School
http://statistics.data.gov.uk/id/local-authority/38,Oxfordshire County Council,Household Support Fund,17/10/2022,7690,Additional Grant for Schools,3111271217,630,Rose Hill Primary School
http://statistics.data.gov.uk/id/local-authority/38,Oxfordshire County Council,Household Support Fund,17/10/2022,7690,Additional Grant for Schools,3111271235,630,St Josephs Catholic Primary School
http://statistics.data.gov.uk/id/local-authority/38,Oxfordshire County Council,Oxfordshire Adoption Support Fund,25/10/2022,4861,Hired and Contracted Services,2201040766,630,The Child Psychology Service
http://statistics.data.gov.uk/id/local-authority/38,Oxfordshire County Council,Support at Home 65+ Memory & Cognition,25/10/2022,5899,Social Care - Direct Payments,3111275136,630,Redacted Personal Data
http://statistics.data.gov.uk/id/local-authority/38,Oxfordshire County Council,Support at Home 65+ Physical Support,14/10/2022,5693,,3111270723,630,We-Care-Recruitment Ltd
http://statistics.data.gov.uk/id/local-authority/38,Oxfordshire County Council,Household Support Fund,17/10/2022,7690,Additional Grant for Schools,3111271457,630,Wheatley C of E Primary School
http://statistics.data.gov.uk/id/local-authority/38,Oxfordshire County Council,Support at Home 65+ Physical Support,11/10/2022,5699,,3111265104,630,YOD Ltd
http://statistics.data.gov.uk/id/local-authority/38,Oxfordshire County Council,Support at Home 65+ Mental Health,11/10/2022,5689,,3111264767,630.14,Oxfordshire Crossroads
http://statistics.data.gov.uk/id/local-authority/38,Oxfordshire County Council,Support at Home U65 Learning Disability,25/10/2022,5899,Social Care - Direct Payments,3111275528,630.28,Purple Conversation Com In Co (DP)
http://statistics.data.gov.uk/id/local-authority/38,Oxfordshire County Council,FOSTERING MAIN,11/10/2022,5549,B*Fostering Allowance - Regulation 38,3111264229,631,Redacted Personal Data
http://statistics.data.gov.uk/id/local-authority/38,Oxfordshire County Council,FOSTERING MAIN,11/10/2022,5549,B*Fostering Allowance - Regulation 38,3111264290,631,Redacted Personal Data
http://statistics.data.gov.uk/id/local-authority/38,Oxfordshire County Council,AGENCY RESID - DISAB,11/10/2022,5549,B*Fostering Allowance - Regulation 38,3111264388,631,Redacted Personal Data
http://statistics.data.gov.uk/id/local-authority/38,Oxfordshire County Council,Support at Home U65 Learning Disability,25/10/2022,5899,Social Care - Direct Payments,3111275170,631.2,Redacted Personal Data
http://statistics.data.gov.uk/id/local-authority/38,Oxfordshire County Council,LIBRARY COLLECTIONS,12/10/2022,4539,"Books, DVDs and CDs",2201036724,631.2,W F HOWES LTD
http://statistics.data.gov.uk/id/local-authority/38,Oxfordshire County Council,POST 16 SEN,27/10/2022,4320,Pupil / Client Travel Reimbursement,3111276905,631.4,Redacted Personal Data
http://statistics.data.gov.uk/id/local-authority/38,Oxfordshire County Council,FOSTERING MAIN,25/10/2022,5532,B*Fostering - Loan Equipment,3111274377,631.44,Redacted Personal Data
http://statistics.data.gov.uk/id/local-authority/38,Oxfordshire County Council,Support at Home U65 Physical Support,25/10/2022,5899,Social Care - Direct Payments,3111275272,631.76,Redacted Personal Data
http://statistics.data.gov.uk/id/local-authority/38,Oxfordshire County Council,Support at Home U65 Learning Disability,12/10/2022,5690,,3111265573,631.92,FIT (Farm Inspiration Trust)
http://statistics.data.gov.uk/id/local-authority/38,Oxfordshire County Council,Children in Care Non-staffing - North,10/10/2022,5227,Other Transport Arrangements,3111262663,632,D�Arrive Ltd
http://statistics.data.gov.uk/id/local-authority/38,Oxfordshire County Council,Support at Home U65 Learning Disability,10/10/2022,5227,Other Transport Arrangements,3111262647,632.5,Ambassador cars
http://statistics.data.gov.uk/id/local-authority/38,Oxfordshire County Council,Transition Team,10/10/2022,5227,Other Transport Arrangements,3111262648,632.5,Ambassador cars
http://statistics.data.gov.uk/id/local-authority/38,Oxfordshire County Council,Support at Home U65 Physical Support,11/10/2022,5689,,3111264383,633.11,Care Outlook Ltd
http://statistics.data.gov.uk/id/local-authority/38,Oxfordshire County Council,Support at Home 65+ Physical Support,25/10/2022,5899,Social Care - Direct Payments,3111275846,633.24,Purple Conversation Com In Co (DP)
http://statistics.data.gov.uk/id/local-authority/38,Oxfordshire County Council,FOSTERING MAIN,11/10/2022,5549,B*Fostering Allowance - Regulation 38,3111263592,633.43,Redacted Personal Data
http://statistics.data.gov.uk/id/local-authority/38,Oxfordshire County Council,Support at Home U65 Other /Soc Isolation,12/10/2022,5690,,3111267619,633.73,ADVANCE HOUSING & SUPPORT LTD
http://statistics.data.gov.uk/id/local-authority/38,Oxfordshire County Council,Support at Home U65 Physical Support,11/10/2022,5698,,3111264652,633.94,Oxford Private Care
http://statistics.data.gov.uk/id/local-authority/38,Oxfordshire County Council,COMM DRAWDOWN FUNDNG,19/10/2022,8511,Legal Fees & expenses,2201038787,634,BDB Pitmans LLP
http://statistics.data.gov.uk/id/local-authority/38,Oxfordshire County Council,Support at Home 65+ Physical Support,11/10/2022,5696,,3111263035,634.41,All Care GB Ltd
http://statistics.data.gov.uk/id/local-authority/38,Oxfordshire County Council,FOSTERING MAIN,11/10/2022,5549,B*Fostering Allowance - Regulation 38,3111264184,634.72,Redacted Personal Data
http://statistics.data.gov.uk/id/local-authority/38,Oxfordshire County Council,Support at Home U65 Physical Support,12/10/2022,5693,,3111265485,635.28,CaringPlus Healthcare Services Ltd
http://statistics.data.gov.uk/id/local-authority/38,Oxfordshire County Council,FOSTERING MAIN,11/10/2022,5227,Other Transport Arrangements,3111264018,635.28,Redacted Personal Data
http://statistics.data.gov.uk/id/local-authority/38,Oxfordshire County Council,FOSTERING MAIN,11/10/2022,5549,B*Fostering Allowance - Regulation 38,3111264251,635.29,Redacted Personal Data
http://statistics.data.gov.uk/id/local-authority/38,Oxfordshire County Council,Support at Home 65+ Physical Support,11/10/2022,5689,,3111264979,635.86,Greigcare Home Service
http://statistics.data.gov.uk/id/local-authority/38,Oxfordshire County Council,FOSTERING MAIN,04/10/2022,5227,Other Transport Arrangements,3111261259,635.9,Redacted Personal Data
http://statistics.data.gov.uk/id/local-authority/38,Oxfordshire County Council,Support at Home U65 Learning Disability,03/10/2022,5227,Other Transport Arrangements,3111260937,636,Ali's Cabs
http://statistics.data.gov.uk/id/local-authority/38,Oxfordshire County Council,Support at Home 65+ Memory & Cognition,25/10/2022,5899,Social Care - Direct Payments,3111274863,636,Redacted Personal Data
http://statistics.data.gov.uk/id/local-authority/38,Oxfordshire County Council,FOSTERING MAIN,11/10/2022,5549,B*Fostering Allowance - Regulation 38,3111264070,636.14,Redacted Personal Data
http://statistics.data.gov.uk/id/local-authority/38,Oxfordshire County Council,FOSTERING MAIN,11/10/2022,5549,B*Fostering Allowance - Regulation 38,3111264429,636.14,Redacted Personal Data
http://statistics.data.gov.uk/id/local-authority/38,Oxfordshire County Council,FOSTERING MAIN,11/10/2022,5549,B*Fostering Allowance - Regulation 38,3111264444,636.14,Redacted Personal Data
http://statistics.data.gov.uk/id/local-authority/38,Oxfordshire County Council,AGENCY RESID - DISAB,25/10/2022,5549,B*Fostering Allowance - Regulation 38,3111274384,636.9,Redacted Personal Data
http://statistics.data.gov.uk/id/local-authority/38,Oxfordshire County Council,FOSTERING MAIN,25/10/2022,5549,B*Fostering Allowance - Regulation 38,3111274718,636.9,Redacted Personal Data
http://statistics.data.gov.uk/id/local-authority/38,Oxfordshire County Council,L&D CORE PROGRAMME,31/10/2022,3100,Educational and Vocational Training,2201041583,637,Premier Partnership
http://statistics.data.gov.uk/id/local-authority/38,Oxfordshire County Council,Support at Home U65 Learning Disability,12/10/2022,5690,,3111265723,637.01,Style Acre
http://statistics.data.gov.uk/id/local-authority/38,Oxfordshire County Council,Support at Home U65 Learning Disability,12/10/2022,5690,,3111265748,637.01,Style Acre
http://statistics.data.gov.uk/id/local-authority/38,Oxfordshire County Council,Support at Home U65 Learning Disability,12/10/2022,5690,,3111265769,637.01,Style Acre
http://statistics.data.gov.uk/id/local-authority/38,Oxfordshire County Council,Support at Home U65 Learning Disability,12/10/2022,5690,,3111265677,637.01,Turnstyle
http://statistics.data.gov.uk/id/local-authority/38,Oxfordshire County Council,Support at Home 65+ Learning Disability,12/10/2022,5690,,3111265702,637.01,Turnstyle
http://statistics.data.gov.uk/id/local-authority/38,Oxfordshire County Council,Support at Home U65 Physical Support,11/10/2022,5689,,3111264379,637.25,Care Outlook Ltd
http://statistics.data.gov.uk/id/local-authority/38,Oxfordshire County Council,Support at Home 65+ Physical Support,07/10/2022,5693,,3111262398,637.5,Care with Care Ltd
http://statistics.data.gov.uk/id/local-authority/38,Oxfordshire County Council,Support at Home 65+ Physical Support,27/10/2022,5696,,3111276867,638.23,Orders of St John Care Trust
http://statistics.data.gov.uk/id/local-authority/38,Oxfordshire County Council,Support at Home 65+ Learning Disability,27/10/2022,5696,,3111276877,638.23,Orders of St John Care Trust
http://statistics.data.gov.uk/id/local-authority/38,Oxfordshire County Council,Independent Foster,05/10/2022,5559,,3111262131,638.4,Fostering UK Ltd
http://statistics.data.gov.uk/id/local-authority/38,Oxfordshire County Council,Support at Home 65+ Physical Support,27/10/2022,5696,,3111276838,639.07,Orders of St John Care Trust
http://statistics.data.gov.uk/id/local-authority/38,Oxfordshire County Council,Support at Home 65+ Physical Support,27/10/2022,5696,,3111276771,639.18,Orders of St John Care Trust
http://statistics.data.gov.uk/id/local-authority/38,Oxfordshire County Council,Support at Home U65 Learning Disability,25/10/2022,5899,Social Care - Direct Payments,3111274846,640,Redacted Personal Data
http://statistics.data.gov.uk/id/local-authority/38,Oxfordshire County Council,Support at Home U65 Learning Disability,28/10/2022,5227,Other Transport Arrangements,3111277563,640,Cherwell Cars
http://statistics.data.gov.uk/id/local-authority/38,Oxfordshire County Council,Children in Care Non-staffing - North,28/10/2022,5227,Other Transport Arrangements,3111277565,640,Cherwell Cars
http://statistics.data.gov.uk/id/local-authority/38,Oxfordshire County Council,ATV Adoption Oxford,17/10/2022,5365,Non-Staff Subsistence and Expenses,3111271000,640,OCC One Time Vendor
http://statistics.data.gov.uk/id/local-authority/38,Oxfordshire County Council,Support at Home U65 Learning Disability,10/10/2022,5227,Other Transport Arrangements,3111262735,640,Oxfordlinks
http://statistics.data.gov.uk/id/local-authority/38,Oxfordshire County Council,East Oxfordshire Team,18/10/2022,5227,Other Transport Arrangements,3111271535,640,Oxon Transport Services Ltd
http://statistics.data.gov.uk/id/local-authority/38,Oxfordshire County Council,Support at Home U65 Learning Disability,18/10/2022,5899,Social Care - Direct Payments,3111271583,640.02,Redacted Personal Data
http://statistics.data.gov.uk/id/local-authority/38,Oxfordshire County Council,Swindon Adoption Support Fund,31/10/2022,4861,Hired and Contracted Services,2201042441,640.08,Clifton Children's Society
http://statistics.data.gov.uk/id/local-authority/38,Oxfordshire County Council,FAM GRP CONFERENCES,17/10/2022,4940,Other Services,2201037773,640.51,Jessica Howards
http://statistics.data.gov.uk/id/local-authority/38,Oxfordshire County Council,Support at Home U65 Physical Support,25/10/2022,5899,Social Care - Direct Payments,3111275850,640.72,Purple Conversation Com In Co (DP)
http://statistics.data.gov.uk/id/local-authority/38,Oxfordshire County Council,Family Solutions Plus Non-staff - South,18/10/2022,5227,Other Transport Arrangements,3111271550,641,Oxon Transport Services Ltd
http://statistics.data.gov.uk/id/local-authority/38,Oxfordshire County Council,FAM GRP CONFERENCES,12/10/2022,4940,Other Services,2201036700,641.09,Jessica Howards
http://statistics.data.gov.uk/id/local-authority/38,Oxfordshire County Council,Support at Home U65 Physical Support,25/10/2022,5899,Social Care - Direct Payments,3111275205,641.32,Redacted Personal Data
http://statistics.data.gov.uk/id/local-authority/38,Oxfordshire County Council,Support at Home U65 Autism /Abated,25/10/2022,5899,Social Care - Direct Payments,3111275370,641.4,Redacted Personal Data
http://statistics.data.gov.uk/id/local-authority/38,Oxfordshire County Council,Support at Home 65+ Physical Support,11/10/2022,5698,,3111264754,641.81,Oxford Private Care
http://statistics.data.gov.uk/id/local-authority/38,Oxfordshire County Council,FAM GRP CONFERENCES,19/10/2022,4940,Other Services,2201038837,641.82,Jessica Howards
http://statistics.data.gov.uk/id/local-authority/38,Oxfordshire County Council,Care Homes - Over 65 Physical Sypport,12/10/2022,5687,,3111268574,641.9,Huntercombe Hall Ltd
http://statistics.data.gov.uk/id/local-authority/38,Oxfordshire County Council,Support at Home 65+ Learning Disability,14/10/2022,5693,,3111270720,642.18,Pioneering Care Bicester Limited
http://statistics.data.gov.uk/id/local-authority/38,Oxfordshire County Council,GYPSY & TRAVELLER SV,05/10/2022,4122,Other premises related costs,2201033929,642.22,Oxford Fencing Supplies
http://statistics.data.gov.uk/id/local-authority/38,Oxfordshire County Council,Support at Home U65 Learning Disability,12/10/2022,5688,,3111268276,642.32,The Brandon Trust
http://statistics.data.gov.uk/id/local-authority/38,Oxfordshire County Council,FOSTERING MAIN,11/10/2022,5541,B*Foster Parents,3111263891,643.15,Redacted Personal Data
http://statistics.data.gov.uk/id/local-authority/38,Oxfordshire County Council,FOSTERING MAIN,11/10/2022,5541,B*Foster Parents,3111263894,643.15,Redacted Personal Data
http://statistics.data.gov.uk/id/local-authority/38,Oxfordshire County Council,Support at Home 65+ Physical Support,11/10/2022,5689,,3111264679,643.37,Casa Care Ltd
http://statistics.data.gov.uk/id/local-authority/38,Oxfordshire County Council,Support at Home 65+ Physical Support,11/10/2022,5689,,3111264564,643.54,Caremark (West Oxfordshire & Cherwe
http://statistics.data.gov.uk/id/local-authority/38,Oxfordshire County Council,LEAVING CARE CITY 1,12/10/2022,5415,Residential Activities,9300057479,643.6,OCC SS Oxford City Div 1 Cash
http://statistics.data.gov.uk/id/local-authority/38,Oxfordshire County Council,LD Continuing Care - Sup at Home - U65,21/10/2022,5691,,3111273712,644,KIT Mobility Taxis Oxford Ltd
http://statistics.data.gov.uk/id/local-authority/38,Oxfordshire County Council,Support at Home 65+ Physical Support,05/10/2022,5693,,3111262036,644,Kwikfix Recruitment Services Ltd
http://statistics.data.gov.uk/id/local-authority/38,Oxfordshire County Council,CHC Fast Track - Sup at Homes - Over 65,28/10/2022,5691,,3111277439,644,Sue Ryder
http://statistics.data.gov.uk/id/local-authority/38,Oxfordshire County Council,CHC Fast Track - Sup at Homes - Over 65,28/10/2022,5691,,3111277441,644,Sue Ryder
http://statistics.data.gov.uk/id/local-authority/38,Oxfordshire County Council,Support at Home 65+ Physical Support,11/10/2022,5689,,3111265227,644.94,PLL Care Services
http://statistics.data.gov.uk/id/local-authority/38,Oxfordshire County Council,Household Support Fund,17/10/2022,7690,Additional Grant for Schools,3111271324,645,Edith Moorhouse Primary School
http://statistics.data.gov.uk/id/local-authority/38,Oxfordshire County Council,ON ST PARK OXFD RES,04/10/2022,4861,Hired and Contracted Services,2201033756,645,Oxford Direct Services Trading Ltd
http://statistics.data.gov.uk/id/local-authority/38,Oxfordshire County Council,SEN TRANSPORT,03/10/2022,5227,Other Transport Arrangements,3111261045,645.58,C&M Management Services Ltd
http://statistics.data.gov.uk/id/local-authority/38,Oxfordshire County Council,Support at Home 65+ Memory & Cognition,12/10/2022,5685,B*Cycle tracks,3111267166,645.69,Vale House
http://statistics.data.gov.uk/id/local-authority/38,Oxfordshire County Council,FOSTERING MAIN,04/10/2022,5549,B*Fostering Allowance - Regulation 38,3111261236,646,Redacted Personal Data
http://statistics.data.gov.uk/id/local-authority/38,Oxfordshire County Council,SEN TRANSPORT,21/10/2022,5227,Other Transport Arrangements,3111273593,646,Oxon Transport Services Ltd
http://statistics.data.gov.uk/id/local-authority/38,Oxfordshire County Council,FOSTERING MAIN,11/10/2022,5549,B*Fostering Allowance - Regulation 38,3111263988,646.9,Redacted Personal Data
http://statistics.data.gov.uk/id/local-authority/38,Oxfordshire County Council,Support at Home 65+ Physical Support,11/10/2022,5689,,3111265153,647.62,My Carer Ltd
http://statistics.data.gov.uk/id/local-authority/38,Oxfordshire County Council,Support at Home U65 Learning Disability,25/10/2022,5899,Social Care - Direct Payments,3111275493,647.76,Purple Conversation Com In Co (DP)
http://statistics.data.gov.uk/id/local-authority/38,Oxfordshire County Council,Support at Home U65 Learning Disability,25/10/2022,5899,Social Care - Direct Payments,3111275770,647.76,Purple Conversation Com In Co (DP)
http://statistics.data.gov.uk/id/local-authority/38,Oxfordshire County Council,Support at Home U65 Learning Disability,25/10/2022,5899,Social Care - Direct Payments,3111275997,647.76,Purple Conversation Com In Co (DP)
http://statistics.data.gov.uk/id/local-authority/38,Oxfordshire County Council,SEN TRANSPORT,11/10/2022,5227,Other Transport Arrangements,3111262804,648,Crown Cabs Travel Ltd
http://statistics.data.gov.uk/id/local-authority/38,Oxfordshire County Council,SEN Alternative Provision,04/10/2022,4861,Hired and Contracted Services,2201033653,648,FreshStart in Education
http://statistics.data.gov.uk/id/local-authority/38,Oxfordshire County Council,Continuing Care - Support at Home - 65+,14/10/2022,5691,,3111270857,648,Henley Care Ltd
http://statistics.data.gov.uk/id/local-authority/38,Oxfordshire County Council,SEN TRANSPORT,21/10/2022,5227,Other Transport Arrangements,3111273536,648,Oxon Transport Services Ltd
http://statistics.data.gov.uk/id/local-authority/38,Oxfordshire County Council,SEN TRANSPORT,21/10/2022,5227,Other Transport Arrangements,3111273609,648,Oxon Transport Services Ltd
http://statistics.data.gov.uk/id/local-authority/38,Oxfordshire County Council,SEN TRANSPORT,21/10/2022,5227,Other Transport Arrangements,3111273618,648,Oxon Transport Services Ltd
http://statistics.data.gov.uk/id/local-authority/38,Oxfordshire County Council,Support at Home U65 Physical Support,05/10/2022,5693,,3111262062,648,Star Projections
http://statistics.data.gov.uk/id/local-authority/38,Oxfordshire County Council,SEN TRANSPORT,19/10/2022,4330,Transport to School Activities,3111273010,648,Vine Community Services Ltd T/A
http://statistics.data.gov.uk/id/local-authority/38,Oxfordshire County Council,Support at Home 65+ Physical Support,25/10/2022,5899,Social Care - Direct Payments,3111275120,648.32,Redacted Personal Data
http://statistics.data.gov.uk/id/local-authority/38,Oxfordshire County Council,Children in Care Non-staffing - South,18/10/2022,5394,Other Expenses,3111272092,648.45,Redacted Personal Data
http://statistics.data.gov.uk/id/local-authority/38,Oxfordshire County Council,Support at Home U65 MH OBC Contract,20/10/2022,5691,,3111273146,648.66,Care With Dignity Partnerships
http://statistics.data.gov.uk/id/local-authority/38,Oxfordshire County Council,Support at Home U65 Learning Disability,25/10/2022,5899,Social Care - Direct Payments,3111275437,648.72,Redacted Personal Data
http://statistics.data.gov.uk/id/local-authority/38,Oxfordshire County Council,Support at Home 65+ Physical Support,14/10/2022,5693,,3111270710,648.9,Pioneering Care Bicester Limited
http://statistics.data.gov.uk/id/local-authority/38,Oxfordshire County Council,Support at Home U65 Learning Disability,25/10/2022,5899,Social Care - Direct Payments,3111274816,649.24,Redacted Personal Data
http://statistics.data.gov.uk/id/local-authority/38,Oxfordshire County Council,FOSTERING MAIN,11/10/2022,5549,B*Fostering Allowance - Regulation 38,3111263708,649.85,Redacted Personal Data
http://statistics.data.gov.uk/id/local-authority/38,Oxfordshire County Council,L&D CORE PROGRAMME,10/10/2022,3100,Educational and Vocational Training,2201035457,650,Autism Live Training
http://statistics.data.gov.uk/id/local-authority/38,Oxfordshire County Council,Family Solutions Plus Non-staff - Centra,19/10/2022,5227,Other Transport Arrangements,3111273017,650,D�Arrive Ltd
http://statistics.data.gov.uk/id/local-authority/38,Oxfordshire County Council,FPT CITY,25/10/2022,4940,Other Services,3111274254,650,Redacted Personal Data
http://statistics.data.gov.uk/id/local-authority/38,Oxfordshire County Council,FLEET OPERATIONS,04/10/2022,4270,HTM / Other Vehicle - Hire Charges,2201033371,650,London Hire
http://statistics.data.gov.uk/id/local-authority/38,Oxfordshire County Council,Support at Home U65 Learning Disability,18/10/2022,5227,Other Transport Arrangements,3111271529,650,Oxon Transport Services Ltd
http://statistics.data.gov.uk/id/local-authority/38,Oxfordshire County Council,Family Solutions Plus Non-staff - Centra,18/10/2022,5227,Other Transport Arrangements,3111271554,650,Oxon Transport Services Ltd
http://statistics.data.gov.uk/id/local-authority/38,Oxfordshire County Council,ALTERNATIVES TO CARE,24/10/2022,2040,Agency Staff,2201040622,650.28,THORNBURY NURSING SERVICES
http://statistics.data.gov.uk/id/local-authority/38,Oxfordshire County Council,Support at Home 65+ Physical Support,27/10/2022,5696,,3111276824,650.7,Orders of St John Care Trust
http://statistics.data.gov.uk/id/local-authority/38,Oxfordshire County Council,LIBRARY COLLECTIONS,03/10/2022,4539,"Books, DVDs and CDs",3111260962,650.78,ASKEWS & HOLTS LIBRARY SERVICES LTD
http://statistics.data.gov.uk/id/local-authority/38,Oxfordshire County Council,Support at Home 65+ Physical Support,11/10/2022,5698,,3111264695,652.02,Oxford Private Care
http://statistics.data.gov.uk/id/local-authority/38,Oxfordshire County Council,Delegated Health Tasks  - Over 65,19/10/2022,5691,,3111272881,652.5,Bluebird Care
http://statistics.data.gov.uk/id/local-authority/38,Oxfordshire County Council,Delegated Health Tasks  - Over 65,19/10/2022,5691,,3111272952,652.5,Bluebird Care
http://statistics.data.gov.uk/id/local-authority/38,Oxfordshire County Council,Delegated Health Tasks  - Over 65,19/10/2022,5691,,3111272958,652.5,Bluebird Care
http://statistics.data.gov.uk/id/local-authority/38,Oxfordshire County Council,Delegated Health Tasks  - Over 65,19/10/2022,5691,,3111272963,652.5,Bluebird Care
http://statistics.data.gov.uk/id/local-authority/38,Oxfordshire County Council,Delegated Health Tasks  - Over 65,19/10/2022,5691,,3111272971,652.5,Bluebird Care
http://statistics.data.gov.uk/id/local-authority/38,Oxfordshire County Council,Support at Home U65 MH OBC Contract,25/10/2022,5899,Social Care - Direct Payments,3111275829,652.64,Purple Conversation Com In Co (DP)
http://statistics.data.gov.uk/id/local-authority/38,Oxfordshire County Council,Support at Home 65+ Physical Support,11/10/2022,5689,,3111264189,653.43,Alina Homecare
http://statistics.data.gov.uk/id/local-authority/38,Oxfordshire County Council,Support at Home U65 Learning Disability,12/10/2022,5690,,3111265722,653.66,Style Acre
http://statistics.data.gov.uk/id/local-authority/38,Oxfordshire County Council,Support at Home U65 Learning Disability,12/10/2022,5690,,3111265751,653.66,Style Acre
http://statistics.data.gov.uk/id/local-authority/38,Oxfordshire County Council,Support at Home U65 Learning Disability,12/10/2022,5690,,3111265772,653.66,Style Acre
http://statistics.data.gov.uk/id/local-authority/38,Oxfordshire County Council,Support at Home U65 Learning Disability,25/10/2022,5899,Social Care - Direct Payments,3111275415,653.88,Redacted Personal Data
http://statistics.data.gov.uk/id/local-authority/38,Oxfordshire County Council,Oxfordshire Adoption Support Fund,25/10/2022,4861,Hired and Contracted Services,2201040841,654.67,Redacted Personal Data
http://statistics.data.gov.uk/id/local-authority/38,Oxfordshire County Council,TRANSPORT COSTS,24/10/2022,4330,Transport to School Activities,3111273925,655,Her Ride Limited
http://statistics.data.gov.uk/id/local-authority/38,Oxfordshire County Council,Support at Home U65 Sensory Support,25/10/2022,5899,Social Care - Direct Payments,3111275713,655.08,Purple Conversation Com In Co (DP)
http://statistics.data.gov.uk/id/local-authority/38,Oxfordshire County Council,Support at Home U65 Mental Health,11/10/2022,5699,,3111263946,655.2,Care Hearted Ltd
http://statistics.data.gov.uk/id/local-authority/38,Oxfordshire County Council,Support at Home 65+ Memory & Cognition,21/10/2022,5693,,3111273492,655.2,Clark Care Services
http://statistics.data.gov.uk/id/local-authority/38,Oxfordshire County Council,Support at Home 65+ Physical Support,14/10/2022,5693,,3111270674,655.2,FLEXI DIRECT LTD
http://statistics.data.gov.uk/id/local-authority/38,Oxfordshire County Council,Support at Home U65 Physical Support,12/10/2022,5693,,3111265420,655.2,HEALTHCARE ACCESS LTD
http://statistics.data.gov.uk/id/local-authority/38,Oxfordshire County Council,Support at Home 65+ Memory & Cognition,05/10/2022,5693,,3111262032,655.2,Kwikfix Recruitment Services Ltd
http://statistics.data.gov.uk/id/local-authority/38,Oxfordshire County Council,Support at Home 65+ Memory & Cognition,11/10/2022,5699,,3111264730,655.2,Mega Resources Ltd
http://statistics.data.gov.uk/id/local-authority/38,Oxfordshire County Council,Support at Home 65+ Physical Support,26/10/2022,5693,,3111276328,655.2,SureCare Oxfordshire
http://statistics.data.gov.uk/id/local-authority/38,Oxfordshire County Council,Support at Home U65 Learning Disability,27/10/2022,5696,,3111276781,655.57,Orders of St John Care Trust
http://statistics.data.gov.uk/id/local-authority/38,Oxfordshire County Council,Support at Home U65 Learning Disability,27/10/2022,5696,,3111276807,655.57,Orders of St John Care Trust
http://statistics.data.gov.uk/id/local-authority/38,Oxfordshire County Council,ON ST PARK OXFD SPA,11/10/2022,5091,Postage and Delivery,2201035742,655.59,Royal Mail Retail
http://statistics.data.gov.uk/id/local-authority/38,Oxfordshire County Council,SEN TRANSPORT,21/10/2022,5227,Other Transport Arrangements,3111273528,655.6,Oxon Transport Services Ltd
http://statistics.data.gov.uk/id/local-authority/38,Oxfordshire County Council,GYPSY & TRAVELLER SV,10/10/2022,3951,Non System - Electricity,2201035389,656.35,EDF Energy Customers Ltd
http://statistics.data.gov.uk/id/local-authority/38,Oxfordshire County Council,FOSTERING MAIN,18/10/2022,5549,B*Fostering Allowance - Regulation 38,3111272060,658,Redacted Personal Data
http://statistics.data.gov.uk/id/local-authority/38,Oxfordshire County Council,FOSTERING MAIN,25/10/2022,5549,B*Fostering Allowance - Regulation 38,3111274243,658,Redacted Personal Data
http://statistics.data.gov.uk/id/local-authority/38,Oxfordshire County Council,Support at Home U65 Physical Support,07/10/2022,5693,,3111262429,658.26,Star Projections
http://statistics.data.gov.uk/id/local-authority/38,Oxfordshire County Council,Support at Home U65 Mental Health,11/10/2022,5689,,3111265288,658.79,Response Organisation
http://statistics.data.gov.uk/id/local-authority/38,Oxfordshire County Council,FOSTERING MAIN,11/10/2022,5549,B*Fostering Allowance - Regulation 38,3111263375,659.15,Redacted Personal Data
http://statistics.data.gov.uk/id/local-authority/38,Oxfordshire County Council,FOSTERING MAIN,11/10/2022,5549,B*Fostering Allowance - Regulation 38,3111263338,659.15,Redacted Personal Data
http://statistics.data.gov.uk/id/local-authority/38,Oxfordshire County Council,FOSTERING MAIN,11/10/2022,5549,B*Fostering Allowance - Regulation 38,3111263385,659.15,Redacted Personal Data
http://statistics.data.gov.uk/id/local-authority/38,Oxfordshire County Council,FOSTERING MAIN,11/10/2022,5549,B*Fostering Allowance - Regulation 38,3111263613,659.15,Redacted Personal Data
http://statistics.data.gov.uk/id/local-authority/38,Oxfordshire County Council,FOSTERING MAIN,11/10/2022,5549,B*Fostering Allowance - Regulation 38,3111263615,659.15,Redacted Personal Data
